Workbook

Sheet Form
B1: =IF(AND(TIGMODEL>"",TIG=""),"TIG with 4mm glass ONLY (Special order, contact CS)",IF(AND(TIGMODEL>"",TIGBAL=1),"TIG is NOT Available",IF(TIG_NOTE>"",TIG_NOTE,""))) -> 
B2: =IF(AND(WSIZE>0,HSIZE>0),"Only Available At"&" "&WSIZE&" x "&HSIZE&IF(HCONTROL=1," or "&HSIZE2,""),"") ->  | H2: Select Model | J2: =IF(ISERROR(SHATERROR),"",IF(SHATERROR=1,"Adjust CMR to Increase Egress Height","")) -> 
B3: =IF(Model_Select="Select Model","","(Model"&" "&ModelNo&")") ->  | G3: Select Model | J3: ="Min. W:"&" "&MINW -> Min. W: 0 | N3: ="Max W:"&" "&MAXW -> Max W: 0
B4: =Description -> 0 | J4: ="Min. H:"&" "&MINH -> Min. H: 0 | N4: ="Max H:"&" "&MAXH -> Max H: 0 | P4: ="Max UI:"&" "&MAXUI -> Max UI: 0
B5: =IF(AND(W>0,H>0),(IF(ISERROR(VLOOKUP(1,Data!$A:$D,3,FALSE)),"",VLOOKUP(1,Data!$A:$D,3,FALSE))),"") ->  | F5: =IF(SHAT_MIN_R=1,SHAT_MESSAGE,"") ->  | H5: =IF(AND(W>0,H>0),(IF(ISERROR(VLOOKUP(1,Data!$A:$D,4,FALSE)),"",VLOOKUP(1,Data!$A:$D,4,FALSE))),"") ->  | N5: Exact Size
B6: =IF(AND(W>0,H>0),(IF(ISERROR(VLOOKUP(2,Data!$A:$D,3,FALSE)),"",VLOOKUP(2,Data!$A:$D,3,FALSE))),"") ->  | H6: =IF(AND(W>0,H>0),(IF(ISERROR(VLOOKUP(2,Data!$A:$D,4,FALSE)),"",VLOOKUP(2,Data!$A:$D,4,FALSE))),"") ->  | J6: Width: | N6: =IF(AND(RO=2,W>0),W-WCUTBACK,W) -> 0 | O6: =IF(AND(W>0,WSIZE>0,W<>WSIZE),"<< Width Not Available","") -> 
B7: =IF(AND(W>0,H>0),(IF(ISERROR(VLOOKUP(3,Data!$A:$D,3,FALSE)),"",VLOOKUP(3,Data!$A:$D,3,FALSE))),"") ->  | H7: =IF(AND(W>0,H>0),(IF(ISERROR(VLOOKUP(3,Data!$A:$D,4,FALSE)),"",VLOOKUP(3,Data!$A:$D,4,FALSE))),"") ->  | J7: Height: | N7: =IF(AND(RO=2,H>0),H-HCUTBACK,H) -> 0 | O7: =IF(AND(H>0,HSIZE>0,HSIZE2>0,H<>HSIZE,H<>HSIZE2),"<< Height Not Available","") -> 
B8: =IF(AND(W>0,H>0),(IF(ISERROR(VLOOKUP(4,Data!$A:$D,3,FALSE)),"",VLOOKUP(4,Data!$A:$D,3,FALSE))),"") ->  | H8: =IF(AND(W>0,H>0),(IF(ISERROR(VLOOKUP(4,Data!$A:$D,4,FALSE)),"",VLOOKUP(4,Data!$A:$D,4,FALSE))),"") ->  | J8: =IF(OR(ModelNo="S140",ModelNo="S144",ModelNo="S146",ModelNo="S140 (HP)",ModelNo="S144 (HP)",ModelNo="S146 (HP)"),"Leg:","") ->  | N8: =LEG_MESSAGE -> 
B9: =IF(AND(W>0,H>0),(IF(ISERROR(VLOOKUP(5,Data!$A:$D,3,FALSE)),"",VLOOKUP(5,Data!$A:$D,3,FALSE))),"") ->  | H9: =IF(AND(W>0,H>0),(IF(ISERROR(VLOOKUP(5,Data!$A:$D,4,FALSE)),"",VLOOKUP(5,Data!$A:$D,4,FALSE))),"") ->  | J9: =IF(BTYPE="Custom","CMR:","") ->  | N9: =IF(AND(W>0,H>0,BTYPE="Custom"),"<< CMR, Top Down","") -> 
B10: =IF(AND(W>0,H>0),(IF(ISERROR(VLOOKUP(6,Data!$A:$D,3,FALSE)),"",VLOOKUP(6,Data!$A:$D,3,FALSE))),"") ->  | H10: =IF(AND(W>0,H>0),(IF(ISERROR(VLOOKUP(6,Data!$A:$D,4,FALSE)),"",VLOOKUP(6,Data!$A:$D,4,FALSE))),"") ->  | J10: =IF(SELECTEXT="Select Extrusion","Ext.",IF(SELECTEXT="Select Reinforcement","Reinforce",IF(SELECTEXT="Standard","HP >>",""))) ->  | N10: =EXT_MESSAGE -> 
B11: =IF(AND(W>0,H>0),(IF(ISERROR(VLOOKUP(7,Data!$A:$D,3,FALSE)),"",VLOOKUP(7,Data!$A:$D,3,FALSE))),"") ->  | H11: =IF(AND(W>0,H>0),(IF(ISERROR(VLOOKUP(7,Data!$A:$D,4,FALSE)),"",VLOOKUP(7,Data!$A:$D,4,FALSE))),"") ->  | J11: Opening: | N11: =RO_OPTION -> 0
B12: =IF(AND(W>0,H>0),(IF(ISERROR(VLOOKUP(8,Data!$A:$D,3,FALSE)),"",VLOOKUP(8,Data!$A:$D,3,FALSE))),"") ->  | H12: =IF(AND(W>0,H>0),(IF(ISERROR(VLOOKUP(8,Data!$A:$D,4,FALSE)),"",VLOOKUP(8,Data!$A:$D,4,FALSE))),"") ->  | J12: Type:
B13: =IF(AND(W>0,H>0),(IF(ISERROR(VLOOKUP(9,Data!$A:$D,3,FALSE)),"",VLOOKUP(9,Data!$A:$D,3,FALSE))),"") ->  | H13: =IF(AND(W>0,H>0),(IF(ISERROR(VLOOKUP(9,Data!$A:$D,4,FALSE)),"",VLOOKUP(9,Data!$A:$D,4,FALSE))),"") ->  | J13: Screen:
B14: =IF(AND(W>0,H>0),(IF(ISERROR(VLOOKUP(10,Data!$A:$D,3,FALSE)),"",VLOOKUP(10,Data!$A:$D,3,FALSE))),"") ->  | H14: =IF(AND(W>0,H>0),(IF(ISERROR(VLOOKUP(10,Data!$A:$D,4,FALSE)),"",VLOOKUP(10,Data!$A:$D,4,FALSE))),"") ->  | J14: Glass: | O14: =IF(AND(EXTTYPE="HP Package",GT="S"),"<< Must Select DS","") -> 
B16: =IF(AND(W>0,H>0),(IF(ISERROR(VLOOKUP(11,Data!$A:$D,3,FALSE)),"",VLOOKUP(11,Data!$A:$D,3,FALSE))),"") ->  | H16: =IF(AND(W>0,H>0),(IF(ISERROR(VLOOKUP(11,Data!$A:$D,4,FALSE)),"",VLOOKUP(11,Data!$A:$D,4,FALSE))),"") -> 
B17: =IF(AND(W>0,H>0),(IF(ISERROR(VLOOKUP(12,Data!$A:$D,3,FALSE)),"",VLOOKUP(12,Data!$A:$D,3,FALSE))),"") ->  | H17: =IF(AND(W>0,H>0),(IF(ISERROR(VLOOKUP(12,Data!$A:$D,4,FALSE)),"",VLOOKUP(12,Data!$A:$D,4,FALSE))),"") -> 
B18: =IF(AND(W>0,H>0),(IF(ISERROR(VLOOKUP(13,Data!$A:$D,3,FALSE)),"",VLOOKUP(13,Data!$A:$D,3,FALSE))),"") ->  | H18: =IF(AND(W>0,H>0),(IF(ISERROR(VLOOKUP(13,Data!$A:$D,4,FALSE)),"",VLOOKUP(13,Data!$A:$D,4,FALSE))),"") ->  | N18: A Designated AC Sash is Used to Replace BOTH Top and Bottom Sashes When AC is in the Window
B19: =IF(AND(W>0,H>0),(IF(ISERROR(VLOOKUP(14,Data!$A:$D,3,FALSE)),"",VLOOKUP(14,Data!$A:$D,3,FALSE))),"") ->  | H19: =IF(AND(W>0,H>0),(IF(ISERROR(VLOOKUP(14,Data!$A:$D,4,FALSE)),"",VLOOKUP(14,Data!$A:$D,4,FALSE))),"") -> 
B20: =IF(AND(W>0,H>0),(IF(ISERROR(VLOOKUP(15,Data!$A:$D,3,FALSE)),"",VLOOKUP(15,Data!$A:$D,3,FALSE))),"") ->  | H20: =IF(AND(W>0,H>0),(IF(ISERROR(VLOOKUP(15,Data!$A:$D,4,FALSE)),"",VLOOKUP(15,Data!$A:$D,4,FALSE))),"") ->  | J20: AC Width: | N20: =IF(AND(W>0,H>0,ACWIDTH>0,ACHEIGHT>0,ACCMR>0,ACLINK=TRUE),ACCMR,IF(AND(W>0,H>0,ACWIDTH>0,ACSASHW>0,ACLINK=TRUE),ACSASHW,"")) ->  | O20: =IF(AND(W>0,H>0,ACWIDTH>0,ACHEIGHT>0,ACCMR>0,ACLINK=TRUE),"<< CMR",IF(AND(W>0,H>0,ACWIDTH>0,ACSASHW>0,ACLINK=TRUE),"<< AC Sash Width","")) -> 
B21: =IF(AND(W>0,H>0),(IF(ISERROR(VLOOKUP(16,Data!$A:$D,3,FALSE)),"",VLOOKUP(16,Data!$A:$D,3,FALSE))),"") ->  | H21: =IF(AND(W>0,H>0),(IF(ISERROR(VLOOKUP(16,Data!$A:$D,4,FALSE)),"",VLOOKUP(16,Data!$A:$D,4,FALSE))),"") ->  | J21: AC Height: | N21: =IF(AND(W>0,H>0,ACHEIGHT>0,ACSASHH>0,ACLINK=TRUE),ACSASHH,"") ->  | O21: =IF(AND(ACCMR>0,ACLINK=TRUE),"",IF(AND(W>0,H>0,ACHEIGHT>0,ACSASHH>0,ACLINK=TRUE),"<< AC Sash Height","")) -> 
B22: =IF(AND(W>0,H>0),(IF(ISERROR(VLOOKUP(17,Data!$A:$D,3,FALSE)),"",VLOOKUP(17,Data!$A:$D,3,FALSE))),"") ->  | H22: =IF(AND(W>0,H>0),(IF(ISERROR(VLOOKUP(17,Data!$A:$D,4,FALSE)),"",VLOOKUP(17,Data!$A:$D,4,FALSE))),"") ->  | J22: =IF(ISERROR(TSH),"",IF(LIMIT1>"",LIMIT1&IF(LIMIT2>""," & "&LIMIT2,""),"")) -> 
B23: =IF(AND(W>0,H>0),(IF(ISERROR(VLOOKUP(18,Data!$A:$D,3,FALSE)),"",VLOOKUP(18,Data!$A:$D,3,FALSE))),"") ->  | H23: =IF(AND(W>0,H>0),(IF(ISERROR(VLOOKUP(18,Data!$A:$D,4,FALSE)),"",VLOOKUP(18,Data!$A:$D,4,FALSE))),"") -> 
B24: =IF(AND(W>0,H>0),(IF(ISERROR(VLOOKUP(19,Data!$A:$D,3,FALSE)),"",VLOOKUP(19,Data!$A:$D,3,FALSE))),"") ->  | H24: =IF(AND(W>0,H>0),(IF(ISERROR(VLOOKUP(19,Data!$A:$D,4,FALSE)),"",VLOOKUP(19,Data!$A:$D,4,FALSE))),"") -> 
C26: =IF(AND(W>0,H>0,ACWIDTH>ACSASHW,ACLINK=TRUE),"AC Width is Larger Than The Sash Width","") -> 

Sheet Balance (hidden)
O1: BLOCK & TACKLE BALANCE CHART | AD1: V-Series BLOCK & TACKLE BALANCE CHART
M2: TOP SASH | R2: BOTTOM SASH | AD2: TOP SASH | AI2: BOTTOM SASH
B3: 0100, 0700, 01HP, 07HP | C3: Length | D3: Weight/ft | E3: Weight | G3: 8001 | H3: Length | I3: Weight/ft | J3: Weight | M3: Sash Weight | N3: Tube Length | O3: Balance | P3: Weight | R3: Sash Weight | S3: Tube Length | T3: Balance | U3: Weight | Y3: Tube Length | AD3: Sash Weight | AE3: Tube Length | AF3: Balance | AG3: Weight | AI3: Sash Weight | AJ3: Tube Length | AK3: Balance | AL3: Weight | AQ3: Caldwell Balance Chart
B4: Bottom Top Rail | C4: =(Frame_Width-2.3125)/12 -> -0.1927083333 | D4: 0.241 | E4: =C4*D4 -> -0.04644270833 | G4: Top Top Rail | H4: =BSW/12 -> 0 | I4: 0.341 | J4: =H4*I4 -> 0 | M4: =TRUNC(TOP_WGT+GRID) -> 0 | N4: =$M$9 -> 0 | O4: Number | P4: Range | R4: =TRUNC(BTM_WGT+GRID) -> 0 | S4: =$R$9 -> 0 | T4: Number | U4: Range | Y4: Model | Z4: Top | AA4: Bott | AD4: =TRUNC(TOP_WGT) -> 0 | AE4: =TOPTUBELENGTH -> 0 | AF4: Number | AG4: Range | AI4: =TRUNC(BTM_WGT) -> 0 | AJ4: =BOTTUBELENGTH -> 0 | AK4: Number | AL4: Range | AQ4: =IF(OR(ModelNo="1700",ModelNo="1720",ModelNo="1730"),1,IF(OR(ModelNo="1900",ModelNo="1920",ModelNo="1930"),2,3)) -> 3 | AR4: =IF(OR(ModelNo="1700",ModelNo="1720",ModelNo="1730"),4,IF(OR(ModelNo="1900",ModelNo="1920",ModelNo="1930"),5,6)) -> 6 | AS4: Bott. | AT4: Top | AV4: 1 | AW4: 4 | AX4: 2 | AY4: 5 | AZ4: 3 | BA4: 6
B5: Bottom Bottom Rail | C5: =(Frame_Width-2.3125)/12 -> -0.1927083333 | D5: 0.25 | E5: -0.04817708333 | G5: Top Bottom Rail | H5: =BSW/12 -> 0 | I5: 0.384 | J5: 0 | M5: Balance Size | N5: =IF(AND(O5>0,P5>0),O5,0) -> 0 | O5: =IF($N$4<=6,6,0) -> 6 | P5: =IF(AND(O5=6,$M$4>=2,$M$4<=5),O5&"A",0) -> 0 | R5: Balance Size | S5: =IF(AND(T5>0,U5>0),T5,0) -> 0 | T5: =IF($S$4<=6,6,0) -> 6 | U5: =IF(AND(T5=6,$R$4>=2,$R$4<=5),T5&"A",0) -> 0 | Y5: S140 | AA5: =(INT(INT(Frame_Height/2-0.25)/2)+0.5)*2 -> -1 | AD5: Balance Size | AE5: =IF(AND(AF5>0,AG5>0),AF5,0) -> 0 | AF5: =IF($AE$4<=8,8,0) -> 8 | AG5: =IF(AND(AF5=8,$AD$4>=2,$AD$4<=6),AF5&"A",0) -> 0 | AI5: Balance Size | AJ5: =IF(AND(AK5>0,AL5>0),AK5,0) -> 0 | AK5: =IF($AJ$4<=8,8,0) -> 8 | AL5: =IF(AND(AK5=8,$AI$4>=2,$AI$4<=6),AK5&"A",0) -> 0 | AQ5: =HLOOKUP($AQ$4,CALDWELL_LOOKUP,2,FALSE) -> 9 | AR5: =HLOOKUP($AR$4,CALDWELL_LOOKUP,2,FALSE) -> 9.9995 | AS5: 8 | AT5: 7 | AV5: 9.7665 | AW5: 10.766 | AX5: 9.2185 | AY5: 10.218 | AZ5: 9 | BA5: 9.9995
B6: Bottom Stile | C6: =((CDIM_0100+0.125)*2)/12 -> 0.02083333333 | D6: 0.23 | E6: 0.004791666667 | G6: Top Stile | H6: =(BSH*2)/12 -> 0 | I6: 0.311 | J6: 0 | M6: =VLOOKUP((MAX(N5:N271)),N5:P271,3,FALSE) -> 0 | N6: 0 | O6: 6 | P6: =IF(AND(O6=6,$M$4>=6,$M$4<=9),O6&"B",0) -> 0 | R6: =VLOOKUP((MAX(S5:S271)),S5:U271,3,FALSE) -> 0 | S6: 0 | T6: 6 | U6: =IF(AND(T6=6,$R$4>=6,$R$4<=9),T6&"B",0) -> 0 | Y6: S144 | AA6: =(INT(INT(Frame_Height/2-0.25)/2)+0.5)*2 -> -1 | AD6: =VLOOKUP((MAX(AE5:AE229)),AE5:AG229,3,FALSE) -> 0 | AE6: 0 | AF6: =IF($AE$4<=8,8,0) -> 8 | AG6: =IF(AND(AF6=8,$AD$4>=7,$AD$4<=10),AF6&"B",0) -> 0 | AI6: =VLOOKUP((MAX(AJ5:AJ229)),AJ5:AL229,3,FALSE) -> 0 | AJ6: 0 | AK6: =IF($AJ$4<=8,8,0) -> 8 | AL6: =IF(AND(AK6=8,$AI$4>=7,$AI$4<=10),AK6&"B",0) -> 0 | AQ6: =HLOOKUP($AQ$4,CALDWELL_LOOKUP,3,FALSE) -> 10 | AR6: =HLOOKUP($AR$4,CALDWELL_LOOKUP,3,FALSE) -> 10.9995 | AS6: 9 | AT6: 8 | AV6: 10.7665 | AW6: 11.766 | AX6: 10.2185 | AY6: 11.218 | AZ6: 10 | BA6: 10.9995
B7: Bottom Rail Reinf. | C7: =(TRUNC(((C4*12)-6)/2)*2)/12 -> -0.6666666667 | D7: 0.328 | E7: -0.2186666667 | G7: Top Stile Reinf. | H7: 0 | I7: 0 | J7: 0 | N7: 0 | O7: 6 | P7: =IF(AND(O7=6,$M$4>=10,$M$4<=12),O7&"C",0) -> 0 | S7: 0 | T7: 6 | U7: =IF(AND(T7=6,$R$4>=10,$R$4<=12),T7&"C",0) -> 0 | Y7: S146 | AA7: =(INT(INT(Frame_Height/2-0.25)/2)+0.5)*2 -> -1 | AE7: 0 | AF7: =IF($AE$4<=8,8,0) -> 8 | AG7: =IF(AND(AF7=8,$AD$4>=11,$AD$4<=13),AF7&"C",0) -> 0 | AJ7: 0 | AK7: =IF($AJ$4<=8,8,0) -> 8 | AL7: =IF(AND(AK7=8,$AI$4>=11,$AI$4<=13),AK7&"C",0) -> 0 | AQ7: =HLOOKUP($AQ$4,CALDWELL_LOOKUP,4,FALSE) -> 11 | AR7: =HLOOKUP($AR$4,CALDWELL_LOOKUP,4,FALSE) -> 12.9995 | AS7: 10 | AT7: 9 | AV7: 11.7665 | AW7: 13.766 | AX7: 11.2185 | AY7: 13.218 | AZ7: 11 | BA7: 12.9995
B8: Bottom Stile Reinf. | C8: 0 | D8: 0.238 | E8: 0 | G8: Keeper Bead | H8: =(BSW-1.197)/12 -> -0.09975 | I8: 0.097 | J8: =H8*I8 -> -0.00967575 | M8: Top Tube length | N8: 0 | O8: 6 | P8: =IF(AND(O8=6,$M$4>=13,$M$4<=15),O8&"D",0) -> 0 | R8: Bott. Tube Length | S8: 0 | T8: 6 | U8: =IF(AND(T8=6,$R$4>=13,$R$4<=15),T8&"D",0) -> 0 | Y8: R601 | Z8: =IF(DDIM_8001>=Frame_Height/2-0.07,(INT(INT((Frame_Height/2-4.75)+0.25)/2))*2,(INT(INT((DDIM_8001-4.75)+0.25)/2))*2) ->  | AA8: =(INT(INT((Frame_Height/2-2.75)+0.25)/2)*2) -> -4 | AE8: 0 | AF8: =IF(AND($AE$4<=10,$AE$4>8),10,0) -> 0 | AG8: =IF(AND(AF8=10,$AD$4>=2,$AD$4<=6),AF8&"A",0) -> 0 | AJ8: 0 | AK8: =IF(AND($AJ$4<=10,$AJ$4>8),10,0) -> 0 | AL8: =IF(AND(AK8=10,$AI$4>=2,$AI$4<=6),AK8&"A",0) -> 0 | AQ8: =HLOOKUP($AQ$4,CALDWELL_LOOKUP,5,FALSE) -> 13 | AR8: =HLOOKUP($AR$4,CALDWELL_LOOKUP,5,FALSE) -> 14.9995 | AS8: 12 | AT8: 10 | AV8: 13.7665 | AW8: 15.766 | AX8: 13.2185 | AY8: 15.218 | AZ8: 13 | BA8: 14.9995
B9: Bottom Glass | C9: =((Frame_Width-4)*(CDIM_0100-1.5625))/144 -> 0.04340277778 | D9: =GLASS_WGT ->  | E9: =IF(AND(Frame_Width=35.5,Frame_Height=59.5),($C$9*$D$9)-2.25,$C$9*$D$9) ->  | G9: Top Glass | H9: =(TGW*TGH)/144 -> 0 | I9: =GLASS_WGT ->  | M9: =IF(OR(ModelNo="8001",ModelNo="R601"),TOPTUBELENGTH,0) -> 0 | N9: 0 | O9: 6 | P9: =IF(AND(O9=6,$M$4>=16,$M$4<=20),O9&"E",0) -> 0 | R9: =IF(OR(ModelNo="8001",ModelNo="R601"),BOTTUBELENGTH,0) -> 0 | S9: 0 | T9: 6 | U9: =IF(AND(T9=6,$R$4>=16,$R$4<=20),T9&"E",0) -> 0 | Y9: 8001 | Z9: =IF(DDIM_8001>=Frame_Height/2-0.07,(INT(INT((Frame_Height/2-4.75)+0.25)/2))*2,(INT(INT((DDIM_8001-4.75)+0.25)/2))*2) ->  | AA9: =(INT(INT((Frame_Height/2-2.75)+0.25)/2)*2) -> -4 | AE9: 0 | AF9: =IF(AND($AE$4<=10,$AE$4>8),10,0) -> 0 | AG9: =IF(AND(AF9=10,$AD$4>=7,$AD$4<=10),AF9&"B",0) -> 0 | AJ9: 0 | AK9: =IF(AND($AJ$4<=10,$AJ$4>8),10,0) -> 0 | AL9: =IF(AND(AK9=10,$AI$4>=7,$AI$4<=10),AK9&"B",0) -> 0 | AQ9: =HLOOKUP($AQ$4,CALDWELL_LOOKUP,6,FALSE) -> 15 | AR9: =HLOOKUP($AR$4,CALDWELL_LOOKUP,6,FALSE) -> 16.9995 | AS9: 14 | AT9: 12 | AV9: 15.7665 | AW9: 17.766 | AX9: 15.2185 | AY9: 17.218 | AZ9: 15 | BA9: 16.9995
B10: Bottom Spacer | C10: =(((Frame_Width-4)*2)+((CDIM_0100-1.5625)*2))/12 -> -0.9270833333 | D10: 0.0536 | E10: -0.04969166667 | G10: Top Spacer | H10: =((BGW*2)+(BGH*2))/12 -> 0 | I10: 0.034 | J10: 0 | N10: 0 | O10: 6 | P10: =IF(AND(O10=6,$M$4>=21,$M$4<=24),"Dbl."&O10&"C",0) -> 0 | S10: 0 | T10: 6 | U10: =IF(AND(T10=6,$R$4>=21,$R$4<=24),"Dbl."&T10&"C",0) -> 0 | Y10: 1700 | AA10: =VLOOKUP((CDIM_1700-0.84375),Caldwell,3) ->  | AE10: 0 | AF10: =IF(AND($AE$4<=10,$AE$4>8),10,0) -> 0 | AG10: =IF(AND(AF10=10,$AD$4>=11,$AD$4<=13),AF10&"C",0) -> 0 | AJ10: 0 | AK10: =IF(AND($AJ$4<=10,$AJ$4>8),10,0) -> 0 | AL10: =IF(AND(AK10=10,$AI$4>=11,$AI$4<=13),AK10&"C",0) -> 0 | AQ10: =HLOOKUP($AQ$4,CALDWELL_LOOKUP,7,FALSE) -> 17 | AR10: =HLOOKUP($AR$4,CALDWELL_LOOKUP,7,FALSE) -> 18.9995 | AS10: 16 | AT10: 14 | AV10: 17.7665 | AW10: 19.766 | AX10: 17.2185 | AY10: 19.218 | AZ10: 17 | BA10: 18.9995
B11: Bottom Hardware | C11: 1 | D11: 0.36 | E11: 0.36 | G11: Top Hardware | H11: 1 | I11: 0.2 | J11: 0.2 | N11: 0 | O11: 6 | P11: =IF(AND(O11=6,$M$4>=25,$M$4<=30),"Dbl."&O11&"D",0) -> 0 | S11: 0 | T11: 6 | U11: =IF(AND(T11=6,$R$4>=25,$R$4<=30),"Dbl."&T11&"D",0) -> 0 | Y11: 1720 | AA11: =VLOOKUP((CDIM_1720-0.84375),Caldwell,3) ->  | AE11: 0 | AF11: =IF(AND($AE$4<=10,$AE$4>8),10,0) -> 0 | AG11: =IF(AND(AF11=10,$AD$4>=14,$AD$4<=16),AF11&"D",0) -> 0 | AJ11: 0 | AK11: =IF(AND($AJ$4<=10,$AJ$4>8),10,0) -> 0 | AL11: =IF(AND(AK11=10,$AI$4>=14,$AI$4<=16),AK11&"D",0) -> 0 | AQ11: =HLOOKUP($AQ$4,CALDWELL_LOOKUP,8,FALSE) -> 19 | AR11: =HLOOKUP($AR$4,CALDWELL_LOOKUP,8,FALSE) -> 20.9995 | AS11: 18 | AT11: 16 | AV11: 19.7665 | AW11: 21.766 | AX11: 19.2185 | AY11: 21.218 | AZ11: 19 | BA11: 20.9995
B12: Bottom Bead | C12: =(((Frame_Width-3.75)*2)+((CDIM_0100-2.5)*2))/12 -> -1.041666667 | D12: 0.046 | E12: -0.04791666667 | G12: Top Handle Bead | H12: =(BSW-1.197)/12 -> -0.09975 | I12: 0.097 | J12: -0.00967575 | N12: 0 | O12: 6 | P12: =IF(AND(O12=6,$M$4>=31,$M$4<=40),"Dbl."&O12&"E",0) -> 0 | S12: 0 | T12: 6 | U12: =IF(AND(T12=6,$R$4>=31,$R$4<=40),"Dbl."&T12&"E",0) -> 0 | Y12: 1730 | AA12: =VLOOKUP((CDIM_1730-0.84375),Caldwell,3) ->  | AE12: 0 | AF12: =IF(AND($AE$4<=12,$AE$4>10),12,0) -> 0 | AG12: =IF(AND(AF12=12,$AD$4>=3,$AD$4<=7),AF12&"A",0) -> 0 | AJ12: 0 | AK12: =IF(AND($AJ$4<=12,$AJ$4>10),12,0) -> 0 | AL12: =IF(AND(AK12=12,$AI$4>=3,$AI$4<=7),AK12&"A",0) -> 0 | AQ12: =HLOOKUP($AQ$4,CALDWELL_LOOKUP,9,FALSE) -> 21 | AR12: =HLOOKUP($AR$4,CALDWELL_LOOKUP,9,FALSE) -> 22.9995 | AS12: 20 | AT12: 18 | AV12: 21.7665 | AW12: 23.766 | AX12: 21.2185 | AY12: 23.218 | AZ12: 21 | BA12: 22.9995
D13: Bottom Sash | E13: =TRUNC(SUM(E4:E12)+GRID) ->  | G13: Top Vert. Bead | H13: =((BSH-1.197)*2)/12 -> -0.1995 | I13: 0.097 | J13: -0.0193515 | N13: 0 | O13: =IF(AND($N$4<=8,$N$4>6),8,0) -> 0 | P13: =IF(AND(O13=8,$M$4>=2,$M$4<=6),O13&"A",0) -> 0 | S13: 0 | T13: =IF(AND($S$4<=8,$S$4>6),8,0) -> 0 | U13: =IF(AND(T13=8,$R$4>=2,$R$4<=6),T13&"A",0) -> 0 | Y13: 1900 | AA13: =VLOOKUP((CDIM_1900-0.84375),Caldwell,3) ->  | AE13: 0 | AF13: =IF(AND($AE$4<=12,$AE$4>10),12,0) -> 0 | AG13: =IF(AND(AF13=12,$AD$4>=8,$AD$4<=10),AF13&"B",0) -> 0 | AJ13: 0 | AK13: =IF(AND($AJ$4<=12,$AJ$4>10),12,0) -> 0 | AL13: =IF(AND(AK13=12,$AI$4>=8,$AI$4<=10),AK13&"B",0) -> 0 | AQ13: =HLOOKUP($AQ$4,CALDWELL_LOOKUP,10,FALSE) -> 23 | AR13: =HLOOKUP($AR$4,CALDWELL_LOOKUP,10,FALSE) -> 24.9995 | AS13: 22 | AT13: 20 | AV13: 23.7665 | AW13: 25.766 | AX13: 23.2185 | AY13: 25.218 | AZ13: 23 | BA13: 24.9995
C14: CDIM | D14: DDIM | G14: Bottom Top Rail | H14: =(BSW)/12 -> 0 | I14: 0.428 | J14: 0 | N14: 0 | O14: 0 | P14: =IF(AND(O14=8,$M$4>=7,$M$4<=10),O14&"B",0) -> 0 | S14: 0 | T14: 0 | U14: =IF(AND(T14=8,$R$4>=7,$R$4<=10),T14&"B",0) -> 0 | Y14: 1920 | AA14: =VLOOKUP((CDIM_1920-0.84375),Caldwell,3) ->  | AE14: 0 | AF14: =IF(AND($AE$4<=12,$AE$4>10),12,0) -> 0 | AG14: =IF(AND(AF14=12,$AD$4>=11,$AD$4<=16),AF14&"C",0) -> 0 | AJ14: 0 | AK14: =IF(AND($AJ$4<=12,$AJ$4>10),12,0) -> 0 | AL14: =IF(AND(AK14=12,$AI$4>=11,$AI$4<=16),AK14&"C",0) -> 0 | AQ14: =HLOOKUP($AQ$4,CALDWELL_LOOKUP,11,FALSE) -> 25 | AR14: =HLOOKUP($AR$4,CALDWELL_LOOKUP,11,FALSE) -> 26.9995 | AS14: 24 | AT14: 22 | AV14: 25.7665 | AW14: 27.766 | AX14: 25.2185 | AY14: 27.218 | AZ14: 25 | BA14: 26.9995
B15: 0100 | C15: =Frame_Height-D15 -> 0 | D15: =IF(TYPE=1,(Frame_Height/2),IF(TYPE=2,CMR)) -> 0 | G15: Bottom Bottom Rail | H15: =(BSW)/12 -> 0 | I15: 0.443 | J15: 0 | N15: 0 | O15: 0 | P15: =IF(AND(O15=8,$M$4>=11,$M$4<=13),O15&"C",0) -> 0 | S15: 0 | T15: 0 | U15: =IF(AND(T15=8,$R$4>=11,$R$4<=13),T15&"C",0) -> 0 | Y15: 1930 | AA15: =VLOOKUP((CDIM_1930-0.84375),Caldwell,3) ->  | AE15: 0 | AF15: =IF(AND($AE$4<=12,$AE$4>10),12,0) -> 0 | AG15: =IF(AND(AF15=12,$AD$4>=17,$AD$4<=18),AF15&"D",0) -> 0 | AJ15: 0 | AK15: =IF(AND($AJ$4<=12,$AJ$4>10),12,0) -> 0 | AL15: =IF(AND(AK15=12,$AI$4>=17,$AI$4<=18),AK15&"D",0) -> 0 | AQ15: =HLOOKUP($AQ$4,CALDWELL_LOOKUP,12,FALSE) -> 27 | AR15: =HLOOKUP($AR$4,CALDWELL_LOOKUP,12,FALSE) -> 28.9995 | AS15: 26 | AT15: 24 | AV15: 27.7665 | AW15: 29.766 | AX15: 27.2185 | AY15: 29.218 | AZ15: 27 | BA15: 28.9995
B16: 02A0 | C16: =Frame_Height-D16 -> 0 | D16: =IF(TYPE=1,(Frame_Height/2),IF(TYPE=2,CMR)) -> 0 | G16: Bottom Stile | H16: =(2*(BSH))/12 -> 0 | I16: 0.378 | J16: 0 | N16: 0 | O16: 0 | P16: =IF(AND(O16=8,$M$4>=14,$M$4<=15),O16&"D",0) -> 0 | S16: 0 | T16: 0 | U16: =IF(AND(T16=8,$R$4>=14,$R$4<=15),T16&"D",0) -> 0 | Y16: 1901 | Z16: =VLOOKUP((DDIM_1901-1),Caldwell,4) ->  | AA16: =VLOOKUP((CDIM_1901-1),Caldwell,3) ->  | AE16: 0 | AF16: =IF(AND($AE$4<=12,$AE$4>10),12,0) -> 0 | AG16: =IF(AND(AF16=12,$AD$4>=19,$AD$4<=21),AF16&"E",0) -> 0 | AJ16: 0 | AK16: =IF(AND($AJ$4<=12,$AJ$4>10),12,0) -> 0 | AL16: =IF(AND(AK16=12,$AI$4>=19,$AI$4<=21),AK16&"E",0) -> 0 | AQ16: =HLOOKUP($AQ$4,CALDWELL_LOOKUP,13,FALSE) -> 29 | AR16: =HLOOKUP($AR$4,CALDWELL_LOOKUP,13,FALSE) -> 30.9995 | AS16: 28 | AT16: 26 | AV16: 29.7665 | AW16: 31.766 | AX16: 29.2185 | AY16: 31.218 | AZ16: 29 | BA16: 30.9995
B17: 02A0 | C17: Length | D17: Weight/ft | E17: Weight | G17: Lock Rail Reinf. | H17: =(INT((BSW-6)/2)*2)/12 -> -0.5 | I17: 0.3184 | J17: -0.1592 | N17: 0 | O17: 0 | P17: =IF(AND(O17=8,$M$4>=16,$M$4<=18),O17&"E",0) -> 0 | S17: 0 | T17: 0 | U17: =IF(AND(T17=8,$R$4>=16,$R$4<=18),T17&"E",0) -> 0 | Y17: 1921 | Z17: =VLOOKUP((DDIM_1921-1),Caldwell,4) ->  | AA17: =VLOOKUP((CDIM_1921-1),Caldwell,3) ->  | AE17: 0 | AF17: =IF(AND($AE$4<=14,$AE$4>12),14,0) -> 0 | AG17: =IF(AND(AF17=14,$AD$4>=3,$AD$4<=7),AF17&"A",0) -> 0 | AJ17: 0 | AK17: =IF(AND($AJ$4<=14,$AJ$4>12),14,0) -> 0 | AL17: =IF(AND(AK17=14,$AI$4>=3,$AI$4<=7),AK17&"A",0) -> 0 | AQ17: =HLOOKUP($AQ$4,CALDWELL_LOOKUP,14,FALSE) -> 31 | AR17: =HLOOKUP($AR$4,CALDWELL_LOOKUP,14,FALSE) -> 32.9995 | AS17: 30 | AT17: 28 | AV17: 31.7665 | AW17: 33.766 | AX17: 31.2185 | AY17: 33.218 | AZ17: 31 | BA17: 32.9995
B18: Bottom Top Rail | C18: =(Frame_Width-2.25)/12 -> -0.1875 | D18: 0.241 | E18: =C18*D18 -> -0.0451875 | G18: Bottom Stile Reinf. | H18: =IF(CDIM_8001>27.75,TRUNC((BSH-4.5)/2)*2,0) ->  | I18: 0 | N18: 0 | O18: 0 | P18: =IF(AND(O18=8,$M$4>=19,$M$4<=20),"Dbl."&O18&"B",0) -> 0 | S18: 0 | T18: 0 | U18: =IF(AND(T18=8,$R$4>=19,$R$4<=20),"Dbl."&T18&"B",0) -> 0 | Y18: 1931 | Z18: =VLOOKUP((DDIM_1931-1),Caldwell,4) ->  | AA18: =VLOOKUP((CDIM_1931-1),Caldwell,3) ->  | AE18: 0 | AF18: 0 | AG18: =IF(AND(AF18=14,$AD$4>=8,$AD$4<=10),AF18&"B",0) -> 0 | AJ18: 0 | AK18: 0 | AL18: =IF(AND(AK18=14,$AI$4>=8,$AI$4<=10),AK18&"B",0) -> 0 | AQ18: =HLOOKUP($AQ$4,CALDWELL_LOOKUP,15,FALSE) -> 33 | AR18: =HLOOKUP($AR$4,CALDWELL_LOOKUP,15,FALSE) -> 34.9995 | AS18: 32 | AT18: 30 | AV18: 33.7665 | AW18: 35.766 | AX18: 33.2185 | AY18: 35.218 | AZ18: 33 | BA18: 34.9995
B19: Bottom Bottom Rail | C19: =(Frame_Width-2.25)/12 -> -0.1875 | D19: 0.25 | E19: -0.046875 | G19: Bottom Glass | H19: =(BGW*BGH)/144 -> 0 | I19: =GLASS_WGT ->  | N19: 0 | O19: 0 | P19: =IF(AND(O19=8,$M$4>=21,$M$4<=26),"Dbl."&O19&"C",0) -> 0 | S19: 0 | T19: 0 | U19: =IF(AND(T19=8,$R$4>=21,$R$4<=26),"Dbl."&T19&"C",0) -> 0 | Y19: =ModelNo -> Select Model | Z19: =IF(ISERROR(VLOOKUP($Y$19,$Y$5:$AA$18,2,FALSE)),0,VLOOKUP($Y$19,$Y$5:$AA$18,2,FALSE)) -> 0 | AA19: =IF(ISERROR(VLOOKUP($Y$19,$Y$5:$AA$18,3,FALSE)),0,VLOOKUP($Y$19,$Y$5:$AA$18,3,FALSE)) -> 0 | AE19: 0 | AF19: 0 | AG19: =IF(AND(AF19=14,$AD$4>=11,$AD$4<=16),AF19&"C",0) -> 0 | AJ19: 0 | AK19: 0 | AL19: =IF(AND(AK19=14,$AI$4>=11,$AI$4<=16),AK19&"C",0) -> 0 | AQ19: =HLOOKUP($AQ$4,CALDWELL_LOOKUP,16,FALSE) -> 35 | AR19: =HLOOKUP($AR$4,CALDWELL_LOOKUP,16,FALSE) -> 36.9995 | AS19: 34 | AT19: 32 | AV19: 35.7665 | AW19: 37.766 | AX19: 35.2185 | AY19: 37.218 | AZ19: 35 | BA19: 36.9995
B20: Bottom Stile | C20: =((CDIM_02A0-0.75)*2)/12 -> -0.125 | D20: 0.23 | E20: -0.02875 | G20: Bottom Spacer | H20: =((BGW*2)+(BGH*2))/12 -> 0 | I20: 0.034 | J20: 0 | N20: 0 | O20: 0 | P20: =IF(AND(O20=8,$M$4>=27,$M$4<=32),"Dbl."&O20&"D",0) -> 0 | S20: 0 | T20: 0 | U20: =IF(AND(T20=8,$R$4>=27,$R$4<=32),"Dbl."&T20&"D",0) -> 0 | AE20: 0 | AF20: 0 | AG20: =IF(AND(AF20=14,$AD$4>=17,$AD$4<=19),AF20&"D",0) -> 0 | AJ20: 0 | AK20: 0 | AL20: =IF(AND(AK20=14,$AI$4>=17,$AI$4<=19),AK20&"D",0) -> 0 | AQ20: =HLOOKUP($AQ$4,CALDWELL_LOOKUP,17,FALSE) -> 37 | AR20: =HLOOKUP($AR$4,CALDWELL_LOOKUP,17,FALSE) -> 38.9995 | AS20: 36 | AT20: 34 | AV20: 37.7665 | AW20: 39.766 | AX20: 37.2185 | AY20: 39.218 | AZ20: 37 | BA20: 38.9995
B21: Bottom Rail Reinf. | C21: =(TRUNC(((C18*12)-6)/2)*2)/12 -> -0.6666666667 | D21: 0.328 | E21: -0.2186666667 | G21: Bottom Hardware | H21: 1 | I21: 0.36 | J21: 0.36 | N21: 0 | O21: 0 | P21: =IF(AND(O21=8,$M$4>=33,$M$4<=36),"Dbl."&O21&"E",0) -> 0 | S21: 0 | T21: 0 | U21: =IF(AND(T21=8,$R$4>=33,$R$4<=36),"Dbl."&T21&"E",0) -> 0 | AE21: 0 | AF21: 0 | AG21: =IF(AND(AF21=14,$AD$4>=20,$AD$4<=22),AF21&"E",0) -> 0 | AJ21: 0 | AK21: 0 | AL21: =IF(AND(AK21=14,$AI$4>=20,$AI$4<=22),AK21&"E",0) -> 0 | AQ21: =HLOOKUP($AQ$4,CALDWELL_LOOKUP,18,FALSE) -> 39 | AR21: =HLOOKUP($AR$4,CALDWELL_LOOKUP,18,FALSE) -> 40.9995 | AS21: 38 | AT21: 36 | AV21: 39.7665 | AW21: 41.766 | AX21: 39.2185 | AY21: 41.218 | AZ21: 39 | BA21: 40.9995
B22: Bottom Stile Reinf. | C22: =IF((CDIM_02A0-2.40625)>=27.5,((((CDIM_02A0-2.40625)-4.5)/2)*2)/12,0) -> 0 | D22: 0.238 | E22: 0 | G22: Bott. Hor. Bead | H22: =(2*(BSW-2.197))/12 -> -0.3661666667 | I22: 0.097 | J22: -0.03551816667 | N22: 0 | O22: =IF(AND($N$4<=10,$N$4>8),10,0) -> 0 | P22: =IF(AND(O22=10,$M$4>=1,$M$4<=6),O22&"A",0) -> 0 | S22: 0 | T22: =IF(AND($S$4<=10,$S$4>8),10,0) -> 0 | U22: =IF(AND(T22=10,$R$4>=1,$R$4<=6),T22&"A",0) -> 0 | AE22: 0 | AF22: 0 | AG22: =IF(AND(AF22=14,$AD$4>=23,$AD$4<=25),AF22&"F",0) -> 0 | AJ22: 0 | AK22: 0 | AL22: =IF(AND(AK22=14,$AI$4>=23,$AI$4<=25),AK22&"F",0) -> 0 | AQ22: =HLOOKUP($AQ$4,CALDWELL_LOOKUP,19,FALSE) -> 41 | AR22: =HLOOKUP($AR$4,CALDWELL_LOOKUP,19,FALSE) -> 42.9995 | AS22: 40 | AT22: 38 | AV22: 41.7665 | AW22: 43.766 | AX22: 41.2185 | AY22: 43.218 | AZ22: 41 | BA22: 42.9995
B23: Bottom Glass | C23: =((Frame_Width-3.90625)*(CDIM_02A0-2.40625))/144 -> 0.06527370877 | D23: =GLASS_WGT ->  | G23: Bottom Vert. Bead | H23: =(2*(BSH-2.197))/12 -> -0.3661666667 | I23: 0.097 | J23: -0.03551816667 | N23: 0 | O23: 0 | P23: =IF(AND(O23=10,$M$4>=7,$M$4<=10),O23&"B",0) -> 0 | S23: 0 | T23: 0 | U23: =IF(AND(T23=10,$R$4>=7,$R$4<=10),T23&"B",0) -> 0 | AE23: 0 | AF23: =IF(AND($AE$4<=16,$AE$4>14),16,0) -> 0 | AG23: =IF(AND(AF23=16,$AD$4>=3,$AD$4<=7),AF23&"A",0) -> 0 | AJ23: 0 | AK23: =IF(AND($AJ$4<=16,$AJ$4>14),16,0) -> 0 | AL23: =IF(AND(AK23=16,$AI$4>=3,$AI$4<=7),AK23&"A",0) -> 0 | AQ23: =HLOOKUP($AQ$4,CALDWELL_LOOKUP,20,FALSE) -> 43 | AR23: =HLOOKUP($AR$4,CALDWELL_LOOKUP,20,FALSE) -> 44.9995 | AS23: 42 | AT23: 40 | AV23: 43.7665 | AW23: 45.766 | AX23: 43.2185 | AY23: 45.218 | AZ23: 43 | BA23: 44.9995
B24: Bottom Spacer | C24: =(((Frame_Width-3.90625)*2)+((CDIM_02A0-2.40625)*2))/12 -> -1.052083333 | D24: 0.0536 | E24: -0.05639166667 | I24: Top Sash | J24: =TRUNC((SUM(J4:J13))+6.5+GRID) ->  | N24: 0 | O24: 0 | P24: =IF(AND(O24=10,$M$4>=11,$M$4<=13),O24&"C",0) -> 0 | S24: 0 | T24: 0 | U24: =IF(AND(T24=10,$R$4>=11,$R$4<=13),T24&"C",0) -> 0 | AE24: 0 | AF24: 0 | AG24: =IF(AND(AF24=16,$AD$4>=8,$AD$4<=10),AF24&"B",0) -> 0 | AJ24: 0 | AK24: 0 | AL24: =IF(AND(AK24=16,$AI$4>=8,$AI$4<=10),AK24&"B",0) -> 0 | AQ24: =HLOOKUP($AQ$4,CALDWELL_LOOKUP,21,FALSE) -> 45 | AR24: =HLOOKUP($AR$4,CALDWELL_LOOKUP,21,FALSE) -> 46.9995 | AS24: 44 | AT24: 42 | AV24: 45.7665 | AW24: 47.766 | AX24: 45.2185 | AY24: 47.218 | AZ24: 45 | BA24: 46.9995
B25: Bottom Hardware | C25: 1 | D25: 0.36 | E25: 0.36 | I25: Bottom Sash | J25: =TRUNC(SUM(J14:J23)+GRID) ->  | N25: 0 | O25: 0 | P25: =IF(AND(O25=10,$M$4>=14,$M$4<=16),O25&"D",0) -> 0 | S25: 0 | T25: 0 | U25: =IF(AND(T25=10,$R$4>=14,$R$4<=16),T25&"D",0) -> 0 | AE25: 0 | AF25: 0 | AG25: =IF(AND(AF25=16,$AD$4>=11,$AD$4<=16),AF25&"C",0) -> 0 | AJ25: 0 | AK25: 0 | AL25: =IF(AND(AK25=16,$AI$4>=11,$AI$4<=16),AK25&"C",0) -> 0 | AQ25: =HLOOKUP($AQ$4,CALDWELL_LOOKUP,22,FALSE) -> 47 | AR25: =HLOOKUP($AR$4,CALDWELL_LOOKUP,22,FALSE) -> 48.9995 | AS25: 46 | AT25: 44 | AV25: 47.7665 | AW25: 49.766 | AX25: 47.2185 | AY25: 49.218 | AZ25: 47 | BA25: 48.9995
B26: Bottom Bead | C26: =(((Frame_Width-3.3125)*2)+((CDIM_02A0-1.8125)*2))/12 -> -0.8541666667 | D26: 0.028 | E26: -0.02391666667 | N26: 0 | O26: 0 | P26: =IF(AND(O26=10,$M$4>=17,$M$4<=19),O26&"E",0) -> 0 | S26: 0 | T26: 0 | U26: =IF(AND(T26=10,$R$4>=17,$R$4<=19),T26&"E",0) -> 0 | AE26: 0 | AF26: 0 | AG26: =IF(AND(AF26=16,$AD$4>=17,$AD$4<=19),AF26&"D",0) -> 0 | AJ26: 0 | AK26: 0 | AL26: =IF(AND(AK26=16,$AI$4>=17,$AI$4<=19),AK26&"D",0) -> 0
D27: Bottom Sash | E27: =TRUNC(SUM(E18:E26)+GRID) ->  | N27: 0 | O27: 0 | P27: =IF(AND(O27=10,$M$4=20),"Dbl."&O27&"B",0) -> 0 | S27: 0 | T27: 0 | U27: =IF(AND(T27=10,$R$4=20),"Dbl."&T27&"B",0) -> 0 | AE27: 0 | AF27: 0 | AG27: =IF(AND(AF27=16,$AD$4>=20,$AD$4<=22),AF27&"E",0) -> 0 | AJ27: 0 | AK27: 0 | AL27: =IF(AND(AK27=16,$AI$4>=20,$AI$4<=22),AK27&"E",0) -> 0
N28: 0 | O28: 0 | P28: =IF(AND(O28=10,$M$4>=21,$M$4<=26),"Dbl."&O28&"C",0) -> 0 | S28: 0 | T28: 0 | U28: =IF(AND(T28=10,$R$4>=21,$R$4<=26),"Dbl."&T28&"C",0) -> 0 | AE28: 0 | AF28: 0 | AG28: =IF(AND(AF28=16,$AD$4>=23,$AD$4<=24),AF28&"F",0) -> 0 | AJ28: 0 | AK28: 0 | AL28: =IF(AND(AK28=16,$AI$4>=23,$AI$4<=24),AK28&"F",0) -> 0
N29: 0 | O29: 0 | P29: =IF(AND(O29=10,$M$4>=27,$M$4<=32),"Dbl."&O29&"D",0) -> 0 | S29: 0 | T29: 0 | U29: =IF(AND(T29=10,$R$4>=27,$R$4<=32),"Dbl."&T29&"D",0) -> 0 | AE29: 0 | AF29: 0 | AG29: =IF(AND(AF29=16,$AD$4>=25,$AD$4<=27),AF29&"G",0) -> 0 | AJ29: 0 | AK29: 0 | AL29: =IF(AND(AK29=16,$AI$4>=25,$AI$4<=27),AK29&"G",0) -> 0
B30: 1700 / 1720 / 1730 | C30: Length | D30: Weight/ft | E30: Weight | G30: 3001 | H30: Length | I30: Weight/ft | J30: Weight | N30: 0 | O30: 0 | P30: =IF(AND(O30=10,$M$4>=33,$M$4<=38),"Dbl."&O30&"E",0) -> 0 | S30: 0 | T30: 0 | U30: =IF(AND(T30=10,$R$4>=33,$R$4<=38),"Dbl."&T30&"E",0) -> 0 | AE30: 0 | AF30: =IF(AND($AE$4<=18,$AE$4>16),18,0) -> 0 | AG30: =IF(AND(AF30=18,$AD$4>=4,$AD$4<=9),AF30&"A",0) -> 0 | AJ30: 0 | AK30: =IF(AND($AJ$4<=18,$AJ$4>16),18,0) -> 0 | AL30: =IF(AND(AK30=18,$AI$4>=4,$AI$4<=9),AK30&"A",0) -> 0
B31: Bottom Top Rail | C31: =BSW/12 -> 0 | D31: 0.221 | E31: =C31*D31 -> 0 | G31: Top Top Rail | H31: =(TSW)/12 -> 0 | I31: 0.297 | J31: =H31*I31 -> 0 | N31: 0 | O31: =IF(AND($N$4<=12,$N$4>10),12,0) -> 0 | P31: =IF(AND(O31=12,$M$4>=3,$M$4<=7),O31&"A",0) -> 0 | S31: 0 | T31: =IF(AND($S$4<=12,$S$4>10),12,0) -> 0 | U31: =IF(AND(T31=12,$R$4>=3,$R$4<=7),T31&"A",0) -> 0 | AE31: 0 | AF31: 0 | AG31: =IF(AND(AF31=18,$AD$4>=10,$AD$4<=13),AF31&"B",0) -> 0 | AJ31: 0 | AK31: 0 | AL31: =IF(AND(AK31=18,$AI$4>=10,$AI$4<=13),AK31&"B",0) -> 0
B32: Bottom Bottom Rail | C32: =BSW/12 -> 0 | D32: 0.196 | E32: 0 | G32: Top Bottom Rail | H32: =(TSW)/12 -> 0 | I32: 0.289 | J32: 0 | N32: 0 | O32: 0 | P32: =IF(AND(O32=12,$M$4>=8,$M$4<=10),O32&"B",0) -> 0 | S32: 0 | T32: 0 | U32: =IF(AND(T32=12,$R$4>=8,$R$4<=10),T32&"B",0) -> 0 | AE32: 0 | AF32: 0 | AG32: =IF(AND(AF32=18,$AD$4>=14,$AD$4<=18),AF32&"C",0) -> 0 | AJ32: 0 | AK32: 0 | AL32: =IF(AND(AK32=18,$AI$4>=14,$AI$4<=18),AK32&"C",0) -> 0 | AV32: Sash Height | AX32: Balance | AY32: Window Height 50/50 Split | BA32: Oriel LBML
B33: Bottom Stile | C33: =(BSH*2)/12 -> 0 | D33: 0.196 | E33: 0 | G33: Top Stile | H33: =(2*TSH)/12 -> 0 | I33: 0.218 | J33: 0 | N33: 0 | O33: 0 | P33: =IF(AND(O33=12,$M$4>=11,$M$4<=16),O33&"C",0) -> 0 | S33: 0 | T33: 0 | U33: =IF(AND(T33=12,$R$4>=11,$R$4<=16),T33&"C",0) -> 0 | AE33: 0 | AF33: 0 | AG33: =IF(AND(AF33=18,$AD$4>=19,$AD$4<=21),AF33&"D",0) -> 0 | AJ33: 0 | AK33: 0 | AL33: =IF(AND(AK33=18,$AI$4>=19,$AI$4<=21),AK33&"D",0) -> 0 | AV33: Min Height | AW33: Max Height | AX33: Size | AY33: Min Height | AZ33: Max Height | BA33: from Bot of Sill
B34: Bottom Rail Reinf. | C34: =IF(AND(STILE_REINF>0,ModelNo="1700"),(TRUNC(((Frame_Width-3.625)-0.5)/2)*2-2)/12,IF(AND(STILE_REINF>0,ModelNo="1720"),(TRUNC((((Frame_Width/2-2.4375)-6.25)-0.5)/2)*2)/12,IF(AND(STILE_REINF>0,ModelNo="1730"),(TRUNC((((Frame_Width/3-2.53125)-7)-0.5)/2)*2)/12,0))) -> 0 | D34: 0.133 | E34: 0 | G34: Keeper Rail Reinf. | H34: =(TRUNC(((Frame_Width-4.125)-2)/2)*2)/12 -> -0.5 | I34: =IF(OR(EXTSELECT=2,Frame_Width<48,Frame_Height<84),0.0516,IF(OR(EXTSELECT=3,Frame_Width>48,Frame_Height>84),0.3784,0)) -> 0.0516 | J34: -0.0258 | N34: 0 | O34: 0 | P34: =IF(AND(O34=12,$M$4>=17,$M$4<=18),O34&"D",0) -> 0 | S34: 0 | T34: 0 | U34: =IF(AND(T34=12,$R$4>=17,$R$4<=18),T34&"D",0) -> 0 | AE34: 0 | AF34: 0 | AG34: =IF(AND(AF34=18,$AD$4>=22,$AD$4<=24),AF34&"E",0) -> 0 | AJ34: 0 | AK34: 0 | AL34: =IF(AND(AK34=18,$AI$4>=22,$AI$4<=24),AK34&"E",0) -> 0
B35: Bottom Stile Reinf. | C35: =IF(AND(STILE_REINF>0,ModelNo="1700"),(((((CDIM_1700-4.03125))/2)*2)/12)*2,IF(AND(STILE_REINF>0,ModelNo="1720"),(((((CDIM_1720-4.03125))/2)*2)/12)*2,IF(AND(STILE_REINF>0,ModelNo="1730"),(((((CDIM_1730-4.03125))/2)*2)/12)*2,0))) -> 0 | D35: 0.133 | E35: 0 | G35: Top Stile Reinf | H35: =IF(OR(Frame_Width>48,Frame_Height>84,EXTTYPE="Steel"),((TRUNC(((DDIM_3001-1.625)-8)/2)*2)/12)*2,0) -> 0 | I35: 0.456 | J35: 0 | N35: 0 | O35: 0 | P35: =IF(AND(O35=12,$M$4>=19,$M$4<=21),O35&"E",0) -> 0 | S35: 0 | T35: 0 | U35: =IF(AND(T35=12,$R$4>=19,$R$4<=21),T35&"E",0) -> 0 | AE35: 0 | AF35: 0 | AG35: =IF(AND(AF35=18,$AD$4>=25,$AD$4<=26),AF35&"F",0) -> 0 | AJ35: 0 | AK35: 0 | AL35: =IF(AND(AK35=18,$AI$4>=25,$AI$4<=26),AK35&"F",0) -> 0 | AV35: 9.7665 | AW35: 10.766 | AX35: 8 | AY35: 21.125 | AZ35: 23.124 | BA35: 20.283
B36: Bottom Glass | C36: =(BGW*BGH)/144 -> 0 | D36: =GLASS_WGT ->  | G36: Top Glass | H36: =(TGW*TGH)/144 -> 0 | I36: =GLASS_WGT ->  | J36: =H36*I36 ->  | N36: 0 | O36: 0 | P36: =IF(AND(O36=12,$M$4>=22,$M$4<=32),"Dbl."&O36&"C",0) -> 0 | S36: 0 | T36: 0 | U36: =IF(AND(T36=12,$R$4>=22,$R$4<=32),"Dbl."&T36&"C",0) -> 0 | AE36: 0 | AF36: 0 | AG36: =IF(AND(AF36=18,$AD$4>=27,$AD$4<=29),AF36&"G",0) -> 0 | AJ36: 0 | AK36: 0 | AL36: =IF(AND(AK36=18,$AI$4>=27,$AI$4<=29),AK36&"G",0) -> 0 | AV36: 10.7665 | AW36: 11.766 | AX36: 9 | AY36: 23.125 | AZ36: 25.124 | BA36: 22.283
B37: Bottom Spacer | C37: =((BGW*2)+(BGH*2))/12 -> 0 | D37: 0.0536 | E37: 0 | G37: Top Spacer | H37: =((TGW*2)+(TGH*2))/12 -> 0 | I37: 0.0536 | J37: 0 | N37: =IF(AND(O37>0,P37>0),O37,0) -> 0 | O37: 0 | P37: =IF(AND(O37=12,$M$4>=33,$M$4<=36),"Dbl."&O37&"D",0) -> 0 | S37: 0 | T37: 0 | U37: =IF(AND(T37=12,$R$4>=33,$R$4<=36),"Dbl."&T37&"D",0) -> 0 | AE37: 0 | AF37: 0 | AG37: =IF(AND(AF37=18,$AD$4>=30,$AD$4<=32),AF37&"H",0) -> 0 | AJ37: 0 | AK37: 0 | AL37: =IF(AND(AK37=18,$AI$4>=30,$AI$4<=32),AK37&"H",0) -> 0 | AV37: 11.7665 | AW37: 13.766 | AX37: 10 | AY37: 25.125 | AZ37: 29.124 | BA37: 26.283
B38: Bottom Hardware | C38: 1 | D38: 0.36 | E38: 0.36 | G38: Top Hardware | H38: 1 | I38: 0.4 | J38: 0.4 | N38: 0 | O38: 0 | P38: =IF(AND(O38=12,$M$4>=37,$M$4<=42),"Dbl."&O38&"E",0) -> 0 | S38: 0 | T38: 0 | U38: =IF(AND(T38=12,$R$4>=37,$R$4<=42),"Dbl."&T38&"E",0) -> 0 | AE38: 0 | AF38: =IF(AND($AE$4<=20,$AE$4>18),20,0) -> 0 | AG38: =IF(AND(AF38=20,$AD$4>=5,$AD$4<=10),AF38&"A",0) -> 0 | AJ38: 0 | AK38: =IF(AND($AJ$4<=20,$AJ$4>18),20,0) -> 0 | AL38: =IF(AND(AK38=20,$AI$4>=5,$AI$4<=10),AK38&"A",0) -> 0 | AV38: 13.7665 | AW38: 15.766 | AX38: 12 | AY38: 29.125 | AZ38: 33.124 | BA38: 30.283
B39: Bottom Bead | C39: =(((BSW-0.75)*2)+((BSH-0.781)*2))/12 -> -0.2551666667 | D39: 0.021 | E39: -0.0053585 | G39: Top Bead | H39: =(((Frame_Width-5.125)*2)+((DDIM_3001-4.3125)*2))/12 -> -1.572916667 | I39: 0.072 | J39: -0.11325 | N39: 0 | O39: =IF(AND($N$4<=14,$N$4>12),14,0) -> 0 | P39: =IF(AND(O39=14,$M$4>=3,$M$4<=7),O39&"A",0) -> 0 | S39: 0 | T39: =IF(AND($S$4<=14,$S$4>12),14,0) -> 0 | U39: =IF(AND(T39=14,$R$4>=3,$R$4<=7),T39&"A",0) -> 0 | AE39: 0 | AF39: 0 | AG39: =IF(AND(AF39=20,$AD$4>=11,$AD$4<=14),AF39&"B",0) -> 0 | AJ39: 0 | AK39: 0 | AL39: =IF(AND(AK39=20,$AI$4>=11,$AI$4<=14),AK39&"B",0) -> 0 | AV39: 15.7665 | AW39: 17.766 | AX39: 14 | AY39: 33.125 | AZ39: 37.124 | BA39: 34.283
D40: Bottom Sash | E40: =TRUNC(SUM(E31:E39)+GRID) ->  | G40: Bottom Top Rail | H40: =(Frame_Width-3.125)/12 -> -0.2604166667 | I40: 0.297 | J40: -0.07734375 | N40: 0 | O40: 0 | P40: =IF(AND(O40=14,$M$4>=8,$M$4<=10),O40&"B",0) -> 0 | S40: 0 | T40: 0 | U40: =IF(AND(T40=14,$R$4>=8,$R$4<=10),T40&"B",0) -> 0 | AE40: 0 | AF40: 0 | AG40: =IF(AND(AF40=20,$AD$4>=15,$AD$4<=18),AF40&"C",0) -> 0 | AJ40: 0 | AK40: 0 | AL40: =IF(AND(AK40=20,$AI$4>=15,$AI$4<=18),AK40&"C",0) -> 0 | AV40: 17.7665 | AW40: 19.766 | AX40: 16 | AY40: 37.125 | AZ40: 41.124 | BA40: 38.283
G41: Bottom Bottom Rail | H41: =(Frame_Width-3.125)/12 -> -0.2604166667 | I41: 0.232 | J41: -0.06041666667 | N41: 0 | O41: 0 | P41: =IF(AND(O41=14,$M$4>=11,$M$4<=16),O41&"C",0) -> 0 | S41: 0 | T41: 0 | U41: =IF(AND(T41=14,$R$4>=11,$R$4<=16),T41&"C",0) -> 0 | AE41: 0 | AF41: 0 | AG41: =IF(AND(AF41=20,$AD$4>=19,$AD$4<=22),AF41&"D",0) -> 0 | AJ41: 0 | AK41: 0 | AL41: =IF(AND(AK41=20,$AI$4>=19,$AI$4<=22),AK41&"D",0) -> 0 | AV41: 19.7665 | AW41: 21.766 | AX41: 18 | AY41: 41.125 | AZ41: 45.124 | BA41: 42.283
B42: 1900 | C42: Length | D42: Weight/ft | E42: Weight | G42: Bottom Stile | H42: =(2*BSH)/12 -> 0 | I42: 0.219 | J42: 0 | N42: 0 | O42: 0 | P42: =IF(AND(O42=14,$M$4>=17,$M$4<=19),O42&"D",0) -> 0 | S42: 0 | T42: 0 | U42: =IF(AND(T42=14,$R$4>=17,$R$4<=19),T42&"D",0) -> 0 | AE42: 0 | AF42: 0 | AG42: =IF(AND(AF42=20,$AD$4>=23,$AD$4<=26),AF42&"E",0) -> 0 | AJ42: 0 | AK42: 0 | AL42: =IF(AND(AK42=20,$AI$4>=23,$AI$4<=26),AK42&"E",0) -> 0 | AV42: 21.7665 | AW42: 23.766 | AX42: 20 | AY42: 45.125 | AZ42: 49.124 | BA42: 46.283
B43: Bottom Top Rail | C43: =BSW/12 -> 0 | D43: 0.221 | E43: =C43*D43 -> 0 | G43: Bottom Rail Reinf. | H43: =(TRUNC(((Frame_Width-3.125)-6)/2)*2)/12 -> -0.6666666667 | I43: =IF(OR(EXTSELECT=2,Frame_Width<48,Frame_Height<84),0.0516,IF(OR(EXTSELECT=3,Frame_Width>48,Frame_Height>84),0.57,0)) -> 0.0516 | J43: -0.0344 | N43: 0 | O43: 0 | P43: =IF(AND(O43=14,$M$4>=20,$M$4<=22),O43&"E",0) -> 0 | S43: 0 | T43: 0 | U43: =IF(AND(T43=14,$R$4>=20,$R$4<=22),T43&"E",0) -> 0 | AE43: 0 | AF43: 0 | AG43: =IF(AND(AF43=20,$AD$4>=27,$AD$4<=30),AF43&"F",0) -> 0 | AJ43: 0 | AK43: 0 | AL43: =IF(AND(AK43=20,$AI$4>=27,$AI$4<=30),AK43&"F",0) -> 0 | AV43: 23.7665 | AW43: 25.766 | AX43: 22 | AY43: 49.125 | AZ43: 53.124 | BA43: 50.283
B44: Bottom Bottom Rail | C44: =BSW/12 -> 0 | D44: 0.196 | E44: 0 | G44: Bottom Stile Reinf. | H44: =IF(OR(Frame_Width>48,Frame_Height>84,EXTTYPE="Steel"),((TRUNC((CDIM_3001-2)/2)*2)/12)*2,0) -> 0 | I44: 0.456 | J44: 0 | N44: 0 | O44: 0 | P44: =IF(AND(O44=14,$M$4>=23,$M$4<=25),O44&"F",0) -> 0 | S44: 0 | T44: 0 | U44: =IF(AND(T44=14,$R$4>=23,$R$4<=25),T44&"F",0) -> 0 | AE44: 0 | AF44: 0 | AG44: =IF(AND(AF44=20,$AD$4>=31,$AD$4<=34),AF44&"G",0) -> 0 | AJ44: 0 | AK44: 0 | AL44: =IF(AND(AK44=20,$AI$4>=31,$AI$4<=34),AK44&"G",0) -> 0 | AV44: 25.7665 | AW44: 27.766 | AX44: 24 | AY44: 53.125 | AZ44: 57.124 | BA44: 54.283
B45: Bottom Stile | C45: =(BSH*2)/12 -> 0 | D45: 0.196 | E45: 0 | G45: Bottom Glass | H45: =(BGW*BGH)/144 -> 0 | I45: =GLASS_WGT ->  | N45: 0 | O45: 0 | P45: =IF(AND(O45=14,$M$4>=26,$M$4<=28),O45&"G",0) -> 0 | S45: 0 | T45: 0 | U45: =IF(AND(T45=14,$R$4>=26,$R$4<=28),T45&"G",0) -> 0 | AE45: 0 | AF45: =IF(AND($AE$4<=22,$AE$4>20),22,0) -> 0 | AG45: =IF(AND(AF45=22,$AD$4>=5,$AD$4<=10),AF45&"A",0) -> 0 | AJ45: 0 | AK45: =IF(AND($AJ$4<=22,$AJ$4>20),22,0) -> 0 | AL45: =IF(AND(AK45=22,$AI$4>=5,$AI$4<=10),AK45&"A",0) -> 0 | AV45: 27.7665 | AW45: 29.766 | AX45: 26 | AY45: 57.125 | AZ45: 61.124 | BA45: 58.283
B46: Bott Rail Reinf. | C46: =IF(AND(STILE_REINF>0,ModelNo="1900"),(TRUNC(((Frame_Width-8.688)-0.5)/2)*2)/12,IF(AND(STILE_REINF>0,ModelNo="1920"),(TRUNC(((Frame_Width/2-8.9375)-0.5)/2)*2)/12,IF(AND(STILE_REINF>0,ModelNo="1920"),(TRUNC(((Frame_Width/3-8.9375)-0.5)/2)*2)/12,0))) -> 0 | D46: 0.133 | E46: 0 | G46: Bottom Spacer | H46: =((BGW*2)+(BGH*2))/12 -> 0 | I46: 0.0536 | J46: 0 | N46: 0 | O46: 0 | P46: =IF(AND(O46=14,$M$4>=29,$M$4<=31),O46&"H",0) -> 0 | S46: 0 | T46: 0 | U46: =IF(AND(T46=14,$R$4>=29,$R$4<=31),T46&"H",0) -> 0 | AE46: 0 | AF46: 0 | AG46: =IF(AND(AF46=22,$AD$4>=11,$AD$4<=16),AF46&"B",0) -> 0 | AJ46: 0 | AK46: 0 | AL46: =IF(AND(AK46=22,$AI$4>=11,$AI$4<=16),AK46&"B",0) -> 0 | AV46: 29.7665 | AW46: 31.766 | AX46: 28 | AY46: 61.125 | AZ46: 65.124 | BA46: 62.283
B47: Bottom Stile Reinf. | C47: =IF(AND(STILE_REINF>0,ModelNo="1900"),(((((CDIM_1900-4.094))/2)*2)/12)*2,IF(AND(STILE_REINF>0,ModelNo="1900"),(((((CDIM_1920-4.094))/2)*2)/12)*2,IF(AND(STILE_REINF>0,ModelNo="1930"),(((((CDIM_1900-4.094))/2)*2)/12)*2,0))) -> 0 | D47: 0.133 | E47: 0 | G47: Bottom Hardware | H47: 1 | I47: 0.36 | J47: 0.36 | N47: 0 | O47: 0 | P47: =IF(AND(O47=14,$M$4>=32,$M$4<=34),O47&"I",0) -> 0 | S47: 0 | T47: 0 | U47: =IF(AND(T47=14,$R$4>=32,$R$4<=34),T47&"I",0) -> 0 | AE47: 0 | AF47: 0 | AG47: =IF(AND(AF47=22,$AD$4>=17,$AD$4<=21),AF47&"C",0) -> 0 | AJ47: 0 | AK47: 0 | AL47: =IF(AND(AK47=22,$AI$4>=17,$AI$4<=21),AK47&"C",0) -> 0 | AV47: 31.7665 | AW47: 33.766 | AX47: 30 | AY47: 65.125 | AZ47: 69.124 | BA47: 66.283
B48: Bottom Glass | C48: =(BGW*BGH)/144 -> 0 | D48: =GLASS_WGT ->  | G48: Bottom Bead | H48: =(((Frame_Width-4.125)*2)+((CDIM_3001-3.3125)*2))/12 -> -1.239583333 | I48: 0.072 | J48: -0.08925 | N48: 0 | O48: 0 | P48: =IF(AND(O48=14,$M$4>=35,$M$4<=38),"Dbl."&O48&"D",0) -> 0 | S48: 0 | T48: 0 | U48: =IF(AND(T48=14,$R$4>=35,$R$4<=38),"Dbl."&T48&"D",0) -> 0 | AE48: 0 | AF48: 0 | AG48: =IF(AND(AF48=22,$AD$4>=22,$AD$4<=24),AF48&"D",0) -> 0 | AJ48: 0 | AK48: 0 | AL48: =IF(AND(AK48=22,$AI$4>=22,$AI$4<=24),AK48&"D",0) -> 0 | AV48: 33.7665 | AW48: 35.766 | AX48: 32 | AY48: 69.125 | AZ48: 73.124 | BA48: 70.283
B49: Bottom Spacer | C49: =((BGW*2)+(BGH*2))/12 -> 0 | D49: 0.0536 | E49: 0 | I49: Top Sash | J49: =TRUNC(SUM(J31:J39)+1+GRID) ->  | N49: 0 | O49: 0 | P49: =IF(AND(O49=14,$M$4>=39,$M$4<=44),"Dbl."&O49&"E",0) -> 0 | S49: 0 | T49: 0 | U49: =IF(AND(T49=14,$R$4>=39,$R$4<=44),"Dbl."&T49&"E",0) -> 0 | AE49: 0 | AF49: 0 | AG49: =IF(AND(AF49=22,$AD$4>=25,$AD$4<=27),AF49&"E",0) -> 0 | AJ49: 0 | AK49: 0 | AL49: =IF(AND(AK49=22,$AI$4>=25,$AI$4<=27),AK49&"E",0) -> 0 | AV49: 35.7665 | AW49: 37.766 | AX49: 34 | AY49: 73.125 | AZ49: 77.124 | BA49: 74.283
B50: Bottom Hardware | C50: 1 | D50: 0.36 | E50: 0.36 | I50: Bottom Sash | J50: =TRUNC(SUM(J40:J48)+GRID) ->  | N50: 0 | O50: 0 | P50: =IF(AND(O50=14,$M$4>=45,$M$4<=50),"Dbl."&O50&"F",0) -> 0 | S50: 0 | T50: 0 | U50: =IF(AND(T50=14,$R$4>=45,$R$4<=50),"Dbl."&T50&"F",0) -> 0 | AE50: 0 | AF50: 0 | AG50: =IF(AND(AF50=22,$AD$4>=28,$AD$4<=30),AF50&"F",0) -> 0 | AJ50: 0 | AK50: 0 | AL50: =IF(AND(AK50=22,$AI$4>=28,$AI$4<=30),AK50&"F",0) -> 0 | AV50: 37.7665 | AW50: 39.766 | AX50: 36 | AY50: 77.125 | AZ50: 81.124 | BA50: 78.283
B51: Bottom Bead | C51: =(((BSW-0.75)*2)+((BSH-0.781)*2))/12 -> -0.2551666667 | D51: 0.021 | E51: -0.0053585 | N51: 0 | O51: 0 | P51: =IF(AND(O51=14,$M$4>=51,$M$4<=56),"Dbl."&O51&"G",0) -> 0 | S51: 0 | T51: 0 | U51: =IF(AND(T51=14,$R$4>=51,$R$4<=56),"Dbl."&T51&"G",0) -> 0 | AE51: 0 | AF51: 0 | AG51: =IF(AND(AF51=22,$AD$4>=31,$AD$4<=34),AF51&"G",0) -> 0 | AJ51: 0 | AK51: 0 | AL51: =IF(AND(AK51=22,$AI$4>=31,$AI$4<=34),AK51&"G",0) -> 0 | AV51: 39.7665 | AW51: 41.766 | AX51: 38 | AY51: 81.125 | AZ51: 85.124 | BA51: 82.283
D52: Bottom Sash | E52: =TRUNC(SUM(E43:E51)+GRID) ->  | G52: L201 | N52: 0 | O52: 0 | P52: =IF(AND(O52=14,$M$4>=57,$M$4<=62),"Dbl."&O52&"H",0) -> 0 | S52: 0 | T52: 0 | U52: =IF(AND(T52=14,$R$4>=57,$R$4<=62),"Dbl."&T52&"H",0) -> 0 | AE52: 0 | AF52: 0 | AG52: =IF(AND(AF52=22,$AD$4>=35,$AD$4<=37),AF52&"H",0) -> 0 | AJ52: 0 | AK52: 0 | AL52: =IF(AND(AK52=22,$AI$4>=35,$AI$4<=37),AK52&"H",0) -> 0 | AV52: 41.7665 | AW52: 43.766 | AX52: 40 | AY52: 85.125 | AZ52: 89.124 | BA52: 86.283
G53: Top Top Rail | H53: =TSW/12 -> 0 | I53: 0.257 | J53: =H53*I53 -> 0 | N53: 0 | O53: 0 | P53: =IF(AND(O53=14,$M$4>=63,$M$4<=68),"Dbl."&O53&"I",0) -> 0 | S53: 0 | T53: 0 | U53: =IF(AND(T53=14,$R$4>=63,$R$4<=68),"Dbl."&T53&"I",0) -> 0 | AE53: 0 | AF53: =IF(AND($AE$4<=24,$AE$4>22),24,0) -> 0 | AG53: =IF(AND(AF53=24,$AD$4>=6,$AD$4<=10),AF53&"A",0) -> 0 | AJ53: 0 | AK53: =IF(AND($AJ$4<=24,$AJ$4>22),24,0) -> 0 | AL53: =IF(AND(AK53=24,$AI$4>=6,$AI$4<=10),AK53&"A",0) -> 0 | AV53: 43.7665 | AW53: 45.766 | AX53: 42 | AY53: 89.125 | AZ53: 93.124 | BA53: 90.283
G54: Top Bottom Rail | H54: =TSW/12 -> 0 | I54: 0.273 | J54: =H54*I54 -> 0 | N54: 0 | O54: =IF(AND($N$4<=16,$N$4>14),16,0) -> 0 | P54: =IF(AND(O54=16,$M$4>=3,$M$4<=7),O54&"A",0) -> 0 | S54: 0 | T54: =IF(AND($S$4<=16,$S$4>14),16,0) -> 0 | U54: =IF(AND(T54=16,$R$4>=3,$R$4<=7),T54&"A",0) -> 0 | AE54: 0 | AF54: 0 | AG54: =IF(AND(AF54=24,$AD$4>=11,$AD$4<=17),AF54&"B",0) -> 0 | AJ54: 0 | AK54: 0 | AL54: =IF(AND(AK54=24,$AI$4>=11,$AI$4<=17),AK54&"B",0) -> 0 | AV54: 45.7665 | AW54: 47.766 | AX54: 44 | AY54: 93.125 | AZ54: 97.124 | BA54: 94.283
B55: 03A0 | G55: Top Stile | H55: =2*TSH/12 -> 0 | I55: 0.233 | J55: 0 | N55: 0 | O55: 0 | P55: =IF(AND(O55=16,$M$4>=8,$M$4<=10),O55&"B",0) -> 0 | S55: 0 | T55: 0 | U55: =IF(AND(T55=16,$R$4>=8,$R$4<=10),T55&"B",0) -> 0 | AE55: 0 | AF55: 0 | AG55: =IF(AND(AF55=24,$AD$4>=18,$AD$4<=22),AF55&"C",0) -> 0 | AJ55: 0 | AK55: 0 | AL55: =IF(AND(AK55=24,$AI$4>=18,$AI$4<=22),AK55&"C",0) -> 0 | AV55: 47.7665 | AW55: 49.766 | AX55: 46 | AY55: 97.125 | AZ55: 101.124 | BA55: 98.283
B56: Bottom Top Rail | C56: =BSW/12 -> 0 | D56: 0.297 | E56: =C56*D56 -> 0 | G56: Top Rail Reinf. | H56: =(((TSW-6)/2)*2)/12 -> -0.5 | I56: 0.052 | J56: -0.026 | N56: 0 | O56: 0 | P56: =IF(AND(O56=16,$M$4>=11,$M$4<=16),O56&"C",0) -> 0 | S56: 0 | T56: 0 | U56: =IF(AND(T56=16,$R$4>=11,$R$4<=16),T56&"C",0) -> 0 | AE56: 0 | AF56: 0 | AG56: =IF(AND(AF56=24,$AD$4>=23,$AD$4<=25),AF56&"D",0) -> 0 | AJ56: 0 | AK56: 0 | AL56: =IF(AND(AK56=24,$AI$4>=23,$AI$4<=25),AK56&"D",0) -> 0 | BA56: =IF(TYPE=2,Frame_Height-(VLOOKUP(BSH,AV35:BA55,6)),2.625) -> 2.625
B57: Bottom Bottom Rail | C57: =BSW/12 -> 0 | D57: 0.232 | E57: =C57*D57 -> 0 | G57: Top Stile Reinf | H57: =IF(TGH>26.75,(((DDIM_L201-9.5)/2)*2)/12,0) -> 0 | I57: 0.052 | J57: 0 | N57: 0 | O57: 0 | P57: =IF(AND(O57=16,$M$4>=17,$M$4<=19),O57&"D",0) -> 0 | S57: 0 | T57: 0 | U57: =IF(AND(T57=16,$R$4>=17,$R$4<=19),T57&"D",0) -> 0 | AE57: 0 | AF57: 0 | AG57: =IF(AND(AF57=24,$AD$4>=26,$AD$4<=28),AF57&"E",0) -> 0 | AJ57: 0 | AK57: 0 | AL57: =IF(AND(AK57=24,$AI$4>=26,$AI$4<=28),AK57&"E",0) -> 0
B58: Bottom Stile | C58: =(BSH*2)/12 -> 0 | D58: 0.219 | E58: 0 | G58: Top Glass | H58: =(TGW*TGH)/144 -> 0 | I58: =GLASS_WGT ->  | N58: 0 | O58: 0 | P58: =IF(AND(O58=16,$M$4>=20,$M$4<=22),O58&"E",0) -> 0 | S58: 0 | T58: 0 | U58: =IF(AND(T58=16,$R$4>=20,$R$4<=22),T58&"E",0) -> 0 | AE58: 0 | AF58: 0 | AG58: =IF(AND(AF58=24,$AD$4>=29,$AD$4<=30),AF58&"F",0) -> 0 | AJ58: 0 | AK58: 0 | AL58: =IF(AND(AK58=24,$AI$4>=29,$AI$4<=30),AK58&"F",0) -> 0
B59: Bottom Rail Reinf. | C59: =(2*(CDIM_03A0-1.125))/12 -> -0.1875 | D59: 0.0516 | E59: -0.009675 | G59: Top Spacer | H59: =((TGW*2)+(TGH*2))/12 -> 0 | I59: 0.0536 | J59: 0 | N59: 0 | O59: 0 | P59: =IF(AND(O59=16,$M$4>=23,$M$4<=24),O59&"F",0) -> 0 | S59: 0 | T59: 0 | U59: =IF(AND(T59=16,$R$4>=23,$R$4<=24),T59&"F",0) -> 0 | AE59: 0 | AF59: 0 | AG59: =IF(AND(AF59=24,$AD$4>=31,$AD$4<=34),AF59&"G",0) -> 0 | AJ59: 0 | AK59: 0 | AL59: =IF(AND(AK59=24,$AI$4>=31,$AI$4<=34),AK59&"G",0) -> 0
B60: Bottom Stile Reinf. | C60: =(TRUNC(((Frame_Width-3.125)-6)/2)*2)/12 -> -0.6666666667 | D60: 0.456 | E60: -0.304 | G60: Top Hardware | H60: 1 | I60: 0.2 | J60: 0.2 | N60: 0 | O60: 0 | P60: =IF(AND(O60=16,$M$4>=25,$M$4<=28),O60&"G",0) -> 0 | S60: 0 | T60: 0 | U60: =IF(AND(T60=16,$R$4>=25,$R$4<=28),T60&"G",0) -> 0 | AE60: 0 | AF60: 0 | AG60: =IF(AND(AF60=24,$AD$4>=35,$AD$4<=37),AF60&"H",0) -> 0 | AJ60: 0 | AK60: 0 | AL60: =IF(AND(AK60=24,$AI$4>=35,$AI$4<=37),AK60&"H",0) -> 0
B61: Bottom Glass | C61: =(BGW*BGH)/144 -> 0 | D61: =GLASS_WGT ->  | G61: Top Bead | H61: =(((Frame_Width-4.3125)*2)+((DDIM_L201-2.625)*2))/12 -> -1.15625 | I61: 0.028 | J61: -0.032375 | N61: 0 | O61: 0 | P61: =IF(AND(O61=16,$M$4>=29,$M$4<=31),O61&"H",0) -> 0 | S61: 0 | T61: 0 | U61: =IF(AND(T61=16,$R$4>=29,$R$4<=31),T61&"H",0) -> 0 | AE61: 0 | AF61: =IF(AND($AE$4<=26,$AE$4>24),26,0) -> 0 | AG61: =IF(AND(AF61=26,$AD$4>=6,$AD$4<=11),AF61&"A",0) -> 0 | AJ61: 0 | AK61: =IF(AND($AJ$4<=26,$AJ$4>24),26,0) -> 0 | AL61: =IF(AND(AK61=26,$AI$4>=6,$AI$4<=11),AK61&"A",0) -> 0
B62: Bottom Spacer | C62: =((BGW*2)+(BGH*2))/12 -> 0 | D62: 0.0536 | E62: 0 | G62: Bottom Top Rail | H62: =BSW/12 -> 0 | I62: 0.246 | J62: 0 | N62: 0 | O62: 0 | P62: =IF(AND(O62=16,$M$4>=32,$M$4<=34),O62&"I",0) -> 0 | S62: 0 | T62: 0 | U62: =IF(AND(T62=16,$R$4>=32,$R$4<=34),T62&"I",0) -> 0 | AE62: 0 | AF62: 0 | AG62: =IF(AND(AF62=26,$AD$4>=12,$AD$4<=17),AF62&"B",0) -> 0 | AJ62: 0 | AK62: 0 | AL62: =IF(AND(AK62=26,$AI$4>=12,$AI$4<=17),AK62&"B",0) -> 0
B63: Bottom Hardware | C63: 1 | D63: 0.36 | E63: 0.36 | G63: Bottom Bottom Rail | H63: =BSW/12 -> 0 | I63: 0.257 | J63: 0 | N63: 0 | O63: 0 | P63: =IF(AND(O63=16,$M$4>=35,$M$4<=36),"Dbl."&O63&"D",0) -> 0 | S63: 0 | T63: 0 | U63: =IF(AND(T63=16,$R$4>=35,$R$4<=36),"Dbl."&T63&"D",0) -> 0 | AE63: 0 | AF63: 0 | AG63: =IF(AND(AF63=26,$AD$4>=18,$AD$4<=22),AF63&"C",0) -> 0 | AJ63: 0 | AK63: 0 | AL63: =IF(AND(AK63=26,$AI$4>=18,$AI$4<=22),AK63&"C",0) -> 0
B64: Bottom Bead | C64: =(((Frame_Width-4.125)*2)+((CDIM_03A0-3.3125)*2))/12 -> -1.239583333 | D64: 0.072 | E64: -0.08925 | G64: Bottom Stile | H64: =2*BSH/12 -> 0 | I64: 0.233 | J64: 0 | N64: 0 | O64: 0 | P64: =IF(AND(O64=16,$M$4>=37,$M$4<=44),"Dbl."&O64&"E",0) -> 0 | S64: 0 | T64: 0 | U64: =IF(AND(T64=16,$R$4>=37,$R$4<=44),"Dbl."&T64&"E",0) -> 0 | AE64: 0 | AF64: 0 | AG64: =IF(AND(AF64=26,$AD$4>=23,$AD$4<=26),AF64&"D",0) -> 0 | AJ64: 0 | AK64: 0 | AL64: =IF(AND(AK64=26,$AI$4>=23,$AI$4<=26),AK64&"D",0) -> 0
D65: Bott. Sash | E65: =TRUNC(SUM(E56:E64)+GRID) ->  | G65: Bottom Rail Reinf. | H65: =(((BSW-6)/2)*2)/12 -> -0.5 | I65: 0.052 | J65: -0.026 | N65: 0 | O65: 0 | P65: =IF(AND(O65=16,$M$4>=45,$M$4<=48),"Dbl."&O65&"F",0) -> 0 | S65: 0 | T65: 0 | U65: =IF(AND(T65=16,$R$4>=45,$R$4<=48),"Dbl."&T65&"F",0) -> 0 | AE65: 0 | AF65: 0 | AG65: =IF(AND(AF65=26,$AD$4>=27,$AD$4<=30),AF65&"E",0) -> 0 | AJ65: 0 | AK65: 0 | AL65: =IF(AND(AK65=26,$AI$4>=27,$AI$4<=30),AK65&"E",0) -> 0
G66: Bottom Stile Reinf. | H66: =IF(BGH>27.75,((CDIM_L201-4.5)/2)*2,0) -> 0 | I66: 0.052 | J66: 0 | N66: 0 | O66: 0 | P66: =IF(AND(O66=16,$M$4>=49,$M$4<=56),"Dbl."&O66&"G",0) -> 0 | S66: 0 | T66: 0 | U66: =IF(AND(T66=16,$R$4>=49,$R$4<=56),"Dbl."&T66&"G",0) -> 0 | AE66: 0 | AF66: 0 | AG66: =IF(AND(AF66=26,$AD$4>=31,$AD$4<=34),AF66&"F",0) -> 0 | AJ66: 0 | AK66: 0 | AL66: =IF(AND(AK66=26,$AI$4>=31,$AI$4<=34),AK66&"F",0) -> 0
B67: 1901/1921/1931 | C67: Length | D67: Weight/ft | E67: Weight | G67: Bottom Glass | H67: =(BGW*BGH)/144 -> 0 | I67: =GLASS_WGT ->  | N67: 0 | O67: 0 | P67: =IF(AND(O67=16,$M$4>=57,$M$4<=62),"Dbl."&O67&"H",0) -> 0 | S67: 0 | T67: 0 | U67: =IF(AND(T67=16,$R$4>=57,$R$4<=62),"Dbl."&T67&"H",0) -> 0 | AE67: 0 | AF67: 0 | AG67: =IF(AND(AF67=26,$AD$4>=35,$AD$4<=38),AF67&"G",0) -> 0 | AJ67: 0 | AK67: 0 | AL67: =IF(AND(AK67=26,$AI$4>=35,$AI$4<=38),AK67&"G",0) -> 0
B68: Top Top Rail | C68: =IF(ModelNo="1901",(Frame_Width-3.4375)/12,IF(ModelNo="1921",(Frame_Width/2-3.6875)/12,IF(ModelNo="1931",(Frame_Width/3-3.75)/12,0))) -> 0 | D68: 0.208 | E68: =C68*D68 -> 0 | G68: Bottom Spacer | H68: =((BGW*2)+(BGH*2))/12 -> 0 | I68: 0.0536 | J68: 0 | N68: 0 | O68: 0 | P68: =IF(AND(O68=16,$M$4>=63,$M$4<=68),"Dbl."&O68&"I",0) -> 0 | S68: 0 | T68: 0 | U68: =IF(AND(T68=16,$R$4>=63,$R$4<=68),"Dbl."&T68&"I",0) -> 0 | AE68: 0 | AF68: 0 | AG68: =IF(AND(AF68=26,$AD$4>=39,$AD$4<=42),AF68&"H",0) -> 0 | AJ68: 0 | AK68: 0 | AL68: =IF(AND(AK68=26,$AI$4>=39,$AI$4<=42),AK68&"H",0) -> 0
B69: Top Bottom Rail | C69: =IF(ModelNo="1901",(Frame_Width-3.4375)/12,IF(ModelNo="1921",(Frame_Width/2-3.6875)/12,IF(ModelNo="1931",(Frame_Width/3-3.75)/12,0))) -> 0 | D69: 0.238 | E69: 0 | G69: Bottom Hardware | H69: 1 | I69: 0.36 | J69: 0.36 | N69: =IF(AND(O69>0,P69>0),O69,0) -> 0 | O69: =IF(AND($N$4<=18,$N$4>16),18,0) -> 0 | P69: =IF(AND(O69=18,$M$4>=4,$M$4<=9),O69&"A",0) -> 0 | S69: =IF(AND(T69>0,U69>0),T69,0) -> 0 | T69: =IF(AND($S$4<=18,$S$4>16),18,0) -> 0 | U69: =IF(AND(T69=18,$R$4>=4,$R$4<=9),T69&"A",0) -> 0 | AE69: =IF(AND(AF69>0,AG69>0),AF69,0) -> 0 | AF69: =IF(AND($AE$4<=28,$AE$4>26),28,0) -> 0 | AG69: =IF(AND(AF69=28,$AD$4>=7,$AD$4<=12),AF69&"A",0) -> 0 | AJ69: =IF(AND(AK69>0,AL69>0),AK69,0) -> 0 | AK69: =IF(AND($AJ$4<=28,$AJ$4>26),28,0) -> 0 | AL69: =IF(AND(AK69=28,$AI$4>=7,$AI$4<=12),AK69&"A",0) -> 0
B70: Top Stile | C70: =(2*(CDIM_1901-0.90625))/12 -> -0.1510416667 | D70: 0.196 | E70: -0.02960416667 | G70: Bottom Bead | H70: =(((Frame_Width-3.3125)*2)/12)+(((CDIM_L201-1.625)*2)/12) -> -0.8229166667 | I70: 0.028 | J70: -0.02304166667 | N70: 0 | O70: 0 | P70: =IF(AND(O70=18,$M$4>=10,$M$4<=13),O70&"B",0) -> 0 | S70: 0 | T70: 0 | U70: =IF(AND(T70=18,$R$4>=10,$R$4<=13),T70&"B",0) -> 0 | AE70: 0 | AF70: 0 | AG70: =IF(AND(AF70=28,$AD$4>=13,$AD$4<=18),AF70&"B",0) -> 0 | AJ70: 0 | AK70: 0 | AL70: =IF(AND(AK70=28,$AI$4>=13,$AI$4<=18),AK70&"B",0) -> 0
B71: Top Rail Reinf. | C71: =IF(ModelNo="1901",(Frame_Width-9.4375)/12,IF(ModelNo="1921",(Frame_Width/2-9.6875)/12,IF(ModelNo="1931",(Frame_Width/3-9.75)/12,0))) -> 0 | D71: 0.101 | E71: 0 | I71: Top Sash | J71: =TRUNC(SUM(J53:J61)+1+GRID) ->  | N71: 0 | O71: 0 | P71: =IF(AND(O71=18,$M$4>=14,$M$4<=18),O71&"C",0) -> 0 | S71: 0 | T71: 0 | U71: =IF(AND(T71=18,$R$4>=14,$R$4<=18),T71&"C",0) -> 0 | AE71: 0 | AF71: 0 | AG71: =IF(AND(AF71=28,$AD$4>=19,$AD$4<=23),AF71&"C",0) -> 0 | AJ71: 0 | AK71: 0 | AL71: =IF(AND(AK71=28,$AI$4>=19,$AI$4<=23),AK71&"C",0) -> 0
B72: Top Stile Reinf | C72: =IF(STILE_REINF>0,(((((DDIM_1901-11))/2)*2)/12)*2,0) -> 0 | D72: 0.133 | E72: 0 | I72: Bott. Sash | J72: =TRUNC(SUM(J62:J70)+GRID) ->  | N72: 0 | O72: 0 | P72: =IF(AND(O72=18,$M$4>=19,$M$4<=21),O72&"D",0) -> 0 | S72: 0 | T72: 0 | U72: =IF(AND(T72=18,$R$4>=19,$R$4<=21),T72&"D",0) -> 0 | AE72: 0 | AF72: 0 | AG72: =IF(AND(AF72=28,$AD$4>=24,$AD$4<=28),AF72&"D",0) -> 0 | AJ72: 0 | AK72: 0 | AL72: =IF(AND(AK72=28,$AI$4>=24,$AI$4<=28),AK72&"D",0) -> 0
B73: Top Glass | C73: =IF(ModelNo="1901",(Data!D580*Data!D581)/144,IF(ModelNo="1921",(Data!D597*Data!D598)/144,IF(ModelNo="1931",(Data!D614*Data!D615)/144,0))) -> 0 | D73: =GLASS_WGT ->  | N73: 0 | O73: 0 | P73: =IF(AND(O73=18,$M$4>=22,$M$4<=24),O73&"E",0) -> 0 | S73: 0 | T73: 0 | U73: =IF(AND(T73=18,$R$4>=22,$R$4<=24),T73&"E",0) -> 0 | AE73: 0 | AF73: 0 | AG73: =IF(AND(AF73=28,$AD$4>=29,$AD$4<=32),AF73&"E",0) -> 0 | AJ73: 0 | AK73: 0 | AL73: =IF(AND(AK73=28,$AI$4>=29,$AI$4<=32),AK73&"E",0) -> 0
B74: Top Spacer | C74: =IF(ModelNo="1901",((Data!D580*2)+(Data!D581*2))/12,IF(ModelNo="1901",((Data!D597*2)+(Data!D598*2))/12,IF(ModelNo="1901",((Data!D614*2)+(Data!D615*2))/12,0))) -> 0 | D74: 0.0536 | E74: 0 | N74: 0 | O74: 0 | P74: =IF(AND(O74=18,$M$4>=25,$M$4<=26),O74&"F",0) -> 0 | S74: 0 | T74: 0 | U74: =IF(AND(T74=18,$R$4>=25,$R$4<=26),T74&"F",0) -> 0 | AE74: 0 | AF74: 0 | AG74: =IF(AND(AF74=28,$AD$4>=33,$AD$4<=36),AF74&"F",0) -> 0 | AJ74: 0 | AK74: 0 | AL74: =IF(AND(AK74=28,$AI$4>=33,$AI$4<=36),AK74&"F",0) -> 0
B75: Top Hardware | C75: 1 | D75: 0.2 | E75: 0.2 | N75: 0 | O75: 0 | P75: =IF(AND(O75=18,$M$4>=27,$M$4<=29),O75&"G",0) -> 0 | S75: 0 | T75: 0 | U75: =IF(AND(T75=18,$R$4>=27,$R$4<=29),T75&"G",0) -> 0 | AE75: 0 | AF75: 0 | AG75: =IF(AND(AF75=28,$AD$4>=37,$AD$4<=40),AF75&"G",0) -> 0 | AJ75: 0 | AK75: 0 | AL75: =IF(AND(AK75=28,$AI$4>=37,$AI$4<=40),AK75&"G",0) -> 0
B76: Top Bead | C76: =(((Frame_Width-4.2)*2)+((DDIM_1901-1.75)*2))/12 -> -0.9916666667 | D76: 0.021 | E76: -0.020825 | N76: 0 | O76: 0 | P76: =IF(AND(O76=18,$M$4>=30,$M$4<=32),O76&"H",0) -> 0 | S76: 0 | T76: 0 | U76: =IF(AND(T76=18,$R$4>=30,$R$4<=32),T76&"H",0) -> 0 | AE76: 0 | AF76: 0 | AG76: =IF(AND(AF76=28,$AD$4>=41,$AD$4<=43),AF76&"H",0) -> 0 | AJ76: 0 | AK76: 0 | AL76: =IF(AND(AK76=28,$AI$4>=41,$AI$4<=43),AK76&"H",0) -> 0
B77: Bottom Top Rail | C77: =IF(ModelNo="1901",(Frame_Width-2.1875)/12,IF(ModelNo="1921",(Frame_Width/2-2.4375)/12,IF(ModelNo="1931",(Frame_Width/3-2.5)/12,0))) -> 0 | D77: 0.221 | E77: 0 | N77: 0 | O77: 0 | P77: =IF(AND(O77=18,$M$4>=33,$M$4<=34),O77&"I",0) -> 0 | S77: 0 | T77: 0 | U77: =IF(AND(T77=18,$R$4>=33,$R$4<=34),T77&"I",0) -> 0 | AE77: 0 | AF77: 0 | AG77: =IF(AND(AF77=28,$AD$4>=44,$AD$4<=45),AF77&"I",0) -> 0 | AJ77: 0 | AK77: 0 | AL77: =IF(AND(AK77=28,$AI$4>=44,$AI$4<=45),AK77&"I",0) -> 0
B78: Bottom Bottom Rail | C78: =IF(ModelNo="1901",(Frame_Width-2.1875)/12,IF(ModelNo="1921",(Frame_Width/2-2.4375)/12,IF(ModelNo="1931",(Frame_Width/3-2.5)/12,0))) -> 0 | D78: 0.196 | E78: 0 | N78: 0 | O78: 0 | P78: =IF(AND(O78=18,$M$4>=35,$M$4<=36),"Dbl."&O78&"C",0) -> 0 | S78: 0 | T78: 0 | U78: =IF(AND(T78=18,$R$4>=35,$R$4<=36),"Dbl."&T78&"C",0) -> 0 | AE78: 0 | AF78: =IF(AND($AE$4<=30,$AE$4>28),30,0) -> 0 | AG78: =IF(AND(AF78=30,$AD$4>=8,$AD$4<=13),AF78&"A",0) -> 0 | AJ78: 0 | AK78: =IF(AND($AJ$4<=30,$AJ$4>28),30,0) -> 0 | AL78: =IF(AND(AK78=30,$AI$4>=8,$AI$4<=13),AK78&"A",0) -> 0
B79: Bottom Stile | C79: =(2*(CDIM_1901-0.90925))/12 -> -0.1515416667 | D79: 0.196 | E79: -0.02970216667 | N79: 0 | O79: 0 | P79: =IF(AND(O79=18,$M$4>=37,$M$4<=42),"Dbl."&O79&"D",0) -> 0 | S79: 0 | T79: 0 | U79: =IF(AND(T79=18,$R$4>=37,$R$4<=42),"Dbl."&T79&"D",0) -> 0 | AE79: 0 | AF79: 0 | AG79: =IF(AND(AF79=30,$AD$4>=14,$AD$4<=19),AF79&"B",0) -> 0 | AJ79: 0 | AK79: 0 | AL79: =IF(AND(AK79=30,$AI$4>=14,$AI$4<=19),AK79&"B",0) -> 0
B80: DS_Bott Rail Reinf. | C80: =IF(AND(ModelNo="1901",STILE_REINF>0),(Frame_Width-8.4375)/12,IF(AND(ModelNo="1921",STILE_REINF>0),(Frame_Width/2-8.6875)/12,IF(AND(ModelNo="1931",STILE_REINF>0),(Frame_Width/3-8.75)/12,0))) -> 0 | D80: 0.133 | E80: =C80*D80 -> 0 | N80: 0 | O80: 0 | P80: =IF(AND(O80=18,$M$4>=43,$M$4<=48),"Dbl."&O80&"E",0) -> 0 | S80: 0 | T80: 0 | U80: =IF(AND(T80=18,$R$4>=43,$R$4<=48),"Dbl."&T80&"E",0) -> 0 | AE80: 0 | AF80: 0 | AG80: =IF(AND(AF80=30,$AD$4>=20,$AD$4<=24),AF80&"C",0) -> 0 | AJ80: 0 | AK80: 0 | AL80: =IF(AND(AK80=30,$AI$4>=20,$AI$4<=24),AK80&"C",0) -> 0
B81: Bottom Stile Reinf. | C81: =IF(STILE_REINF>0,(((((CDIM_1901-4.25))/2)*2)/12)*2,0) -> 0 | D81: 0.133 | E81: 0 | N81: 0 | O81: 0 | P81: =IF(AND(O81=18,$M$4>=49,$M$4<=52),"Dbl."&O81&"F",0) -> 0 | S81: 0 | T81: 0 | U81: =IF(AND(T81=18,$R$4>=49,$R$4<=52),"Dbl."&T81&"F",0) -> 0 | AE81: 0 | AF81: 0 | AG81: =IF(AND(AF81=30,$AD$4>=25,$AD$4<=29),AF81&"D",0) -> 0 | AJ81: 0 | AK81: 0 | AL81: =IF(AND(AK81=30,$AI$4>=25,$AI$4<=29),AK81&"D",0) -> 0
B82: Bottom Glass | C82: =IF(ModelNo="1901",(Data!D582*Data!D583)/144,IF(ModelNo="1921",(Data!D599*Data!D600)/144,IF(ModelNo="1931",(Data!D616*Data!D617)/144,0))) -> 0 | D82: =GLASS_WGT ->  | N82: 0 | O82: 0 | P82: =IF(AND(O82=18,$M$4>=53,$M$4<=58),"Dbl."&O82&"G",0) -> 0 | S82: 0 | T82: 0 | U82: =IF(AND(T82=18,$R$4>=53,$R$4<=58),"Dbl."&T82&"G",0) -> 0 | AE82: 0 | AF82: 0 | AG82: =IF(AND(AF82=30,$AD$4>=30,$AD$4<=33),AF82&"E",0) -> 0 | AJ82: 0 | AK82: 0 | AL82: =IF(AND(AK82=30,$AI$4>=30,$AI$4<=33),AK82&"E",0) -> 0
B83: Bottom Spacer | C83: =IF(ModelNo="1901",((Data!D582*2)+(Data!D583*2))/12,IF(ModelNo="1921",((Data!D599*2)+(Data!D600*2))/12,IF(ModelNo="1931",((Data!D616*2)+(Data!D617*2))/12,0))) -> 0 | D83: 0.0536 | E83: 0 | N83: 0 | O83: 0 | P83: =IF(AND(O83=18,$M$4>=59,$M$4<=64),"Dbl."&O83&"H",0) -> 0 | S83: 0 | T83: 0 | U83: =IF(AND(T83=18,$R$4>=59,$R$4<=64),"Dbl."&T83&"H",0) -> 0 | AE83: 0 | AF83: 0 | AG83: =IF(AND(AF83=30,$AD$4>=34,$AD$4<=37),AF83&"F",0) -> 0 | AJ83: 0 | AK83: 0 | AL83: =IF(AND(AK83=30,$AI$4>=34,$AI$4<=37),AK83&"F",0) -> 0
B84: Bottom Hardware | C84: 1 | D84: 0.36 | E84: 0.36 | N84: 0 | O84: 0 | P84: =IF(AND(O84=18,$M$4>=65,$M$4<=68),"Dbl."&O84&"I",0) -> 0 | S84: 0 | T84: 0 | U84: =IF(AND(T84=18,$R$4>=65,$R$4<=68),"Dbl."&T84&"I",0) -> 0 | AE84: 0 | AF84: 0 | AG84: =IF(AND(AF84=30,$AD$4>=38,$AD$4<=40),AF84&"G",0) -> 0 | AJ84: 0 | AK84: 0 | AL84: =IF(AND(AK84=30,$AI$4>=38,$AI$4<=40),AK84&"G",0) -> 0
B85: Bottom Bead | C85: =(((Frame_Width-2.95)*2)+((CDIM_1901-1.75)*2))/12 -> -0.7833333333 | D85: 0.021 | E85: -0.01645 | N85: 0 | O85: =IF(AND($N$4<=20,$N$4>18),20,0) -> 0 | P85: =IF(AND(O85=20,$M$4>=5,$M$4<=10),O85&"A",0) -> 0 | S85: 0 | T85: =IF(AND($S$4<=20,$S$4>18),20,0) -> 0 | U85: =IF(AND(T85=20,$R$4>=5,$R$4<=10),T85&"A",0) -> 0 | AE85: 0 | AF85: 0 | AG85: =IF(AND(AF85=30,$AD$4>=41,$AD$4<=43),AF85&"H",0) -> 0 | AJ85: 0 | AK85: 0 | AL85: =IF(AND(AK85=30,$AI$4>=41,$AI$4<=43),AK85&"H",0) -> 0
D86: Top Sash | E86: =TRUNC(SUM(E68:E76)+3+GRID) ->  | N86: 0 | O86: 0 | P86: =IF(AND(O86=20,$M$4>=11,$M$4<=14),O86&"B",0) -> 0 | S86: 0 | T86: 0 | U86: =IF(AND(T86=20,$R$4>=11,$R$4<=14),T86&"B",0) -> 0 | AE86: 0 | AF86: 0 | AG86: =IF(AND(AF86=30,$AD$4>=44,$AD$4<=45),AF86&"I",0) -> 0 | AJ86: 0 | AK86: 0 | AL86: =IF(AND(AK86=30,$AI$4>=44,$AI$4<=45),AK86&"I",0) -> 0
D87: Bottom Sash | E87: =TRUNC(SUM(E77:E85)+GRID) ->  | N87: 0 | O87: 0 | P87: =IF(AND(O87=20,$M$4>=15,$M$4<=18),O87&"C",0) -> 0 | S87: 0 | T87: 0 | U87: =IF(AND(T87=20,$R$4>=15,$R$4<=18),T87&"C",0) -> 0 | AE87: 0 | AF87: =IF(AND($AE$4<=32,$AE$4>30),32,0) -> 0 | AG87: =IF(AND(AF87=32,$AD$4>=8,$AD$4<=14),AF87&"A",0) -> 0 | AJ87: 0 | AK87: =IF(AND($AJ$4<=32,$AJ$4>30),32,0) -> 0 | AL87: =IF(AND(AK87=32,$AI$4>=8,$AI$4<=14),AK87&"A",0) -> 0
N88: 0 | O88: 0 | P88: =IF(AND(O88=20,$M$4>=19,$M$4<=22),O88&"D",0) -> 0 | S88: 0 | T88: 0 | U88: =IF(AND(T88=20,$R$4>=19,$R$4<=22),T88&"D",0) -> 0 | AE88: 0 | AF88: 0 | AG88: =IF(AND(AF88=32,$AD$4>=15,$AD$4<=20),AF88&"B",0) -> 0 | AJ88: 0 | AK88: 0 | AL88: =IF(AND(AK88=32,$AI$4>=15,$AI$4<=20),AK88&"B",0) -> 0
N89: 0 | O89: 0 | P89: =IF(AND(O89=20,$M$4>=23,$M$4<=26),O89&"E",0) -> 0 | S89: 0 | T89: 0 | U89: =IF(AND(T89=20,$R$4>=23,$R$4<=26),T89&"E",0) -> 0 | AE89: 0 | AF89: 0 | AG89: =IF(AND(AF89=32,$AD$4>=21,$AD$4<=25),AF89&"C",0) -> 0 | AJ89: 0 | AK89: 0 | AL89: =IF(AND(AK89=32,$AI$4>=21,$AI$4<=25),AK89&"C",0) -> 0
N90: 0 | O90: 0 | P90: =IF(AND(O90=20,$M$4>=27,$M$4<=30),O90&"F",0) -> 0 | S90: 0 | T90: 0 | U90: =IF(AND(T90=20,$R$4>=27,$R$4<=30),T90&"F",0) -> 0 | AE90: 0 | AF90: 0 | AG90: =IF(AND(AF90=32,$AD$4>=26,$AD$4<=30),AF90&"D",0) -> 0 | AJ90: 0 | AK90: 0 | AL90: =IF(AND(AK90=32,$AI$4>=26,$AI$4<=30),AK90&"D",0) -> 0
N91: 0 | O91: 0 | P91: =IF(AND(O91=20,$M$4>=31,$M$4<=34),O91&"G",0) -> 0 | S91: 0 | T91: 0 | U91: =IF(AND(T91=20,$R$4>=31,$R$4<=34),T91&"G",0) -> 0 | AE91: 0 | AF91: 0 | AG91: =IF(AND(AF91=32,$AD$4>=31,$AD$4<=34),AF91&"E",0) -> 0 | AJ91: 0 | AK91: 0 | AL91: =IF(AND(AK91=32,$AI$4>=31,$AI$4<=34),AK91&"E",0) -> 0
N92: 0 | O92: 0 | P92: =IF(AND(O92=20,$M$4>=35,$M$4<=37),O92&"H",0) -> 0 | S92: 0 | T92: 0 | U92: =IF(AND(T92=20,$R$4>=35,$R$4<=37),T92&"H",0) -> 0 | AE92: 0 | AF92: 0 | AG92: =IF(AND(AF92=32,$AD$4>=35,$AD$4<=37),AF92&"F",0) -> 0 | AJ92: 0 | AK92: 0 | AL92: =IF(AND(AK92=32,$AI$4>=35,$AI$4<=37),AK92&"F",0) -> 0
N93: 0 | O93: 0 | P93: =IF(AND(O93=20,$M$4>=38,$M$4<=40),O93&"I",0) -> 0 | S93: 0 | T93: 0 | U93: =IF(AND(T93=20,$R$4>=38,$R$4<=40),T93&"I",0) -> 0 | AE93: 0 | AF93: 0 | AG93: =IF(AND(AF93=32,$AD$4>=38,$AD$4<=40),AF93&"G",0) -> 0 | AJ93: 0 | AK93: 0 | AL93: =IF(AND(AK93=32,$AI$4>=38,$AI$4<=40),AK93&"G",0) -> 0
N94: 0 | O94: 0 | P94: =IF(AND(O94=20,$M$4>=41,$M$4<=44),"Dbl."&O94&"D",0) -> 0 | S94: 0 | T94: 0 | U94: =IF(AND(T94=20,$R$4>=41,$R$4<=44),"Dbl."&T94&"D",0) -> 0 | AE94: 0 | AF94: 0 | AG94: =IF(AND(AF94=32,$AD$4>=41,$AD$4<=43),AF94&"H",0) -> 0 | AJ94: 0 | AK94: 0 | AL94: =IF(AND(AK94=32,$AI$4>=41,$AI$4<=43),AK94&"H",0) -> 0
N95: 0 | O95: 0 | P95: =IF(AND(O95=20,$M$4>=45,$M$4<=52),"Dbl."&O95&"E",0) -> 0 | S95: 0 | T95: 0 | U95: =IF(AND(T95=20,$R$4>=45,$R$4<=52),"Dbl."&T95&"E",0) -> 0 | AE95: 0 | AF95: 0 | AG95: =IF(AND(AF95=32,$AD$4>=44,$AD$4<=45),AF95&"I",0) -> 0 | AJ95: 0 | AK95: 0 | AL95: =IF(AND(AK95=32,$AI$4>=44,$AI$4<=45),AK95&"I",0) -> 0
N96: 0 | O96: 0 | P96: =IF(AND(O96=20,$M$4>=53,$M$4<=60),"Dbl."&O96&"F",0) -> 0 | S96: 0 | T96: 0 | U96: =IF(AND(T96=20,$R$4>=53,$R$4<=60),"Dbl."&T96&"F",0) -> 0 | AE96: 0 | AF96: =IF(AND($AE$4<=34,$AE$4>32),34,0) -> 0 | AG96: =IF(AND(AF96=34,$AD$4>=11,$AD$4<=16),AF96&"A",0) -> 0 | AJ96: 0 | AK96: =IF(AND($AJ$4<=34,$AJ$4>32),34,0) -> 0 | AL96: =IF(AND(AK96=34,$AI$4>=11,$AI$4<=16),AK96&"A",0) -> 0
N97: 0 | O97: 0 | P97: =IF(AND(O97=20,$M$4>=61,$M$4<=68),"Dbl."&O97&"G",0) -> 0 | S97: 0 | T97: 0 | U97: =IF(AND(T97=20,$R$4>=61,$R$4<=68),"Dbl."&T97&"G",0) -> 0 | AE97: 0 | AF97: 0 | AG97: =IF(AND(AF97=34,$AD$4>=17,$AD$4<=22),AF97&"B",0) -> 0 | AJ97: 0 | AK97: 0 | AL97: =IF(AND(AK97=34,$AI$4>=17,$AI$4<=22),AK97&"B",0) -> 0
N98: 0 | O98: 0 | P98: =IF(AND(O98=20,$M$4>=69,$M$4<=74),"Dbl."&O98&"H",0) -> 0 | S98: 0 | T98: 0 | U98: =IF(AND(T98=20,$R$4>=69,$R$4<=74),"Dbl."&T98&"H",0) -> 0 | AE98: 0 | AF98: 0 | AG98: =IF(AND(AF98=34,$AD$4>=23,$AD$4<=27),AF98&"C",0) -> 0 | AJ98: 0 | AK98: 0 | AL98: =IF(AND(AK98=34,$AI$4>=23,$AI$4<=27),AK98&"C",0) -> 0
N99: 0 | O99: 0 | P99: =IF(AND(O99=20,$M$4>=75,$M$4<=80),"Dbl."&O99&"I",0) -> 0 | S99: 0 | T99: 0 | U99: =IF(AND(T99=20,$R$4>=75,$R$4<=80),"Dbl."&T99&"I",0) -> 0 | AE99: 0 | AF99: 0 | AG99: =IF(AND(AF99=34,$AD$4>=28,$AD$4<=32),AF99&"D",0) -> 0 | AJ99: 0 | AK99: 0 | AL99: =IF(AND(AK99=34,$AI$4>=28,$AI$4<=32),AK99&"D",0) -> 0
N100: 0 | O100: =IF(AND($N$4<=22,$N$4>20),22,0) -> 0 | P100: =IF(AND(O100=22,$M$4>=5,$M$4<=10),O100&"A",0) -> 0 | S100: 0 | T100: =IF(AND($S$4<=22,$S$4>20),22,0) -> 0 | U100: =IF(AND(T100=22,$R$4>=5,$R$4<=10),T100&"A",0) -> 0 | AE100: 0 | AF100: 0 | AG100: =IF(AND(AF100=34,$AD$4>=33,$AD$4<=34),AF100&"E",0) -> 0 | AJ100: 0 | AK100: 0 | AL100: =IF(AND(AK100=34,$AI$4>=33,$AI$4<=34),AK100&"E",0) -> 0
N101: =IF(AND(O101>0,P101>0),O101,0) -> 0 | O101: 0 | P101: =IF(AND(O101=22,$M$4>=11,$M$4<=16),O101&"B",0) -> 0 | S101: 0 | T101: 0 | U101: =IF(AND(T101=22,$R$4>=11,$R$4<=16),T101&"B",0) -> 0 | AE101: 0 | AF101: 0 | AG101: =IF(AND(AF101=34,$AD$4>=35,$AD$4<=37),AF101&"F",0) -> 0 | AJ101: 0 | AK101: 0 | AL101: =IF(AND(AK101=34,$AI$4>=35,$AI$4<=37),AK101&"F",0) -> 0
N102: 0 | O102: 0 | P102: =IF(AND(O102=22,$M$4>=17,$M$4<=21),O102&"C",0) -> 0 | S102: 0 | T102: 0 | U102: =IF(AND(T102=22,$R$4>=17,$R$4<=21),T102&"C",0) -> 0 | AE102: 0 | AF102: 0 | AG102: =IF(AND(AF102=34,$AD$4>=38,$AD$4<=40),AF102&"G",0) -> 0 | AJ102: 0 | AK102: 0 | AL102: =IF(AND(AK102=34,$AI$4>=38,$AI$4<=40),AK102&"G",0) -> 0
N103: 0 | O103: 0 | P103: =IF(AND(O103=22,$M$4>=22,$M$4<=24),O103&"D",0) -> 0 | S103: 0 | T103: 0 | U103: =IF(AND(T103=22,$R$4>=22,$R$4<=24),T103&"D",0) -> 0 | AE103: 0 | AF103: 0 | AG103: =IF(AND(AF103=34,$AD$4>=41,$AD$4<=43),AF103&"H",0) -> 0 | AJ103: 0 | AK103: 0 | AL103: =IF(AND(AK103=34,$AI$4>=41,$AI$4<=43),AK103&"H",0) -> 0
N104: 0 | O104: 0 | P104: =IF(AND(O104=22,$M$4>=25,$M$4<=27),O104&"E",0) -> 0 | S104: 0 | T104: 0 | U104: =IF(AND(T104=22,$R$4>=25,$R$4<=27),T104&"E",0) -> 0 | AE104: 0 | AF104: 0 | AG104: =IF(AND(AF104=34,$AD$4>=44,$AD$4<=45),AF104&"I",0) -> 0 | AJ104: 0 | AK104: 0 | AL104: =IF(AND(AK104=34,$AI$4>=44,$AI$4<=45),AK104&"I",0) -> 0
N105: 0 | O105: 0 | P105: =IF(AND(O105=22,$M$4>=28,$M$4<=30),O105&"F",0) -> 0 | S105: 0 | T105: 0 | U105: =IF(AND(T105=22,$R$4>=28,$R$4<=30),T105&"F",0) -> 0 | AE105: 0 | AF105: =IF(AND($AE$4<=36,$AE$4>34),36,0) -> 0 | AG105: =IF(AND(AF105=36,$AD$4>=11,$AD$4<=16),AF105&"A",0) -> 0 | AJ105: 0 | AK105: =IF(AND($AJ$4<=36,$AJ$4>34),36,0) -> 0 | AL105: =IF(AND(AK105=36,$AI$4>=11,$AI$4<=16),AK105&"A",0) -> 0
N106: 0 | O106: 0 | P106: =IF(AND(O106=22,$M$4>=31,$M$4<=34),O106&"G",0) -> 0 | S106: 0 | T106: 0 | U106: =IF(AND(T106=22,$R$4>=31,$R$4<=34),T106&"G",0) -> 0 | AE106: 0 | AF106: 0 | AG106: =IF(AND(AF106=36,$AD$4>=17,$AD$4<=22),AF106&"B",0) -> 0 | AJ106: 0 | AK106: 0 | AL106: =IF(AND(AK106=36,$AI$4>=17,$AI$4<=22),AK106&"B",0) -> 0
N107: 0 | O107: 0 | P107: =IF(AND(O107=22,$M$4>=35,$M$4<=37),O107&"H",0) -> 0 | S107: 0 | T107: 0 | U107: =IF(AND(T107=22,$R$4>=35,$R$4<=37),T107&"H",0) -> 0 | AE107: 0 | AF107: 0 | AG107: =IF(AND(AF107=36,$AD$4>=23,$AD$4<=27),AF107&"C",0) -> 0 | AJ107: 0 | AK107: 0 | AL107: =IF(AND(AK107=36,$AI$4>=23,$AI$4<=27),AK107&"C",0) -> 0
N108: 0 | O108: 0 | P108: =IF(AND(O108=22,$M$4>=38,$M$4<=40),O108&"I",0) -> 0 | S108: 0 | T108: 0 | U108: =IF(AND(T108=22,$R$4>=38,$R$4<=40),T108&"I",0) -> 0 | AE108: 0 | AF108: 0 | AG108: =IF(AND(AF108=36,$AD$4>=28,$AD$4<=32),AF108&"D",0) -> 0 | AJ108: 0 | AK108: 0 | AL108: =IF(AND(AK108=36,$AI$4>=28,$AI$4<=32),AK108&"D",0) -> 0
N109: 0 | O109: 0 | P109: =IF(AND(O109=22,$M$4>=41,$M$4<=42),"Dbl."&O109&"C",0) -> 0 | S109: 0 | T109: 0 | U109: =IF(AND(T109=22,$R$4>=41,$R$4<=42),"Dbl."&T109&"C",0) -> 0 | AE109: 0 | AF109: 0 | AG109: =IF(AND(AF109=36,$AD$4>=33,$AD$4<=34),AF109&"E",0) -> 0 | AJ109: 0 | AK109: 0 | AL109: =IF(AND(AK109=36,$AI$4>=33,$AI$4<=34),AK109&"E",0) -> 0
N110: 0 | O110: 0 | P110: =IF(AND(O110=22,$M$4>=43,$M$4<=48),"Dbl."&O110&"D",0) -> 0 | S110: 0 | T110: 0 | U110: =IF(AND(T110=22,$R$4>=43,$R$4<=48),"Dbl."&T110&"D",0) -> 0 | AE110: 0 | AF110: 0 | AG110: =IF(AND(AF110=36,$AD$4>=35,$AD$4<=37),AF110&"F",0) -> 0 | AJ110: 0 | AK110: 0 | AL110: =IF(AND(AK110=36,$AI$4>=35,$AI$4<=37),AK110&"F",0) -> 0
N111: 0 | O111: 0 | P111: =IF(AND(O111=22,$M$4>=49,$M$4<=54),"Dbl."&O111&"E",0) -> 0 | S111: 0 | T111: 0 | U111: =IF(AND(T111=22,$R$4>=49,$R$4<=54),"Dbl."&T111&"E",0) -> 0 | AE111: 0 | AF111: 0 | AG111: =IF(AND(AF111=36,$AD$4>=38,$AD$4<=40),AF111&"G",0) -> 0 | AJ111: 0 | AK111: 0 | AL111: =IF(AND(AK111=36,$AI$4>=38,$AI$4<=40),AK111&"G",0) -> 0
N112: 0 | O112: 0 | P112: =IF(AND(O112=22,$M$4>=55,$M$4<=60),"Dbl."&O112&"F",0) -> 0 | S112: 0 | T112: 0 | U112: =IF(AND(T112=22,$R$4>=55,$R$4<=60),"Dbl."&T112&"F",0) -> 0 | AE112: 0 | AF112: 0 | AG112: =IF(AND(AF112=36,$AD$4>=41,$AD$4<=43),AF112&"H",0) -> 0 | AJ112: 0 | AK112: 0 | AL112: =IF(AND(AK112=36,$AI$4>=41,$AI$4<=43),AK112&"H",0) -> 0
N113: 0 | O113: 0 | P113: =IF(AND(O113=22,$M$4>=61,$M$4<=68),"Dbl."&O113&"G",0) -> 0 | S113: 0 | T113: 0 | U113: =IF(AND(T113=22,$R$4>=61,$R$4<=68),"Dbl."&T113&"G",0) -> 0 | AE113: 0 | AF113: 0 | AG113: =IF(AND(AF113=36,$AD$4>=44,$AD$4<=45),AF113&"I",0) -> 0 | AJ113: 0 | AK113: 0 | AL113: =IF(AND(AK113=36,$AI$4>=44,$AI$4<=45),AK113&"I",0) -> 0
N114: 0 | O114: 0 | P114: =IF(AND(O114=22,$M$4>=69,$M$4<=74),"Dbl."&O114&"H",0) -> 0 | S114: 0 | T114: 0 | U114: =IF(AND(T114=22,$R$4>=69,$R$4<=74),"Dbl."&T114&"H",0) -> 0 | AE114: 0 | AF114: =IF(AND($AE$4<=38,$AE$4>36),38,0) -> 0 | AG114: =IF(AND(AF114=38,$AD$4>=11,$AD$4<=16),AF114&"A",0) -> 0 | AJ114: 0 | AK114: =IF(AND($AJ$4<=38,$AJ$4>36),38,0) -> 0 | AL114: =IF(AND(AK114=38,$AI$4>=11,$AI$4<=16),AK114&"A",0) -> 0
N115: 0 | O115: 0 | P115: =IF(AND(O115=22,$M$4>=75,$M$4<=80),"Dbl."&O115&"I",0) -> 0 | S115: 0 | T115: 0 | U115: =IF(AND(T115=22,$R$4>=75,$R$4<=80),"Dbl."&T115&"I",0) -> 0 | AE115: 0 | AF115: 0 | AG115: =IF(AND(AF115=38,$AD$4>=17,$AD$4<=22),AF115&"B",0) -> 0 | AJ115: 0 | AK115: 0 | AL115: =IF(AND(AK115=38,$AI$4>=17,$AI$4<=22),AK115&"B",0) -> 0
N116: 0 | O116: =IF(AND($N$4<=24,$N$4>22),24,0) -> 0 | P116: =IF(AND(O116=24,$M$4>=6,$M$4<=10),O116&"A",0) -> 0 | S116: 0 | T116: =IF(AND($S$4<=24,$S$4>22),24,0) -> 0 | U116: =IF(AND(T116=24,$R$4>=6,$R$4<=10),T116&"A",0) -> 0 | AE116: 0 | AF116: 0 | AG116: =IF(AND(AF116=38,$AD$4>=23,$AD$4<=27),AF116&"C",0) -> 0 | AJ116: 0 | AK116: 0 | AL116: =IF(AND(AK116=38,$AI$4>=23,$AI$4<=27),AK116&"C",0) -> 0
N117: 0 | O117: 0 | P117: =IF(AND(O117=24,$M$4>=11,$M$4<=17),O117&"B",0) -> 0 | S117: 0 | T117: 0 | U117: =IF(AND(T117=24,$R$4>=11,$R$4<=17),T117&"B",0) -> 0 | AE117: 0 | AF117: 0 | AG117: =IF(AND(AF117=38,$AD$4>=28,$AD$4<=32),AF117&"D",0) -> 0 | AJ117: 0 | AK117: 0 | AL117: =IF(AND(AK117=38,$AI$4>=28,$AI$4<=32),AK117&"D",0) -> 0
N118: 0 | O118: 0 | P118: =IF(AND(O118=24,$M$4>=18,$M$4<=22),O118&"C",0) -> 0 | S118: 0 | T118: 0 | U118: =IF(AND(T118=24,$R$4>=18,$R$4<=22),T118&"C",0) -> 0 | AE118: 0 | AF118: 0 | AG118: =IF(AND(AF118=38,$AD$4>=33,$AD$4<=34),AF118&"E",0) -> 0 | AJ118: 0 | AK118: 0 | AL118: =IF(AND(AK118=38,$AI$4>=33,$AI$4<=34),AK118&"E",0) -> 0
N119: 0 | O119: 0 | P119: =IF(AND(O119=24,$M$4>=23,$M$4<=25),O119&"D",0) -> 0 | S119: 0 | T119: 0 | U119: =IF(AND(T119=24,$R$4>=23,$R$4<=25),T119&"D",0) -> 0 | AE119: 0 | AF119: 0 | AG119: =IF(AND(AF119=38,$AD$4>=35,$AD$4<=37),AF119&"F",0) -> 0 | AJ119: 0 | AK119: 0 | AL119: =IF(AND(AK119=38,$AI$4>=35,$AI$4<=37),AK119&"F",0) -> 0
N120: 0 | O120: 0 | P120: =IF(AND(O120=24,$M$4>=26,$M$4<=28),O120&"E",0) -> 0 | S120: 0 | T120: 0 | U120: =IF(AND(T120=24,$R$4>=26,$R$4<=28),T120&"E",0) -> 0 | AE120: 0 | AF120: 0 | AG120: =IF(AND(AF120=38,$AD$4>=38,$AD$4<=40),AF120&"G",0) -> 0 | AJ120: 0 | AK120: 0 | AL120: =IF(AND(AK120=38,$AI$4>=38,$AI$4<=40),AK120&"G",0) -> 0
N121: 0 | O121: 0 | P121: =IF(AND(O121=24,$M$4>=29,$M$4<=30),O121&"F",0) -> 0 | S121: 0 | T121: 0 | U121: =IF(AND(T121=24,$R$4>=29,$R$4<=30),T121&"F",0) -> 0 | AE121: 0 | AF121: 0 | AG121: =IF(AND(AF121=38,$AD$4>=41,$AD$4<=43),AF121&"H",0) -> 0 | AJ121: 0 | AK121: 0 | AL121: =IF(AND(AK121=38,$AI$4>=41,$AI$4<=43),AK121&"H",0) -> 0
N122: 0 | O122: 0 | P122: =IF(AND(O122=24,$M$4>=31,$M$4<=34),O122&"G",0) -> 0 | S122: 0 | T122: 0 | U122: =IF(AND(T122=24,$R$4>=31,$R$4<=34),T122&"G",0) -> 0 | AE122: 0 | AF122: 0 | AG122: =IF(AND(AF122=38,$AD$4>=44,$AD$4<=45),AF122&"I",0) -> 0 | AJ122: 0 | AK122: 0 | AL122: =IF(AND(AK122=38,$AI$4>=44,$AI$4<=45),AK122&"I",0) -> 0
N123: 0 | O123: 0 | P123: =IF(AND(O123=24,$M$4>=35,$M$4<=37),O123&"H",0) -> 0 | S123: 0 | T123: 0 | U123: =IF(AND(T123=24,$R$4>=35,$R$4<=37),T123&"H",0) -> 0 | AE123: 0 | AF123: =IF(AND($AE$4<=40,$AE$4>38),40,0) -> 0 | AG123: =IF(AND(AF123=40,$AD$4>=11,$AD$4<=16),AF123&"A",0) -> 0 | AJ123: 0 | AK123: =IF(AND($AJ$4<=40,$AJ$4>38),40,0) -> 0 | AL123: =IF(AND(AK123=40,$AI$4>=11,$AI$4<=16),AK123&"A",0) -> 0
N124: 0 | O124: 0 | P124: =IF(AND(O124=24,$M$4>=38,$M$4<=40),O124&"I",0) -> 0 | S124: 0 | T124: 0 | U124: =IF(AND(T124=24,$R$4>=38,$R$4<=40),T124&"I",0) -> 0 | AE124: 0 | AF124: 0 | AG124: =IF(AND(AF124=40,$AD$4>=17,$AD$4<=22),AF124&"B",0) -> 0 | AJ124: 0 | AK124: 0 | AL124: =IF(AND(AK124=40,$AI$4>=17,$AI$4<=22),AK124&"B",0) -> 0
N125: =IF(AND(O125>0,P125>0),O125,0) -> 0 | O125: 0 | P125: =IF(AND(O125=24,$M$4>=41,$M$4<=44),"Dbl."&O125&"C",0) -> 0 | S125: 0 | T125: 0 | U125: =IF(AND(T125=24,$R$4>=41,$R$4<=44),"Dbl."&T125&"C",0) -> 0 | AE125: 0 | AF125: 0 | AG125: =IF(AND(AF125=40,$AD$4>=23,$AD$4<=27),AF125&"C",0) -> 0 | AJ125: 0 | AK125: 0 | AL125: =IF(AND(AK125=40,$AI$4>=23,$AI$4<=27),AK125&"C",0) -> 0
N126: 0 | O126: 0 | P126: =IF(AND(O126=24,$M$4>=45,$M$4<=50),"Dbl."&O126&"D",0) -> 0 | S126: 0 | T126: 0 | U126: =IF(AND(T126=24,$R$4>=45,$R$4<=50),"Dbl."&T126&"D",0) -> 0 | AE126: 0 | AF126: 0 | AG126: =IF(AND(AF126=40,$AD$4>=28,$AD$4<=32),AF126&"D",0) -> 0 | AJ126: 0 | AK126: 0 | AL126: =IF(AND(AK126=40,$AI$4>=28,$AI$4<=32),AK126&"D",0) -> 0
N127: 0 | O127: 0 | P127: =IF(AND(O127=24,$M$4>=51,$M$4<=56),"Dbl."&O127&"E",0) -> 0 | S127: 0 | T127: 0 | U127: =IF(AND(T127=24,$R$4>=51,$R$4<=56),"Dbl."&T127&"E",0) -> 0 | AE127: 0 | AF127: 0 | AG127: =IF(AND(AF127=40,$AD$4>=33,$AD$4<=34),AF127&"E",0) -> 0 | AJ127: 0 | AK127: 0 | AL127: =IF(AND(AK127=40,$AI$4>=33,$AI$4<=34),AK127&"E",0) -> 0
N128: 0 | O128: 0 | P128: =IF(AND(O128=24,$M$4>=57,$M$4<=60),"Dbl."&O128&"F",0) -> 0 | S128: 0 | T128: 0 | U128: =IF(AND(T128=24,$R$4>=57,$R$4<=60),"Dbl."&T128&"F",0) -> 0 | AE128: 0 | AF128: 0 | AG128: =IF(AND(AF128=40,$AD$4>=35,$AD$4<=37),AF128&"F",0) -> 0 | AJ128: 0 | AK128: 0 | AL128: =IF(AND(AK128=40,$AI$4>=35,$AI$4<=37),AK128&"F",0) -> 0
N129: 0 | O129: 0 | P129: =IF(AND(O129=24,$M$4>=61,$M$4<=68),"Dbl."&O129&"G",0) -> 0 | S129: 0 | T129: 0 | U129: =IF(AND(T129=24,$R$4>=61,$R$4<=68),"Dbl."&T129&"G",0) -> 0 | AE129: 0 | AF129: 0 | AG129: =IF(AND(AF129=40,$AD$4>=38,$AD$4<=40),AF129&"G",0) -> 0 | AJ129: 0 | AK129: 0 | AL129: =IF(AND(AK129=40,$AI$4>=38,$AI$4<=40),AK129&"G",0) -> 0
N130: 0 | O130: 0 | P130: =IF(AND(O130=24,$M$4>=69,$M$4<=74),"Dbl."&O130&"H",0) -> 0 | S130: 0 | T130: 0 | U130: =IF(AND(T130=24,$R$4>=69,$R$4<=74),"Dbl."&T130&"H",0) -> 0 | AE130: 0 | AF130: 0 | AG130: =IF(AND(AF130=40,$AD$4>=41,$AD$4<=42),AF130&"H",0) -> 0 | AJ130: 0 | AK130: 0 | AL130: =IF(AND(AK130=40,$AI$4>=41,$AI$4<=42),AK130&"H",0) -> 0
N131: 0 | O131: 0 | P131: =IF(AND(O131=24,$M$4>=75,$M$4<=80),"Dbl."&O131&"I",0) -> 0 | S131: 0 | T131: 0 | U131: =IF(AND(T131=24,$R$4>=75,$R$4<=80),"Dbl."&T131&"I",0) -> 0 | AE131: 0 | AF131: 0 | AG131: =IF(AND(AF131=40,$AD$4>=43,$AD$4<=45),AF131&"I",0) -> 0 | AJ131: 0 | AK131: 0 | AL131: =IF(AND(AK131=40,$AI$4>=43,$AI$4<=45),AK131&"I",0) -> 0
N132: =IF(AND(O132>0,P132>0),O132,0) -> 0 | O132: =IF(AND($N$4<=26,$N$4>24),26,0) -> 0 | P132: =IF(AND(O132=26,$M$4>=6,$M$4<=11),O132&"A",0) -> 0 | S132: 0 | T132: =IF(AND($S$4<=26,$S$4>24),26,0) -> 0 | U132: =IF(AND(T132=26,$R$4>=6,$R$4<=11),T132&"A",0) -> 0 | AE132: 0 | AF132: =IF(AND($AE$4<=42,$AE$4>40),42,0) -> 0 | AG132: =IF(AND(AF132=42,$AD$4>=11,$AD$4<=16),AF132&"A",0) -> 0 | AJ132: 0 | AK132: =IF(AND($AJ$4<=42,$AJ$4>40),42,0) -> 0 | AL132: =IF(AND(AK132=42,$AI$4>=11,$AI$4<=16),AK132&"A",0) -> 0
N133: 0 | O133: 0 | P133: =IF(AND(O133=26,$M$4>=12,$M$4<=17),O133&"B",0) -> 0 | S133: =IF(AND(T133>0,U133>0),T133,0) -> 0 | T133: 0 | U133: =IF(AND(T133=26,$R$4>=12,$R$4<=17),T133&"B",0) -> 0 | AE133: =IF(AND(AF133>0,AG133>0),AF133,0) -> 0 | AF133: 0 | AG133: =IF(AND(AF133=42,$AD$4>=17,$AD$4<=22),AF133&"B",0) -> 0 | AJ133: =IF(AND(AK133>0,AL133>0),AK133,0) -> 0 | AK133: 0 | AL133: =IF(AND(AK133=42,$AI$4>=17,$AI$4<=22),AK133&"B",0) -> 0
N134: 0 | O134: 0 | P134: =IF(AND(O134=26,$M$4>=18,$M$4<=22),O134&"C",0) -> 0 | S134: 0 | T134: 0 | U134: =IF(AND(T134=26,$R$4>=18,$R$4<=22),T134&"C",0) -> 0 | AE134: 0 | AF134: 0 | AG134: =IF(AND(AF134=42,$AD$4>=23,$AD$4<=27),AF134&"C",0) -> 0 | AJ134: 0 | AK134: 0 | AL134: =IF(AND(AK134=42,$AI$4>=23,$AI$4<=27),AK134&"C",0) -> 0
N135: 0 | O135: 0 | P135: =IF(AND(O135=26,$M$4>=23,$M$4<=26),O135&"D",0) -> 0 | S135: 0 | T135: 0 | U135: =IF(AND(T135=26,$R$4>=23,$R$4<=26),T135&"D",0) -> 0 | AE135: 0 | AF135: 0 | AG135: =IF(AND(AF135=42,$AD$4>=28,$AD$4<=31),AF135&"D",0) -> 0 | AJ135: 0 | AK135: 0 | AL135: =IF(AND(AK135=42,$AI$4>=28,$AI$4<=31),AK135&"D",0) -> 0
N136: 0 | O136: 0 | P136: =IF(AND(O136=26,$M$4>=27,$M$4<=30),O136&"E",0) -> 0 | S136: 0 | T136: 0 | U136: =IF(AND(T136=26,$R$4>=27,$R$4<=30),T136&"E",0) -> 0 | AE136: 0 | AF136: 0 | AG136: =IF(AND(AF136=42,$AD$4>=32,$AD$4<=34),AF136&"E",0) -> 0 | AJ136: 0 | AK136: 0 | AL136: =IF(AND(AK136=42,$AI$4>=32,$AI$4<=34),AK136&"E",0) -> 0
N137: 0 | O137: 0 | P137: =IF(AND(O137=26,$M$4>=31,$M$4<=34),O137&"F",0) -> 0 | S137: 0 | T137: 0 | U137: =IF(AND(T137=26,$R$4>=31,$R$4<=34),T137&"F",0) -> 0 | AE137: 0 | AF137: 0 | AG137: =IF(AND(AF137=42,$AD$4>=35,$AD$4<=37),AF137&"F",0) -> 0 | AJ137: 0 | AK137: 0 | AL137: =IF(AND(AK137=42,$AI$4>=35,$AI$4<=37),AK137&"F",0) -> 0
N138: 0 | O138: 0 | P138: =IF(AND(O138=26,$M$4>=35,$M$4<=38),O138&"G",0) -> 0 | S138: 0 | T138: 0 | U138: =IF(AND(T138=26,$R$4>=35,$R$4<=38),T138&"G",0) -> 0 | AE138: 0 | AF138: 0 | AG138: =IF(AND(AF138=42,$AD$4>=38,$AD$4<=40),AF138&"G",0) -> 0 | AJ138: 0 | AK138: 0 | AL138: =IF(AND(AK138=42,$AI$4>=38,$AI$4<=40),AK138&"G",0) -> 0
N139: 0 | O139: 0 | P139: =IF(AND(O139=26,$M$4>=39,$M$4<=42),O139&"H",0) -> 0 | S139: 0 | T139: 0 | U139: =IF(AND(T139=26,$R$4>=39,$R$4<=42),T139&"H",0) -> 0 | AE139: 0 | AF139: 0 | AG139: =IF(AND(AF139=42,$AD$4>=41,$AD$4<=43),AF139&"H",0) -> 0 | AJ139: 0 | AK139: 0 | AL139: =IF(AND(AK139=42,$AI$4>=41,$AI$4<=43),AK139&"H",0) -> 0
N140: 0 | O140: 0 | P140: =IF(AND(O140=26,$M$4>=43,$M$4<=45),O140&"I",0) -> 0 | S140: 0 | T140: 0 | U140: =IF(AND(T140=26,$R$4>=43,$R$4<=45),T140&"I",0) -> 0 | AE140: 0 | AF140: 0 | AG140: =IF(AND(AF140=42,$AD$4>=44,$AD$4<=45),AF140&"I",0) -> 0 | AJ140: 0 | AK140: 0 | AL140: =IF(AND(AK140=42,$AI$4>=44,$AI$4<=45),AK140&"I",0) -> 0
N141: 0 | O141: 0 | P141: =IF(AND(O141=26,$M$4>=46,$M$4<=52),"Dbl."&O141&"D",0) -> 0 | S141: 0 | T141: 0 | U141: =IF(AND(T141=26,$R$4>=46,$R$4<=52),"Dbl."&T141&"D",0) -> 0 | AE141: 0 | AF141: =IF(AND($AE$4<=44,$AE$4>42),44,0) -> 0 | AG141: =IF(AND(AF141=44,$AD$4>=11,$AD$4<=16),AF141&"A",0) -> 0 | AJ141: 0 | AK141: =IF(AND($AJ$4<=44,$AJ$4>42),44,0) -> 0 | AL141: =IF(AND(AK141=44,$AI$4>=11,$AI$4<=16),AK141&"A",0) -> 0
N142: 0 | O142: 0 | P142: =IF(AND(O142=26,$M$4>=53,$M$4<=60),"Dbl."&O142&"E",0) -> 0 | S142: 0 | T142: 0 | U142: =IF(AND(T142=26,$R$4>=53,$R$4<=60),"Dbl."&T142&"E",0) -> 0 | AE142: 0 | AF142: 0 | AG142: =IF(AND(AF142=44,$AD$4>=17,$AD$4<=22),AF142&"B",0) -> 0 | AJ142: 0 | AK142: 0 | AL142: =IF(AND(AK142=44,$AI$4>=17,$AI$4<=22),AK142&"B",0) -> 0
N143: 0 | O143: 0 | P143: =IF(AND(O143=26,$M$4>=61,$M$4<=68),"Dbl."&O143&"F",0) -> 0 | S143: 0 | T143: 0 | U143: =IF(AND(T143=26,$R$4>=61,$R$4<=68),"Dbl."&T143&"F",0) -> 0 | AE143: 0 | AF143: 0 | AG143: =IF(AND(AF143=44,$AD$4>=23,$AD$4<=27),AF143&"C",0) -> 0 | AJ143: 0 | AK143: 0 | AL143: =IF(AND(AK143=44,$AI$4>=23,$AI$4<=27),AK143&"C",0) -> 0
N144: 0 | O144: 0 | P144: =IF(AND(O144=26,$M$4>=69,$M$4<=76),"Dbl."&O144&"G",0) -> 0 | S144: 0 | T144: 0 | U144: =IF(AND(T144=26,$R$4>=69,$R$4<=76),"Dbl."&T144&"G",0) -> 0 | AE144: 0 | AF144: 0 | AG144: =IF(AND(AF144=44,$AD$4>=28,$AD$4<=32),AF144&"D",0) -> 0 | AJ144: 0 | AK144: 0 | AL144: =IF(AND(AK144=44,$AI$4>=28,$AI$4<=32),AK144&"D",0) -> 0
N145: 0 | O145: 0 | P145: =IF(AND(O145=26,$M$4>=77,$M$4<=80),"Dbl."&O145&"H",0) -> 0 | S145: 0 | T145: 0 | U145: =IF(AND(T145=26,$R$4>=77,$R$4<=80),"Dbl."&T145&"H",0) -> 0 | AE145: 0 | AF145: 0 | AG145: =IF(AND(AF145=44,$AD$4>=33,$AD$4<=34),AF145&"E",0) -> 0 | AJ145: 0 | AK145: 0 | AL145: =IF(AND(AK145=44,$AI$4>=33,$AI$4<=34),AK145&"E",0) -> 0
N146: 0 | O146: =IF(AND($N$4<=28,$N$4>26),28,0) -> 0 | P146: =IF(AND(O146=28,$M$4>=7,$M$4<=12),O146&"A",0) -> 0 | S146: 0 | T146: =IF(AND($S$4<=28,$S$4>26),28,0) -> 0 | U146: =IF(AND(T146=28,$R$4>=7,$R$4<=12),T146&"A",0) -> 0 | AE146: 0 | AF146: 0 | AG146: =IF(AND(AF146=44,$AD$4>=35,$AD$4<=37),AF146&"F",0) -> 0 | AJ146: 0 | AK146: 0 | AL146: =IF(AND(AK146=44,$AI$4>=35,$AI$4<=37),AK146&"F",0) -> 0
N147: 0 | O147: 0 | P147: =IF(AND(O147=28,$M$4>=13,$M$4<=18),O147&"B",0) -> 0 | S147: 0 | T147: 0 | U147: =IF(AND(T147=28,$R$4>=13,$R$4<=18),T147&"B",0) -> 0 | AE147: 0 | AF147: 0 | AG147: =IF(AND(AF147=44,$AD$4>=38,$AD$4<=40),AF147&"G",0) -> 0 | AJ147: 0 | AK147: 0 | AL147: =IF(AND(AK147=44,$AI$4>=38,$AI$4<=40),AK147&"G",0) -> 0
N148: 0 | O148: 0 | P148: =IF(AND(O148=28,$M$4>=19,$M$4<=23),O148&"C",0) -> 0 | S148: 0 | T148: 0 | U148: =IF(AND(T148=28,$R$4>=19,$R$4<=23),T148&"C",0) -> 0 | AE148: 0 | AF148: 0 | AG148: =IF(AND(AF148=44,$AD$4>=41,$AD$4<=43),AF148&"H",0) -> 0 | AJ148: 0 | AK148: 0 | AL148: =IF(AND(AK148=44,$AI$4>=41,$AI$4<=43),AK148&"H",0) -> 0
N149: 0 | O149: 0 | P149: =IF(AND(O149=28,$M$4>=24,$M$4<=28),O149&"D",0) -> 0 | S149: 0 | T149: 0 | U149: =IF(AND(T149=28,$R$4>=24,$R$4<=28),T149&"D",0) -> 0 | AE149: 0 | AF149: 0 | AG149: =IF(AND(AF149=44,$AD$4>=44,$AD$4<=45),AF149&"I",0) -> 0 | AJ149: 0 | AK149: 0 | AL149: =IF(AND(AK149=44,$AI$4>=44,$AI$4<=45),AK149&"I",0) -> 0
N150: 0 | O150: 0 | P150: =IF(AND(O150=28,$M$4>=29,$M$4<=32),O150&"E",0) -> 0 | S150: 0 | T150: 0 | U150: =IF(AND(T150=28,$R$4>=29,$R$4<=32),T150&"E",0) -> 0
N151: 0 | O151: 0 | P151: =IF(AND(O151=28,$M$4>=33,$M$4<=36),O151&"F",0) -> 0 | S151: 0 | T151: 0 | U151: =IF(AND(T151=28,$R$4>=33,$R$4<=36),T151&"F",0) -> 0
N152: 0 | O152: 0 | P152: =IF(AND(O152=28,$M$4>=37,$M$4<=40),O152&"G",0) -> 0 | S152: 0 | T152: 0 | U152: =IF(AND(T152=28,$R$4>=37,$R$4<=40),T152&"G",0) -> 0
N153: 0 | O153: 0 | P153: =IF(AND(O153=28,$M$4>=41,$M$4<=43),O153&"H",0) -> 0 | S153: 0 | T153: 0 | U153: =IF(AND(T153=28,$R$4>=41,$R$4<=43),T153&"H",0) -> 0
N154: 0 | O154: 0 | P154: =IF(AND(O154=28,$M$4>=44,$M$4<=45),O154&"I",0) -> 0 | S154: 0 | T154: 0 | U154: =IF(AND(T154=28,$R$4>=44,$R$4<=45),T154&"I",0) -> 0
N155: 0 | O155: 0 | P155: =IF(AND(O155=28,$M$4=46),"Dbl."&O155&"C",0) -> 0 | S155: 0 | T155: 0 | U155: =IF(AND(T155=28,$R$4=46),"Dbl."&T155&"C",0) -> 0
N156: 0 | O156: 0 | P156: =IF(AND(O156=28,$M$4>=47,$M$4<=56),"Dbl."&O156&"D",0) -> 0 | S156: 0 | T156: 0 | U156: =IF(AND(T156=28,$R$4>=47,$R$4<=56),"Dbl."&T156&"D",0) -> 0
N157: 0 | O157: 0 | P157: =IF(AND(O157=28,$M$4>=57,$M$4<=64),"Dbl."&O157&"E",0) -> 0 | S157: 0 | T157: 0 | U157: =IF(AND(T157=28,$R$4>=57,$R$4<=64),"Dbl."&T157&"E",0) -> 0
N158: 0 | O158: 0 | P158: =IF(AND(O158=28,$M$4>=65,$M$4<=72),"Dbl."&O158&"F",0) -> 0 | S158: 0 | T158: 0 | U158: =IF(AND(T158=28,$R$4>=65,$R$4<=72),"Dbl."&T158&"F",0) -> 0
N159: 0 | O159: 0 | P159: =IF(AND(O159=28,$M$4>=73,$M$4<=80),"Dbl."&O159&"G",0) -> 0 | S159: 0 | T159: 0 | U159: =IF(AND(T159=28,$R$4>=73,$R$4<=80),"Dbl."&T159&"G",0) -> 0
N160: 0 | O160: =IF(AND($N$4<=30,$N$4>28),30,0) -> 0 | P160: =IF(AND(O160=30,$M$4>=8,$M$4<=13),O160&"A",0) -> 0 | S160: 0 | T160: =IF(AND($S$4<=30,$S$4>28),30,0) -> 0 | U160: =IF(AND(T160=30,$R$4>=8,$R$4<=13),T160&"A",0) -> 0
N161: 0 | O161: 0 | P161: =IF(AND(O161=30,$M$4>=14,$M$4<=19),O161&"B",0) -> 0 | S161: 0 | T161: 0 | U161: =IF(AND(T161=30,$R$4>=14,$R$4<=19),T161&"B",0) -> 0
N162: 0 | O162: 0 | P162: =IF(AND(O162=30,$M$4>=20,$M$4<=24),O162&"C",0) -> 0 | S162: 0 | T162: 0 | U162: =IF(AND(T162=30,$R$4>=20,$R$4<=24),T162&"C",0) -> 0
N163: 0 | O163: 0 | P163: =IF(AND(O163=30,$M$4>=25,$M$4<=29),O163&"D",0) -> 0 | S163: 0 | T163: 0 | U163: =IF(AND(T163=30,$R$4>=25,$R$4<=29),T163&"D",0) -> 0
N164: =IF(AND(O164>0,P164>0),O164,0) -> 0 | O164: 0 | P164: =IF(AND(O164=30,$M$4>=30,$M$4<=33),O164&"E",0) -> 0 | S164: 0 | T164: 0 | U164: =IF(AND(T164=30,$R$4>=30,$R$4<=33),T164&"E",0) -> 0
N165: 0 | O165: 0 | P165: =IF(AND(O165=30,$M$4>=34,$M$4<=37),O165&"F",0) -> 0 | S165: 0 | T165: 0 | U165: =IF(AND(T165=30,$R$4>=34,$R$4<=37),T165&"F",0) -> 0
N166: 0 | O166: 0 | P166: =IF(AND(O166=30,$M$4>=38,$M$4<=40),O166&"G",0) -> 0 | S166: 0 | T166: 0 | U166: =IF(AND(T166=30,$R$4>=38,$R$4<=40),T166&"G",0) -> 0
N167: 0 | O167: 0 | P167: =IF(AND(O167=30,$M$4>=41,$M$4<=43),O167&"H",0) -> 0 | S167: 0 | T167: 0 | U167: =IF(AND(T167=30,$R$4>=41,$R$4<=43),T167&"H",0) -> 0
N168: 0 | O168: 0 | P168: =IF(AND(O168=30,$M$4>=44,$M$4<=45),O168&"I",0) -> 0 | S168: 0 | T168: 0 | U168: =IF(AND(T168=30,$R$4>=44,$R$4<=45),T168&"I",0) -> 0
N169: 0 | O169: 0 | P169: =IF(AND(O169=30,$M$4>=46,$M$4<=48),"Dbl."&O169&"C",0) -> 0 | S169: 0 | T169: 0 | U169: =IF(AND(T169=30,$R$4>=46,$R$4<=48),"Dbl."&T169&"C",0) -> 0
N170: 0 | O170: 0 | P170: =IF(AND(O170=30,$M$4>=49,$M$4<=58),"Dbl."&O170&"D",0) -> 0 | S170: 0 | T170: 0 | U170: =IF(AND(T170=30,$R$4>=49,$R$4<=58),"Dbl."&T170&"D",0) -> 0
N171: 0 | O171: 0 | P171: =IF(AND(O171=30,$M$4>=59,$M$4<=66),"Dbl."&O171&"E",0) -> 0 | S171: 0 | T171: 0 | U171: =IF(AND(T171=30,$R$4>=59,$R$4<=66),"Dbl."&T171&"E",0) -> 0
N172: 0 | O172: 0 | P172: =IF(AND(O172=30,$M$4>=67,$M$4<=74),"Dbl."&O172&"F",0) -> 0 | S172: 0 | T172: 0 | U172: =IF(AND(T172=30,$R$4>=67,$R$4<=74),"Dbl."&T172&"F",0) -> 0
N173: 0 | O173: 0 | P173: =IF(AND(O173=30,$M$4>=75,$M$4<=80),"Dbl."&O173&"G",0) -> 0 | S173: 0 | T173: 0 | U173: =IF(AND(T173=30,$R$4>=75,$R$4<=80),"Dbl."&T173&"G",0) -> 0
N174: 0 | O174: =IF(AND($N$4<=32,$N$4>30),32,0) -> 0 | P174: =IF(AND(O174=32,$M$4>=8,$M$4<=14),O174&"A",0) -> 0 | S174: 0 | T174: =IF(AND($S$4<=32,$S$4>30),32,0) -> 0 | U174: =IF(AND(T174=32,$R$4>=8,$R$4<=14),T174&"A",0) -> 0
N175: 0 | O175: 0 | P175: =IF(AND(O175=32,$M$4>=15,$M$4<=20),O175&"B",0) -> 0 | S175: 0 | T175: 0 | U175: =IF(AND(T175=32,$R$4>=15,$R$4<=20),T175&"B",0) -> 0
N176: 0 | O176: 0 | P176: =IF(AND(O176=32,$M$4>=21,$M$4<=25),O176&"C",0) -> 0 | S176: 0 | T176: 0 | U176: =IF(AND(T176=32,$R$4>=21,$R$4<=25),T176&"C",0) -> 0
N177: 0 | O177: 0 | P177: =IF(AND(O177=32,$M$4>=26,$M$4<=30),O177&"D",0) -> 0 | S177: 0 | T177: 0 | U177: =IF(AND(T177=32,$R$4>=26,$R$4<=30),T177&"D",0) -> 0
N178: 0 | O178: 0 | P178: =IF(AND(O178=32,$M$4>=31,$M$4<=34),O178&"E",0) -> 0 | S178: 0 | T178: 0 | U178: =IF(AND(T178=32,$R$4>=31,$R$4<=34),T178&"E",0) -> 0
N179: 0 | O179: 0 | P179: =IF(AND(O179=32,$M$4>=35,$M$4<=37),O179&"F",0) -> 0 | S179: 0 | T179: 0 | U179: =IF(AND(T179=32,$R$4>=35,$R$4<=37),T179&"F",0) -> 0
N180: 0 | O180: 0 | P180: =IF(AND(O180=32,$M$4>=38,$M$4<=40),O180&"G",0) -> 0 | S180: 0 | T180: 0 | U180: =IF(AND(T180=32,$R$4>=38,$R$4<=40),T180&"G",0) -> 0
N181: 0 | O181: 0 | P181: =IF(AND(O181=32,$M$4>=41,$M$4<=43),O181&"H",0) -> 0 | S181: 0 | T181: 0 | U181: =IF(AND(T181=32,$R$4>=41,$R$4<=43),T181&"H",0) -> 0
N182: 0 | O182: 0 | P182: =IF(AND(O182=32,$M$4>=44,$M$4<=45),O182&"I",0) -> 0 | S182: 0 | T182: 0 | U182: =IF(AND(T182=32,$R$4>=44,$R$4<=45),T182&"I",0) -> 0
N183: 0 | O183: 0 | P183: =IF(AND(O183=32,$M$4>=46,$M$4<=50),"Dbl."&O183&"C",0) -> 0 | S183: 0 | T183: 0 | U183: =IF(AND(T183=32,$R$4>=46,$R$4<=50),"Dbl."&T183&"C",0) -> 0
N184: 0 | O184: 0 | P184: =IF(AND(O184=32,$M$4>=51,$M$4<=60),"Dbl."&O184&"D",0) -> 0 | S184: 0 | T184: 0 | U184: =IF(AND(T184=32,$R$4>=51,$R$4<=60),"Dbl."&T184&"D",0) -> 0
N185: 0 | O185: 0 | P185: =IF(AND(O185=32,$M$4>=61,$M$4<=68),"Dbl."&O185&"E",0) -> 0 | S185: 0 | T185: 0 | U185: =IF(AND(T185=32,$R$4>=61,$R$4<=68),"Dbl."&T185&"E",0) -> 0
N186: 0 | O186: 0 | P186: =IF(AND(O186=32,$M$4>=69,$M$4<=74),"Dbl."&O186&"F",0) -> 0 | S186: 0 | T186: 0 | U186: =IF(AND(T186=32,$R$4>=69,$R$4<=74),"Dbl."&T186&"F",0) -> 0
N187: 0 | O187: 0 | P187: =IF(AND(O187=32,$M$4>=75,$M$4<=80),"Dbl."&O187&"G",0) -> 0 | S187: 0 | T187: 0 | U187: =IF(AND(T187=32,$R$4>=75,$R$4<=80),"Dbl."&T187&"G",0) -> 0
N188: 0 | O188: =IF(AND($N$4<=34,$N$4>32),34,0) -> 0 | P188: =IF(AND(O188=34,$M$4>=11,$M$4<=16),O188&"A",0) -> 0 | S188: 0 | T188: =IF(AND($S$4<=34,$S$4>32),34,0) -> 0 | U188: =IF(AND(T188=34,$R$4>=11,$R$4<=16),T188&"A",0) -> 0
N189: 0 | O189: 0 | P189: =IF(AND(O189=34,$M$4>=17,$M$4<=22),O189&"B",0) -> 0 | S189: 0 | T189: 0 | U189: =IF(AND(T189=34,$R$4>=17,$R$4<=22),T189&"B",0) -> 0
N190: 0 | O190: 0 | P190: =IF(AND(O190=34,$M$4>=23,$M$4<=27),O190&"C",0) -> 0 | S190: 0 | T190: 0 | U190: =IF(AND(T190=34,$R$4>=23,$R$4<=27),T190&"C",0) -> 0
N191: 0 | O191: 0 | P191: =IF(AND(O191=34,$M$4>=28,$M$4<=32),O191&"D",0) -> 0 | S191: 0 | T191: 0 | U191: =IF(AND(T191=34,$R$4>=28,$R$4<=32),T191&"D",0) -> 0
N192: 0 | O192: 0 | P192: =IF(AND(O192=34,$M$4>=33,$M$4<=34),O192&"E",0) -> 0 | S192: 0 | T192: 0 | U192: =IF(AND(T192=34,$R$4>=33,$R$4<=34),T192&"E",0) -> 0
N193: 0 | O193: 0 | P193: =IF(AND(O193=34,$M$4>=35,$M$4<=37),O193&"F",0) -> 0 | S193: 0 | T193: 0 | U193: =IF(AND(T193=34,$R$4>=35,$R$4<=37),T193&"F",0) -> 0
N194: 0 | O194: 0 | P194: =IF(AND(O194=34,$M$4>=38,$M$4<=40),O194&"G",0) -> 0 | S194: 0 | T194: 0 | U194: =IF(AND(T194=34,$R$4>=38,$R$4<=40),T194&"G",0) -> 0
N195: 0 | O195: 0 | P195: =IF(AND(O195=34,$M$4>=41,$M$4<=43),O195&"H",0) -> 0 | S195: 0 | T195: 0 | U195: =IF(AND(T195=34,$R$4>=41,$R$4<=43),T195&"H",0) -> 0
N196: =IF(AND(O196>0,P196>0),O196,0) -> 0 | O196: 0 | P196: =IF(AND(O196=34,$M$4>=44,$M$4<=45),O196&"I",0) -> 0 | S196: 0 | T196: 0 | U196: =IF(AND(T196=34,$R$4>=44,$R$4<=45),T196&"I",0) -> 0
N197: 0 | O197: 0 | P197: =IF(AND(O197=34,$M$4>=46,$M$4<=54),"Dbl."&O197&"C",0) -> 0 | S197: =IF(AND(T197>0,U197>0),T197,0) -> 0 | T197: 0 | U197: =IF(AND(T197=34,$R$4>=46,$R$4<=54),"Dbl."&T197&"C",0) -> 0
N198: 0 | O198: 0 | P198: =IF(AND(O198=34,$M$4>=55,$M$4<=64),"Dbl."&O198&"D",0) -> 0 | S198: 0 | T198: 0 | U198: =IF(AND(T198=34,$R$4>=55,$R$4<=64),"Dbl."&T198&"D",0) -> 0
N199: 0 | O199: 0 | P199: =IF(AND(O199=34,$M$4>=65,$M$4<=68),"Dbl."&O199&"E",0) -> 0 | S199: 0 | T199: 0 | U199: =IF(AND(T199=34,$R$4>=65,$R$4<=68),"Dbl."&T199&"E",0) -> 0
N200: 0 | O200: 0 | P200: =IF(AND(O200=34,$M$4>=69,$M$4<=74),"Dbl."&O200&"F",0) -> 0 | S200: 0 | T200: 0 | U200: =IF(AND(T200=34,$R$4>=69,$R$4<=74),"Dbl."&T200&"F",0) -> 0
... 71 more rows

Sheet Tables (hidden)
B1: S140 / S144 / S146 Calculations
B2: Frame Cut Leg | C2: =LEG+6 -> 6 | F2: 1 | G2: SashW | H2: SashH | I2: GlassW | J2: GlassH | K2: Radius | L2: Weight | O2: =IF(OR(ModelNo="1700",ModelNo="1720",ModelNo="1730",ModelNo="1900",ModelNo="1920",ModelNo="1930",ModelNo="1901",ModelNo="1921",ModelNo="1931"),1,0) -> 0 | P2: 1700 | Q2: 1720 | R2: 1730 | S2: 1900 | T2: 1920 | U2: 1930 | V2: 1901 | W2: 1921 | X2: 1931 | AD2: Glass Strength | AG2: CFB
B3: CMRD | C3: =Frame_Height-C2 -> -6 | E3: Mezzo | F3: 2 | G3: =Frame_Width-3.125 -> -3.125 | H3: =CDIM_S140-1.125 -> -1.125 | I3: =G3-1.6875 -> -4.8125 | J3: =H3-1.625 -> -2.75 | K3: 12.5 | L3: =BWGT_03A0 ->  | O3: TGW | P3: =IF(TGW_1700>40.5,1,0) -> 0 | Q3: =IF(TGW_1720>40.25,1,0) -> 0 | R3: =IF(TGW_1730>25.5,1,0) -> 0 | S3: =IF(TGW_1900>40.5,1,0) -> 0 | T3: =IF(TGW_1920>40.25,1,0) -> 0 | U3: =IF(TGW_1930>25.5,1,0) -> 0 | V3: =IF(TGW_1901>39.25,1,0) -> 0 | W3: =IF(TGW_1921>39,1,0) -> 0 | X3: =IF(TGW_1931>30.9375,1,0) -> 0 | AA3: 1 | AB3: =IF(AD3>"",VLOOKUP(AD3,GLASSLOOKUP,2,FALSE),"") ->  | AC3: =IF(AD3>"",VLOOKUP(AB3,WEIGHTCHART,2,FALSE),"") ->  | AD3: =GLASS1 ->  | AF3: =VLOOKUP(BTM_WGT,CFB_W,3,FALSE) ->  | AG3: 4 | AH3: 3 | AI3: BN | AL3: Extrusion
B4: Sash Cut back | C4: =IF(OR(EXTSELECT=2,EXTSELECT=3),3.125,IF(OR(EXTSELECT=4,EXTSELECT=5),2.3125,IF(EXTSELECT=6,2.25,0))) -> 0 | E4: Mezzo | F4: 3 | G4: =Frame_Width-3.125 -> -3.125 | H4: =CDIM_S140-1.125 -> -1.125 | I4: =G4-1.6875 -> -4.8125 | J4: =H4-1.625 -> -2.75 | K4: 13 | L4: =BWGT_03A0 ->  | O4: TGH | P4: =IF(TGH_1700>35.34375,1,0) -> 0 | Q4: =IF(TGH_1720>35.34375,1,0) -> 0 | R4: =IF(TGH_1730>35.34375,1,0) -> 0 | S4: =IF(TGH_1900>35.34375,1,0) -> 0 | T4: =IF(TGH_1920>35.34375,1,0) -> 0 | U4: =IF(TGH_1930>35.34375,1,0) -> 0 | V4: =IF(TGH_1901>35.1875,1,0) -> 0 | W4: =IF(TGH_1921>35.1875,1,0) -> 0 | X4: =IF(TGH_1931>35.1875,1,0) -> 0 | AA4: 2 | AD4: =GLASS2 ->  | AG4: =AG3+1 -> 5 | AH4: 3 | AI4: BN | AK4: 1 | AL4: =IF(EXT_1=0,"",EXT_1) ->  | AM4: 0 | AN4: 0
B5: F | C5: =2*(ASIN((EXT*2)/(2*C11))) ->  | E5: 0700 | F5: 4 | G5: =Frame_Width-2.3125 -> -2.3125 | H5: =CDIM_S140+0.125 -> 0.125 | I5: =Frame_Width-4 -> -4 | J5: =CDIM_S140-1.5625 -> -1.5625 | K5: 10 | L5: =BWGT_0100 ->  | O5: BGW | P5: =IF(BGW_1700>40.5,1,0) -> 0 | Q5: =IF(BGW_1720>40.25,1,0) -> 0 | R5: =IF(BGW_1730>25.46875,1,0) -> 0 | S5: =IF(BGW_1900>40.5,1,0) -> 0 | T5: =IF(BGW_1920>40.25,1,0) -> 0 | U5: =IF(BGW_1930>25.5,1,0) -> 0 | V5: =IF(BGW_1901>40.5,1,0) -> 0 | W5: =IF(BGW_1921>40.25,1,0) -> 0 | X5: =IF(BGW_1931>32.1875,1,0) -> 0 | AA5: 3 | AD5: =GLASS3 ->  | AG5: 6 | AH5: 3 | AI5: BN | AK5: 2 | AL5: =IF(EXT_2=0,"",EXT_2) ->  | AM5: 2.40625 | AN5: 12.5
B6: d | C6: =C11*COS(C5/2) ->  | E6: Fusion | F6: 5 | G6: =Frame_Width-2.25 -> -2.25 | H6: =CDIM_S140-0.75 -> -0.75 | I6: =Frame_Width-3.9375 -> -3.9375 | J6: =CDIM_S140-2.4375 -> -2.4375 | K6: 11.75 | L6: =BWGT_02A0 ->  | O6: BGH | P6: =IF(BGH_1700>35.34375,1,0) -> 0 | Q6: =IF(BGH_1720>35.34375,1,0) -> 0 | R6: =IF(BGH_1730>35.34375,1,0) -> 0 | S6: =IF(BGH_1900>35.3125,1,0) -> 0 | T6: =IF(BGH_1920>35.34375,1,0) -> 0 | U6: =IF(BGH_1930>35.3125,1,0) -> 0 | V6: =IF(BGH_1901>35.1875,1,0) -> 0 | W6: =IF(BGH_1921>35.1875,1,0) -> 0 | X6: =IF(BGH_1931>35.1875,1,0) -> 0 | AA6: 4 | AD6: =GLASS4 ->  | AG6: 7 | AH6: 4 | AI6: RD | AK6: 3 | AL6: =IF(EXT_3=0,"",EXT_3) ->  | AM6: 2.40625 | AN6: 13
B7: h | C7: =C11-C6 ->  | E7: 1700 | F7: 6 | G7: =Frame_Width-2.1875 -> -2.1875 | H7: =CDIM_S140-0.84375 -> -0.84375 | I7: =G7-1.3125 -> -3.5 | J7: =H7-1.3125 -> -2.15625 | K7: 12 | L7: =Balance!E40 ->  | P7: =MAX(P3:P6) -> 0 | Q7: 0 | R7: 0 | S7: 0 | T7: 0 | U7: 0 | V7: 0 | W7: 0 | X7: 0 | AA7: 5 | AD7: =GLASS5 ->  | AG7: 8 | AH7: 4 | AI7: RD | AK7: 4 | AL7: =IF(EXT_5=0,"",EXT_5) ->  | AM7: 1 | AN7: 10
C8: =IF(ModelNo="S146",((Frame_Height-LEG)/2)+(((Frame_Width*2)^2)/(8*(Frame_Height-LEG))),((Frame_Height-LEG)/2)+((Frame_Width^2)/(8*(Frame_Height-LEG)))) ->  | E8: 1900 | F8: 7 | G8: =Frame_Width-2.1875 -> -2.1875 | H8: =CDIM_S140-1.03125 -> -1.03125 | I8: =G8-1.3125 -> -3.5 | J8: =H8-1.3125 -> -2.34375 | K8: 12 | L8: =Balance!E52 ->  | N8: Stile Reinf. Driver >> | O8: =MAX(P8:X8,O9,O10) -> 0 | P8: =IF(ModelNo="1700",HLOOKUP(Model_Select,REINF_CHART,6,FALSE),0) -> 0 | Q8: =IF(ModelNo="1720",HLOOKUP(Model_Select,REINF_CHART,6,FALSE),0) -> 0 | R8: =IF(ModelNo="1730",HLOOKUP(Model_Select,REINF_CHART,6,FALSE),0) -> 0 | S8: =IF(ModelNo="1900",HLOOKUP(Model_Select,REINF_CHART,6,FALSE),0) -> 0 | T8: =IF(ModelNo="1920",HLOOKUP(Model_Select,REINF_CHART,6,FALSE),0) -> 0 | U8: =IF(ModelNo="1930",HLOOKUP(Model_Select,REINF_CHART,6,FALSE),0) -> 0 | V8: =IF(ModelNo="1901",HLOOKUP(Model_Select,REINF_CHART,6,FALSE),0) -> 0 | W8: =IF(ModelNo="1921",HLOOKUP(Model_Select,REINF_CHART,6,FALSE),0) -> 0 | X8: =IF(ModelNo="1931",HLOOKUP(Model_Select,REINF_CHART,6,FALSE),0) -> 0 | AA8: 6 | AD8: =GLASS6 ->  | AG8: 9 | AH8: 5 | AI8: BU | AK8: 5 | AL8: =IF(EXT_4=0,"",EXT_6) ->  | AM8: 1.75 | AN8: 11.75
B9: Top Glass Width | C9: =TRUNC((Frame_Width-2*EXT)*16+0.5)/16 -> 0 | F9: =EXTTYPE ->  | G9: =IF(EXTSELECT>1,VLOOKUP(EXTSELECT,$F$3:$L$8,2,FALSE),0) -> 0 | H9: =IF(EXTSELECT>1,VLOOKUP(EXTSELECT,$F$3:$L$8,3,FALSE),0) -> 0 | I9: =IF(EXTSELECT>1,VLOOKUP(EXTSELECT,$F$3:$L$8,4,FALSE),0) -> 0 | J9: =IF(EXTSELECT>1,VLOOKUP(EXTSELECT,$F$3:$L$8,5,FALSE),0) -> 0 | K9: =IF(EXTSELECT>1,VLOOKUP(EXTSELECT,$F$3:$L$8,6,FALSE),0) -> 0 | L9: =IF(EXTSELECT>1,VLOOKUP(EXTSELECT,$F$3:$L$8,7,FALSE),0) -> 0 | N9: Oriel >> | O9: =IF(TYPE>1,1,0) -> 0 | AA9: 7 | AD9: =GLASS7 ->  | AG9: 10 | AH9: 5 | AI9: BU | AK9: 6 | AL9: =IF(EXT_4=0,"",EXT_7) ->  | AM9: 1.8125 | AN9: 12
B10: Top Glass Height | C10: =IF(ModelNo="S146",Frame_Height-(Tables!$C$16+$C$13+EXT+C7),Frame_Height-(Tables!$C$16+C13+EXT)) -> -0.5137 | N10: HP >> | O10: =IF(EXTTYPE="HP Package",1,0) -> 0 | AA10: 8 | AD10: =GLASS8 ->  | AG10: 11 | AH10: 6 | AI10: YW | AK10: 7 | AL10: =IF(EXT_5=0,"",EXT_8) ->  | AM10: 1.8125 | AN10: 12
B11: Glass R: | C11: =FrameR-EXT ->  | AD11: 1 | AG11: 12 | AH11: 6 | AI11: YW | AL11: 1 | AM11: =VLOOKUP(EXTSELECT,AK4:AM10,3,FALSE) -> 0 | AN11: =VLOOKUP(EXTSELECT,AK4:AL10,2,FALSE) -> 
B12: Glass h: | C12: =IF(ModelNo="S146",C11-(SQRT((4*C11^2)-(C9*2+(2*EXT))^2))/2,C11-(SQRT((4*C11^2)-(C9)^2)/2)) ->  | AC12: =VLOOKUP(GT,AB3:AC10,2,FALSE) ->  | AD12: =VLOOKUP(Glass,AA3:AC10,2,FALSE) ->  | AG12: 13 | AH12: 7 | AI12: GN
C13: =IF(OR(EXTSELECT=4,EXTSELECT=5),0.9198,IF(OR(EXTSELECT=2,EXTSELECT=3),0.264,IF(OR(EXTSELECT=7,EXTSELECT=8),0.407,0.5137))) -> 0.5137 | AG13: 14 | AH13: 7 | AI13: GN | AM13: S140 | AN13: =IF(OR(EXTSELECT=6,EXTSELECT=7),1,0) -> 0
B14: Top Glass Leg: | C14: =IF(ModelNo="S146",C10-C12+C7,C10-C12) ->  | AG14: 15 | AH14: 8 | AI14: LG | AM14: S144 | AN14: =IF(OR(EXTSELECT=6,EXTSELECT=7),1,0) -> 0
B15: DDIM_S140 | C15: =IF(TYPE=1,(Frame_Height/2)-CMRD,IF(TYPE=2,CMR-CMRD)) -> 6 | O15: FALSE | P15: AC SASH CALCULATOR | AG15: 16 | AH15: 8 | AI15: LG | AM15: S146 | AN15: =IF(OR(EXTSELECT=6,EXTSELECT=7),1,0) -> 0
B16: CDIM_S140 | C16: =Tables!C2-DDIM_S140 -> 0 | O16: Model | P16: Head+4.5 | Q16: Sill | R16: Center of Astragal | S16: Sash Width | T16: Sash Height | U16: CMR | AG16: 17 | AH16: 9 | AI16: NAT | AN16: =IF(ISERROR(VLOOKUP(ModelNo,AM13:AN15,2,FALSE)),0,VLOOKUP(ModelNo,AM13:AN15,2,FALSE)) -> 0
O17: =ModelNo -> Select Model | P17: =IF(ISERROR(VLOOKUP(ModelNo,ACTABLE,2,FALSE)),"",VLOOKUP(ModelNo,ACTABLE,2,FALSE)) ->  | Q17: =IF(ISERROR(VLOOKUP(ModelNo,ACTABLE,3,FALSE)),"",VLOOKUP(ModelNo,ACTABLE,3,FALSE)) ->  | R17: =IF(ISERROR(VLOOKUP(ModelNo,ACTABLE,4,FALSE)),"",VLOOKUP(ModelNo,ACTABLE,4,FALSE)) ->  | S17: =IF(ISERROR(VLOOKUP(ModelNo,ACTABLE,5,FALSE)),"",VLOOKUP(ModelNo,ACTABLE,5,FALSE)) ->  | T17: =IF(ISERROR(VLOOKUP(ModelNo,ACTABLE,6,FALSE)),"",VLOOKUP(ModelNo,ACTABLE,6,FALSE)) ->  | U17: =IF(ISERROR(VLOOKUP(ModelNo,ACTABLE,7,FALSE)),"",VLOOKUP(ModelNo,ACTABLE,7,FALSE)) ->  | AG17: 18 | AH17: 9 | AI17: NAT
B18: SASHSTOP3001 | F18: Type | O18: L201 | P18: 1.625 | Q18: 1.75 | S18: =Frame_Width-3.25 -> -3.25 | T18: =INT((Frame_Height-(P18+Q18+0.5+ACHEIGHT))*16+0.5)/16 -> -3.875 | AG18: 19 | AH18: 10 | AI18: PK
B19: =IF(TSH_3001<CDIM_3001-1.875,CDIM_3001-TSH_3001+11-0.875,0) -> 0 | E19: 1 | F19: =IF(TYPE1>"",TYPE1,"") ->  | O19: 8001 | P19: 2.5 | Q19: 2.5 | S19: =Frame_Width-4.9375 -> -4.9375 | T19: =INT((Frame_Height-(P19+Q19+0.5+ACHEIGHT))*16+0.5)/16 -> -5.5 | AG19: 20 | AH19: 10 | AI19: PK
B20: =IF(TSH_3001<(CDIM_3001-1.875),0,IF(CDIM_3001<=39,7,0)) -> 7 | E20: 2 | F20: =IF(TYPE2>"",TYPE2,"") ->  | O20: R601 | P20: 2.5 | Q20: 2.5 | S20: =Frame_Width-4.9375 -> -4.9375 | T20: =INT((Frame_Height-(P20+Q20+0.5+ACHEIGHT))*16+0.5)/16 -> -5.5 | AG20: 21 | AH20: 11 | AI20: BU
B21: =IF(TSH_3001<(CDIM_3001-1.875),0,IF(AND(CDIM_3001>39,CDIM_3001<=42),10,0)) -> 0 | E21: 3 | F21: =IF(TYPE3>"",TYPE3,"") ->  | O21: S140 | Q21: =IF(OR(EXTSELECT=2,EXTSELECT=3),1.875,IF(OR(EXTSELECT=4,EXTSELECT=5),1.537,IF(EXTSELECT=7,1.818,IF(EXTSELECT=8,2,1.75)))) -> 1.75 | R21: =IF(OR(EXTSELECT=2,EXTSELECT=3),1.25,IF(EXTSELECT=4,1.0625,IF(EXTSELECT=5,1.1875,IF(EXTSELECT=7,0.4375,IF(EXTSELECT=8,1,0.625))))) -> 0.625 | S21: =BSW_S140 -> 0 | U21: =INT((Frame_Height-(Q21+0.5+ACHEIGHT+R21))*16+0.5)/16 -> -2.875 | AG21: 22 | AH21: 11 | AI21: BU
B22: =IF(TSH_3001<(CDIM_3001-1.875),0,IF(AND(CDIM_3001>42,CDIM_3001<=45),13,0)) -> 0 | E22: 4 | F22: =IF(TYPE4>"",TYPE4,"") ->  | O22: S144 | Q22: =IF(OR(EXTSELECT=2,EXTSELECT=3),1.875,IF(OR(EXTSELECT=4,EXTSELECT=5),1.537,IF(EXTSELECT=7,1.818,IF(EXTSELECT=8,2,1.75)))) -> 1.75 | R22: =IF(OR(EXTSELECT=2,EXTSELECT=3),1.25,IF(EXTSELECT=4,1.0625,IF(EXTSELECT=5,1.1875,IF(EXTSELECT=7,0.4375,IF(EXTSELECT=8,1,0.625))))) -> 0.625 | S22: =BSW_S140 -> 0 | U22: =INT((Frame_Height-(Q22+0.5+ACHEIGHT+R22))*16+0.5)/16 -> -2.875 | AG22: 23 | AH22: 6/6 | AI22: YW
B23: =IF(TSH_3001<(CDIM_3001-1.875),0,IF(AND(CDIM_3001>45,CDIM_3001<=48),16,0)) -> 0 | E23: 1 | F23: =VLOOKUP(TYPE,E19:F22,2,FALSE) ->  | O23: S146 | Q23: =IF(OR(EXTSELECT=2,EXTSELECT=3),1.875,IF(OR(EXTSELECT=4,EXTSELECT=5),1.537,IF(EXTSELECT=7,1.818,IF(EXTSELECT=8,2,1.75)))) -> 1.75 | R23: =IF(OR(EXTSELECT=2,EXTSELECT=3),1.25,IF(EXTSELECT=4,1.0625,IF(EXTSELECT=5,1.1875,IF(EXTSELECT=7,0.4375,IF(EXTSELECT=8,1,0.625))))) -> 0.625 | S23: =BSW_S140 -> 0 | U23: =INT((Frame_Height-(Q23+0.5+ACHEIGHT+R23))*16+0.5)/16 -> -2.875 | AG23: 24 | AH23: 6/6 | AI23: YW
B24: =MAX(B19:B23) -> 7 | O24: 3001 | P24: 2.0625 | Q24: 1.875 | S24: =Frame_Width-4.125 -> -4.125 | T24: =INT((Frame_Height-(P24+Q24+0.5+ACHEIGHT))*16+0.5)/16 -> -4.4375 | AG24: 25 | AH24: 6/7 | AI24: GN
F25: Opening | O25: 03A0 | Q25: 1.875 | R25: 1.25 | S25: =Frame_Width-3.125 -> -3.125 | U25: =INT((Frame_Height-(Q25+0.5+ACHEIGHT+R25))*16+0.5)/16 -> -3.625 | AG25: 26 | AH25: 6/7 | AI25: GN
B26: SHAT Error | E26: 1 | F26: Exact Size | O26: 1700 | Q26: 2 | R26: 0.4375 | S26: =TRUNC((Frame_Width-2.188)*32+0.5)/32 -> -2.15625 | U26: -2.9375 | AG26: 27 | AH26: 7/7 | AI26: LG
B27: =IF(ISERROR(EH<6),0,IF(AND(OR(ModelNo="S140",ModelNo="S144",ModelNo="S146"),EH<6),1,0)) -> 0 | E27: 2 | F27: Rough Opening | O27: 1720 | Q27: 2 | R27: 0.4375 | S27: =TRUNC((Frame_Width/2-2.4375)*32+0.5)/32 -> -2.40625 | U27: -2.9375 | AG27: 28 | AH27: 7/7 | AI27: LG
B28: SHAT_MIN_R | E28: 1 | F28: =VLOOKUP(RO,E26:F27,2,FALSE) -> Exact Size | O28: 1730 | Q28: 2 | R28: 0.4375 | S28: =TRUNC((Frame_Width/3-2.53125)*32+0.5)/32 -> -2.5 | U28: -2.9375 | AG28: 29 | AH28: 7/8 | AI28: OR
B29: =IF(ISERROR(SHATRADIUS<B30),0,IF(AND(OR(ModelNo="S140",ModelNo="S144",ModelNo="S146"),SHATRADIUS<B30),1,0)) -> 0 | O29: 1900 | Q29: 2 | R29: 1 | S29: =TRUNC((Frame_Width-2.1875)*32+0.5)/32 -> -2.15625 | U29: -3.5 | AG29: 30 | AH29: 7/8 | AI29: OR
B30: =IF(OR(ModelNo="S140",ModelNo="S144",ModelNo="S146"),VLOOKUP(EXTSELECT,Tables!AK5:AN10,3),0) -> 0 | E30: =IF(OR(ModelNo="0100",ModelNo="01HP",ModelNo="0102",ModelNo="0103",ModelNo="0104",ModelNo="0109",ModelNo="0151",ModelNo="0152",ModelNo="0153",ModelNo="0154",ModelNo="0155",ModelNo="0170",ModelNo="0171",ModelNo="0172",ModelNo="0173",ModelNo="S174",ModelNo="S175",ModelNo="0179",ModelNo="0301"),1,0) -> 0 | F30: Screen | O30: 1920 | Q30: 2 | R30: 1 | S30: =TRUNC((Frame_Width/2-2.4375)*32+0.5)/32 -> -2.40625 | U30: -3.5 | AG30: 31 | AH30: 8/8 | AI30: WT
B31: SHAT_MESSAGE | E31: 1 | F31: =IF(SCREEN1>"",SCREEN1,"") ->  | O31: 1930 | Q31: 2 | R31: 1 | S31: =TRUNC((Frame_Width/3-2.53125)*32+0.5)/32 -> -2.5 | U31: -3.5 | AG31: 32 | AH31: 8/8 | AI31: WT
B32: =IF(B29=1,"R. Must be > Than "&B30,"") ->  | E32: 2 | F32: =IF(SCREEN2>"",SCREEN2,"") ->  | O32: 1901 | P32: 1.875 | Q32: 2 | S32: =Frame_Width-2.1875 -> -2.1875 | T32: =INT((Frame_Height-(P32+Q32+0.5+ACHEIGHT))*16+0.5)/16 -> -4.375 | AG32: 33 | AH32: 8/9 | AI32: NAT
E33: 3 | F33: =IF(SCREEN3>"",SCREEN3,"") ->  | O33: 1921 | P33: 1.875 | Q33: 2 | S33: =Frame_Width/2-2.4375 -> -2.4375 | T33: =INT((Frame_Height-(P33+Q33+0.5+ACHEIGHT))*16+0.5)/16 -> -4.375 | AG33: 34 | AH33: 8/9 | AI33: NAT
B34: LIMIT1 & LIMIT2 | E34: 1 | F34: =IF(Screen_Type=3,"L",IF(Screen_Type=2,"F","H")) -> H | O34: 1931 | P34: 1.875 | Q34: 2 | S34: =Frame_Width/3-2.5 -> -2.5 | T34: =INT((Frame_Height-(P34+Q34+0.5+ACHEIGHT))*16+0.5)/16 -> -4.375 | AG34: 35 | AH34: 9/9 | AI34: PU
B35: =IF(OR(TSH>50,BSH>50),"Sash Hgt Must be < 50","") ->  | AG35: 36 | AH35: 9/9 | AI35: PU
B36: =IF(AND(OR(Glass<4,Glass>5),OR(TGSF>15,BGSF>15)),"GLASS MUST BE < 15 SF",IF(AND(OR(Glass=4,Glass=5),OR(TGSF>11,BGSF>11)),"GLASS MUST BE <11 SF","")) ->  | F36: Add Grid for Weight Calc | AG36: 37 | AH36: 9/10 | AI36: BU
E37: =IF(GRIDWEIGHT=TRUE,0.25,0) -> 0 | F37: FALSE | AG37: 38 | AH37: 9/10 | AI37: BU
B38: =IF(AND(EXTSELECT=1,OR(SELECTEXT="Select Reinforcement",SELECTEXT="Select Extrusion")),"<< Must Select","") ->  | AG38: 39 | AH38: 10/10 | AI38: YW
B39: =IF(AND(EXT_CONTROL=0,W>0,H>0,LEG>0),"<< Not a Valid Entry",IF(AND(EXT_CONTROL=1,W>0,H>0,LEG=0),"<< Need Leg Height",IF(AND(ModelNo="S140",W>0,H>0,LEG<>(Frame_Height-(Frame_Width/2))),"<< Leg Should be"&" "&(Frame_Height-(Frame_Width/2)),IF(AND(ModelNo="S144",W>0,H>0,Frame_Width>(Frame_Height-LEG)),"<< Radius Must be < than Width/2","")))) ->  | AG39: 40 | AH39: 10/10 | AI39: YW
AG40: 41 | AH40: 10/11 | AI40: GN
AG41: 42 | AH41: 10/11 | AI41: GN
AG42: 43 | AH42: 11/11 | AI42: LG
AG43: 44 | AH43: 11/11 | AI43: LG
AG44: 45 | AH44: 7/8/8 | AI44: OR
AG45: 46 | AH45: 7/8/8 | AI45: OR
AG46: 47 | AH46: 8/8/8 | AI46: WT
AG47: 48 | AH47: 8/8/8 | AI47: WT
AG48: 49 | AH48: 8/8/9 | AI48: BN
AG49: 50 | AH49: 8/8/9 | AI49: BN
AG50: 51 | AH50: 8/9/9 | AI50: RD
AG51: 52 | AH51: 8/9/9 | AI51: RD
AG52: 53 | AH52: 9/9/9 | AI52: NAT
AG53: 54 | AH53: 9/9/9 | AI53: NAT
AG54: 55 | AH54: 9/9/10 | AI54: BU
AG55: 56 | AH55: 9/9/10 | AI55: BU
AG56: 57 | AH56: 9/10/10 | AI56: LG
AG57: 58 | AH57: 9/10/10 | AI57: LG
AG58: 59 | AH58: 10/10/10 | AI58: WT
AG59: 60 | AH59: 10/10/10 | AI59: WT
AG60: 61 | AH60: 10/10/11 | AI60: OR
AG61: 62 | AH61: 10/10/11 | AI61: OR
AG62: 63 | AH62: 10/11/11 | AI62: BN
AG63: 64 | AH63: 10/11/11 | AI63: BN
AG64: 65 | AH64: 11/11/11 | AI64: GN
AG65: 66 | AH65: 11/11/11 | AI65: GN
AG66: 67 | AH66: 8/8/9/9 | AI66: RD
AG67: 68 | AH67: 8/8/9/9 | AI67: RD
AG68: 69 | AH68: 8/9/9/9 | AI68: YW
AG69: 70 | AH69: 8/9/9/9 | AI69: YW
AG70: 71 | AH70: 9/9/9/9 | AI70: PU
AG71: 72 | AH71: 9/9/9/9 | AI71: PU
AG74: 4 | AH74: 3 | AI74: 1
AG75: =AG74+1 -> 5 | AH75: 3 | AI75: 1
AG76: 6 | AH76: 3 | AI76: 1
AG77: 7 | AH77: 4 | AI77: 1
AG78: 8 | AH78: 4 | AI78: 1
AG79: 9 | AH79: 5 | AI79: 1
AG80: 10 | AH80: 5 | AI80: 1
AG81: 11 | AH81: 6 | AI81: 1
AG82: 12 | AH82: 6 | AI82: 1
AG83: 13 | AH83: 7 | AI83: 1
AG84: 14 | AH84: 7 | AI84: 1
AG85: 15 | AH85: 8 | AI85: 1
AG86: 16 | AH86: 8 | AI86: 1
AG87: 17 | AH87: 9 | AI87: 1
AG88: 18 | AH88: 9 | AI88: 1
AG89: 19 | AH89: 10 | AI89: 1
AG90: 20 | AH90: 10 | AI90: 1
AG91: 21 | AH91: 11 | AI91: 1
AG92: 22 | AH92: 11 | AI92: 1
AG93: 23 | AH93: 6/6 | AI93: 2
AG94: 24 | AH94: 6/6 | AI94: 2
AG95: 25 | AH95: 6/7 | AI95: 2
AG96: 26 | AH96: 6/7 | AI96: 2
AG97: 27 | AH97: 7/7 | AI97: 2
AG98: 28 | AH98: 7/7 | AI98: 2
AG99: 29 | AH99: 7/8 | AI99: 2
AG100: 30 | AH100: 7/8 | AI100: 2
AG101: 31 | AH101: 8/8 | AI101: 2
AG102: 32 | AH102: 8/8 | AI102: 2
AG103: 33 | AH103: 8/9 | AI103: 2
AG104: 34 | AH104: 8/9 | AI104: 2
AG105: 35 | AH105: 9/9 | AI105: 2
AG106: 36 | AH106: 9/9 | AI106: 2
AG107: 37 | AH107: 9/10 | AI107: 2
AG108: 38 | AH108: 9/10 | AI108: 2
AG109: 39 | AH109: 10/10 | AI109: 2
AG110: 40 | AH110: 10/10 | AI110: 2
AG111: 41 | AH111: 10/11 | AI111: 2
AG112: 42 | AH112: 10/11 | AI112: 2
AG113: 43 | AH113: 11/11 | AI113: 2
AG114: 44 | AH114: 11/11 | AI114: 2
AG115: 45 | AH115: 8/7/8 | AI115: 3
AG116: 46 | AH116: 8/7/8 | AI116: 3
AG117: 47 | AH117: 8/8/8 | AI117: 3
AG118: 48 | AH118: 8/8/8 | AI118: 3
AG119: 49 | AH119: 8/8/9 | AI119: 3
AG120: 50 | AH120: 8/8/9 | AI120: 3
AG121: 51 | AH121: 8/9/9 | AI121: 3
AG122: 52 | AH122: 8/9/9 | AI122: 3
AG123: 53 | AH123: 9/9/9 | AI123: 3
AG124: 54 | AH124: 9/9/9 | AI124: 3
AG125: 55 | AH125: 9/9/10 | AI125: 3
AG126: 56 | AH126: 9/9/10 | AI126: 3
AG127: 57 | AH127: 9/10/10 | AI127: 3
AG128: 58 | AH128: 9/10/10 | AI128: 3
AG129: 59 | AH129: 10/10/10 | AI129: 3
AG130: 60 | AH130: 10/10/10 | AI130: 3
AG131: 61 | AH131: 10/10/11 | AI131: 3
AG132: 62 | AH132: 10/10/11 | AI132: 3
AG133: 63 | AH133: 10/11/11 | AI133: 3
AG134: 64 | AH134: 10/11/11 | AI134: 3
AG135: 65 | AH135: 11/11/11 | AI135: 3
AG136: 66 | AH136: 11/11/11 | AI136: 3
AG137: 67 | AH137: 8/8/9/9 | AI137: 4
AG138: 68 | AH138: 8/8/9/9 | AI138: 4
AG139: 69 | AH139: 8/9/9/9 | AI139: 4
AG140: 70 | AH140: 8/9/9/9 | AI140: 4
AG141: 71 | AH141: 9/9/9/9 | AI141: 4
AG142: 72 | AH142: 9/9/9/9 | AI142: 4

Sheet Data (hidden)
B1: Model | C1: Description | D1: Value
A2: =IF(OR(ModelNo="0151",ModelNo="0951",ModelNo="9051",ModelNo="8051"),1,"") ->  | B2: 0151 | C2: Sash Width | D2: =Frame_Width-1.625 -> -1.625 | F2: =Model_Select -> Select Model | G2: Models | H2: Description | I2: W cut-back | J2: H-cut-back | K2: Width | L2: Height | M2: Min W | N2: Min H | O2: Max W | P2: Max H | Q2: Max UI | R2: Type1 | S2: Type2 | T2: Type3 | U2: Type4 | V2: Screen1 | W2: Screen2 | X2: Screen3 | Y2: Ext./Reinf. | Z2: Ext./Reinf. | AA2: Ext./Reinf. | AB2: Ext./Reinf. | AC2: Ext./Reinf. | AD2: Ext./Reinf. | AE2: Ext./Reinf. | AF2: Ext./Reinf. | AG2: Glass1 | AH2: Glass2 | AI2: Glass3 | AJ2: Glass4 | AK2: Glass5 | AL2: Glass6 | AM2: Glass7 | AN2: Glass8 | AO2: Opening | AP2: CDIM | AQ2: DDIM | AR2: TSW | AS2: TSH | AT2: TGW | AU2: TGH | AV2: TGSF | AW2: BSW | AX2: BSH | AY2: BGW | AZ2: BGH | BA2: BGSF | BB2: Bott. Sash Weight | BC2: Top Sash Weight | BD2: Bot. of Coil From CMR | BE2: Head + 4.5 | BF2: Sill + CMR | BG2: EW | BH2: EH | BQ2: Triple IG calculation | BY2: S140 Limitations
A3: =IF(OR(ModelNo="0151",ModelNo="0951",ModelNo="9051",ModelNo="8051"),2,"") ->  | B3: 0151 | C3: Sash Height | D3: =Frame_Height-1.625 -> -1.625 | F3: 1 | G3: Select Model
A4: =IF(OR(ModelNo="0151",ModelNo="0951",ModelNo="9051",ModelNo="8051"),3,"") ->  | B4: 0151 | C4: Sash Glass Width | D4: =Frame_Width-4.625 -> -4.625 | F4: 2 | G4: 3001 | H4: 4000 Series Double Hung | I4: 0 | J4: 0 | M4: 12 | N4: 20 | O4: =IF(EXTSELECT=2,48,IF(EXTSELECT=3,52,"")) ->  | P4: =IF(EXTSELECT=2,84,IF(EXTSELECT=3,96,"")) ->  | Q4: =IF(EXTSELECT=2,126,IF(EXTSELECT=3,148,"")) ->  | R4: Standard | S4: Custom | V4: Half | W4: Full | X4: Locking | Y4: Select Reinforcement | Z4: Composite | AA4: Steel | AH4: Double Strength (3 mm) | AI4: Triple Strength (5 mm) | AJ4: Triple IG Single Strength | AK4: Triple IG Double Strength | AL4: Laminated | AO4: =IF(RO=2,"<< Exact Size Only","") ->  | AP4: =Frame_Height-AQ4 -> 0 | AQ4: =IF(TYPE=1,(Frame_Height/2),IF(TYPE=2,CMR)) -> 0 | AR4: =Frame_Width-4.125 -> -4.125 | AS4: =DDIM_3001-1.625 -> -1.625 | AT4: =TRUNC((Frame_Width-5.8125)*16+0.5)/16 -> -5.75 | AU4: =TRUNC((DDIM_3001-3.25)*32+0.5)/32 -> -3.21875 | AV4: =(AT4*AU4)/144 -> 0.1285264757 | AW4: =Frame_Width-3.125 -> -3.125 | AX4: =CDIM_3001-0.625 -> -0.625 | AY4: =TRUNC((Frame_Width-4.8125)*16+0.5)/16 -> -4.75 | AZ4: =TRUNC((CDIM_3001-2.25)*32+0.5)/32 -> -2.21875 | BA4: =(AY4*AZ4)/144 -> 0.07318793403 | BB4: =BWGT_3001 ->  | BC4: =TWGT_3001 ->  | BD4: =IF(COIL=1,3.875-0.6875,3.875+((COIL-1)*1.625)-0.6875) ->  | BE4: 6 | BF4: 1.875 | BG4: =Frame_Width-5.25 -> -5.25 | BH4: =IF(AND(AX4>36.0625,(Frame_Height/2)<=CMR),CDIM_3001-BF4-BD4-0.125,IF(OR(AND(AX4>36.0625,(Frame_Height/2)<=CMR),(Frame_Height/2)>=CMR),Frame_Height-AX4-BE4-BF4,CDIM_3001-BF4-BD4-0.125)) -> -7.25 | BL4: 1 | BM4: Single Strength (2.5 mm) | BQ4: SS (2.2) | BR4: DS (3.2) | BS4: 4 mm | BT4: TS (5.0) | BY4: Min. W | BZ4: Min. H | CA4: Max. W | CB4: Max. H | CC4: Max. UI
A5: =IF(OR(ModelNo="0151",ModelNo="0951",ModelNo="9051",ModelNo="8051"),4,"") ->  | B5: 0151 | C5: Sash Glass Height | D5: =Frame_Height-4.625 -> -4.625 | F5: 3 | G5: 3002 | H5: 4000 Series Two Lite Slider | I5: 0 | J5: 0 | M5: 18.5 | N5: 11.25 | O5: =IF(EXTSELECT=2,72,IF(EXTSELECT=3,96,"")) ->  | P5: =IF(EXTSELECT=2,56,IF(EXTSELECT=3,72,"")) ->  | Q5: =IF(EXTSELECT=2,128,IF(EXTSELECT=3,156,"")) ->  | R5: Standard | V5: Half | W5: Full | Y5: Select Reinforcement | Z5: Composite | AA5: Steel | AH5: Double Strength (3 mm) | AI5: Triple Strength (5 mm) | AJ5: Triple IG Single Strength | AK5: Triple IG Double Strength | AL5: Laminated | BG5: =(Frame_Width/2)-4.75 -> -4.75 | BL5: 2 | BM5: Double Strength (3 mm) | BP5: Max. Short | BQ5: =IF(TG2W>41,0,41) -> 41 | BR5: =IF(TG2W>56,0,56) -> 56 | BS5: =IF(TG2W>67,0,67) -> 67 | BT5: =IF(TG2W>70,0,70) -> 70 | BU5: Annealed | BX5: Mezzo | BY5: 25 | BZ5: 40
A6: =IF(OR(ModelNo="0151",ModelNo="0951",ModelNo="9051",ModelNo="8051"),5,"") ->  | B6: 0151 | C6: Glass Area (sq.ft.) | D6: =(D4*D5)/144 -> 0.1485460069 | F6: 4 | G6: 3003 | H6: 4000 Series Three Lite Slider (1/4-1/2-1/4) | I6: 0 | J6: 0 | M6: 47.5 | N6: 11.25 | O6: =IF(EXTSELECT=2,108,IF(EXTSELECT=3,120,"")) ->  | P6: =IF(EXTSELECT=2,56,IF(EXTSELECT=3,72,"")) ->  | Q6: =IF(EXTSELECT=2,164,IF(EXTSELECT=3,192,"")) ->  | R6: Standard (1/4-1/2-1/4) | V6: Half | W6: Full | Y6: Select Reinforcement | Z6: Composite | AA6: Steel | AH6: Double Strength (3 mm) | AI6: Triple Strength (5 mm) | AJ6: Triple IG Single Strength | AK6: Triple IG Double Strength | AL6: Laminated | BG6: =(Frame_Width/4)-2.25 -> -2.25 | BL6: 3 | BM6: Triple Strength (5 mm) | BP6: Max. Long | BQ6: =IF(TG2H>62,0,62) -> 62 | BR6: =IF(TG2H>76,0,76) -> 76 | BS6: =IF(TG2H>90,0,90) -> 90 | BT6: =IF(TG2H>102,0,102) -> 102 | BU6: Annealed | BX6: Mezzo/N.F | BY6: 26 | BZ6: 41
A7: =IF(OR(ModelNo="0151",ModelNo="0951",ModelNo="9051",ModelNo="8051"),6,"") ->  | B7: 0151 | C7: Screen Width | D7: =Frame_Width-4 -> -4 | F7: 5 | G7: 3004 | H7: 4000 Series Picture Window | I7: 0 | J7: 0 | M7: 9.5 | N7: 9.5 | O7: 112 | P7: 112 | Q7: 154 | R7: Standard | AH7: Double Strength (3 mm) | AI7: Triple Strength (5 mm) | AJ7: Triple IG Single Strength | AK7: Triple IG Double Strength | AL7: Laminated | BL7: 4 | BM7: Triple IG Single Strrength | BP7: Max Sq.Ft. | BQ7: =IF(TG2A>12,0,12) -> 12 | BR7: =IF(TG2A>22,0,22) -> 22 | BS7: =IF(TG2A>32,0,32) -> 32 | BT7: =IF(TG2A>35,0,35) -> 35 | BU7: Annealed | BX7: New Construction | BY7: 20 | BZ7: 36
A8: =IF(OR(ModelNo="0151",ModelNo="0951",ModelNo="9051",ModelNo="8051"),7,"") ->  | B8: 0151 | C8: Screen Height | D8: =Frame_Height-4 -> -4 | F8: 6 | G8: 3009 | H8: 4000 Series Three Lite Slider Equal Lite | I8: 0 | J8: 0 | M8: 37.25 | N8: 11.25 | O8: =IF(EXTSELECT=2,108,IF(EXTSELECT=3,120,"")) ->  | P8: =IF(EXTSELECT=2,56,IF(EXTSELECT=3,72,"")) ->  | Q8: =IF(EXTSELECT=2,164,IF(EXTSELECT=3,192,"")) ->  | R8: Standard (1/3-1/3-1/3) | V8: Half | W8: Full | Y8: Select Reinforcement | Z8: Composite | AA8: Steel | AH8: Double Strength (3 mm) | AI8: Triple Strength (5 mm) | AJ8: Triple IG Single Strength | AK8: Triple IG Double Strength | AL8: Laminated | BG8: =(Frame_Width/3)-4.375 -> -4.375 | BL8: 5 | BM8: Triple IG Double Strength | BP8: Max. Short | BQ8: 0 | BR8: =IF(TG2W>42,0,42) -> 42 | BS8: =IF(TG2W>70,0,70) -> 70 | BT8: =IF(TG2W>70,0,70) -> 70 | BU8: Tempered | BX8: 0700 Series | BY8: 20 | BZ8: 36
A9: =IF(OR(ModelNo="0151",ModelNo="0951",ModelNo="9051",ModelNo="8051"),8,"") ->  | B9: 0151 | C9: Awning Does not Meet Egress | F9: 7 | G9: 03A0 | H9: 4000 Series Single Hung | I9: 0 | J9: 0 | M9: 12 | N9: 22 | O9: =IF(EXTSELECT=2,48,IF(EXTSELECT=3,52,"")) ->  | P9: =IF(EXTSELECT=2,78,IF(EXTSELECT=3,96,"")) ->  | Q9: =IF(EXTSELECT=2,126,IF(EXTSELECT=3,148,"")) ->  | R9: Standard | S9: Custom | V9: Half | W9: Full | X9: Locking | Y9: Select Reinforcement | Z9: Composite | AA9: Steel | AH9: Double Strength (3 mm) | AI9: Triple Strength (5 mm) | AJ9: Triple IG Single Strength | AK9: Triple IG Double Strength | AL9: Laminated | AP9: =Frame_Height-AQ9 -> 0 | AQ9: =IF(TYPE=1,(Frame_Height/2),IF(TYPE=2,CMR)) -> 0 | AT9: =TRUNC((Frame_Width-4.75)*16+0.5)/16 -> -4.6875 | AU9: =TRUNC((DDIM_03A0-2.625)*32+0.5)/32 -> -2.59375 | AV9: =(AT9*AU9)/144 -> 0.08443196615 | AW9: =Frame_Width-3.125 -> -3.125 | AX9: =CDIM_03A0-1.125 -> -1.125 | AY9: =TRUNC((Frame_Width-4.8125)*16+0.5)/16 -> -4.75 | AZ9: =TRUNC((CDIM_03A0-2.75)*32+0.5)/32 -> -2.71875 | BA9: =(AY9*AZ9)/144 -> 0.08968098958 | BB9: =BWGT_03A0 ->  | BD9: =IF(COIL=1,3.875-0.6875,3.875+((COIL-1)*1.625)-0.6875) ->  | BE9: 6 | BF9: 1.875 | BG9: =Frame_Width-5.8125 -> -5.8125 | BH9: =IF(AND(AX9>36.0625,(Frame_Height/2)<=CMR),CDIM_03A0-BF9-BD9-0.125,IF(OR(AND(AX9>36.0625,(Frame_Height/2)<=CMR),(Frame_Height/2)>=CMR),Frame_Height-AX9-BE9-BF9,CDIM_03A0-BF9-BD9-0.125)) -> -6.75 | BL9: 6 | BM9: Laminated | BP9: Max. Long | BQ9: 0 | BR9: =IF(TG2H>84,0,84) -> 84 | BS9: =IF(TG2H>129,0,129) -> 129 | BT9: =IF(TG2H>129,0,129) -> 129 | BU9: Tempered | BX9: Fusion | BY9: 23.5 | BZ9: 38
A10: =IF(OR(ModelNo="0152",ModelNo="0952",ModelNo="9052",ModelNo="8052"),1,"") ->  | B10: 0152 | C10: Operating Sash Width | D10: =Frame_Width-1.625 -> -1.625 | F10: 8 | G10: 03A2 | H10: 4000 Series Two Lite Single Slider | I10: 0 | J10: 0 | M10: 18.5 | N10: 12 | O10: =IF(EXTSELECT=2,72,IF(EXTSELECT=3,96,"")) ->  | P10: =IF(EXTSELECT=2,56,IF(EXTSELECT=3,72,"")) ->  | Q10: =IF(EXTSELECT=2,128,IF(EXTSELECT=3,156,"")) ->  | R10: Standard | V10: Half | W10: Full | Y10: Select Reinforcement | Z10: Composite | AA10: Steel | AH10: Double Strength (3 mm) | AI10: Triple Strength (5 mm) | AJ10: Triple IG Single Strength | AK10: Triple IG Double Strength | AL10: Laminated | BG10: =(Frame_Width/2)-4.75 -> -4.75 | BL10: 7 | BM10: HP Package | BP10: Max Sq.Ft. | BQ10: 0 | BR10: =IF(TG2A>24.5,0,24.5) -> 24.5 | BS10: =IF(TG2A>42,0,42) -> 42 | BT10: =IF(TG2A>42,0,42) -> 42 | BU10: Tempered | BX10: 1700 | BY10: 24
A11: =IF(OR(ModelNo="0152",ModelNo="0952",ModelNo="9052",ModelNo="8052"),2,"") ->  | B11: 0152 | C11: Operating Sash Height | D11: =(Frame_Height/2)-1.375 -> -1.375 | F11: 9 | G11: 03A3 | H11: 4000 Series Three Lite Slider (1/4-1/2-1/4) | I11: 0 | J11: 0 | M11: 52 | N11: 12 | O11: =IF(EXTSELECT=2,108,IF(EXTSELECT=3,110,"")) ->  | P11: =IF(EXTSELECT=2,56,IF(EXTSELECT=3,72,"")) ->  | Q11: =IF(EXTSELECT=2,164,IF(EXTSELECT=3,182,"")) ->  | R11: Standard (1/4-1/2-1/4) | V11: Half | W11: Full | Y11: Select Reinforcement | Z11: Composite | AA11: Steel | AH11: Double Strength (3 mm) | AI11: Triple Strength (5 mm) | AJ11: Triple IG Single Strength | AK11: Triple IG Double Strength | AL11: Laminated | BG11: =(Frame_Width/4)-2.875 -> -2.875 | BL11: 8 | BM11: Impact Laminated | BQ11: =IF(AND(BQ5>0,BQ6>0,BQ7>0),1,0) -> 1 | BR11: =IF(AND(BR5>0,BR6>0,BR7>0),1,0) -> 1 | BS11: =IF(AND(BS5>0,BS6>0,BS7>0),1,0) -> 1 | BT11: =IF(AND(BT5>0,BT6>0,BT7>0),1,0) -> 1 | BU11: =IF(BQ11>0,"≥SS Annealed",IF(BR11>0,"≥DS Annealed",IF(BT11>0,"TS Annealed",""))) -> ≥SS Annealed | BX11: 1900 | BY11: 24
A12: =IF(OR(ModelNo="0152",ModelNo="0952",ModelNo="9052",ModelNo="8052"),3,"") ->  | B12: 0152 | C12: Fixed Sash Width | D12: =Frame_Width-1.625 -> -1.625 | F12: 10 | G12: 03A4 | H12: 4000 Series Picture Window | I12: 0 | J12: 0 | M12: 9.5 | N12: 9.5 | O12: 112 | P12: 112 | Q12: 154 | R12: Standard | AH12: Double Strength (3 mm) | AI12: Triple Strength (5 mm) | AJ12: Triple IG Single Strength | AK12: Triple IG Double Strength | AL12: Laminated | BR12: =IF(AND(BR8>0,BR9>0,BR10>0),1,0) -> 1 | BS12: =IF(AND(BS8>0,BS9>0,BS10>0),1,0) -> 1 | BT12: =IF(AND(BT8>0,BT9>0,BT10>0),1,0) -> 1 | BU12: =IF(BR12>0,"≥DS Tempered",IF(BT12>0,"TS Tempered","")) -> ≥DS Tempered
A13: =IF(OR(ModelNo="0152",ModelNo="0952",ModelNo="9052",ModelNo="8052"),4,"") ->  | B13: 0152 | C13: Fixed Sash Height | D13: =(Frame_Height/2)-1.375 -> -1.375 | F13: 11 | G13: 03A9 | H13: 4000 Series Three Lite Slider Equal Lite | I13: 0 | J13: 0 | M13: 52 | N13: 12 | O13: =IF(EXTSELECT=2,108,IF(EXTSELECT=3,120,"")) ->  | P13: =IF(EXTSELECT=2,56,IF(EXTSELECT=3,72,"")) ->  | Q13: =IF(EXTSELECT=2,164,IF(EXTSELECT=3,192,"")) ->  | R13: Standard (1/3-1/3-1/3) | V13: Half | W13: Full | Y13: Select Reinforcement | Z13: Composite | AA13: Steel | AH13: Double Strength (3 mm) | AI13: Triple Strength (5 mm) | AJ13: Triple IG Single Strength | AK13: Triple IG Double Strength | AL13: Laminated | BG13: =(Frame_Width/3)-4.375 -> -4.375 | BQ13: 2.5 mm | BR13: 3.2 mm | BS13: 4 mm | BT13: 5 mm
A14: =IF(OR(ModelNo="0152",ModelNo="0952",ModelNo="9052",ModelNo="8052"),5,"") ->  | B14: 0152 | C14: Operating Sash Glass Width | D14: =Frame_Width-4.625 -> -4.625 | F14: 12 | G14: L201 | H14: 2000 Series Double Hung | I14: 0 | J14: 0 | M14: 11 | N14: 20 | O14: 48 | P14: 78 | Q14: 126 | R14: Standard | S14: Custom | V14: Half | W14: Full | X14: Locking | AG14: Single Strength (2.5 mm) | AH14: Double Strength (3 mm) | AI14: Triple Strength (5 mm) | AP14: =Frame_Height-AQ14 -> 0 | AQ14: =IF(TYPE=1,(Frame_Height/2),IF(TYPE=2,CMR)) -> 0 | AR14: =Frame_Width-3.25 -> -3.25 | AS14: =DDIM_L201-1.5625 -> -1.5625 | AT14: =TRUNC((Frame_Width-4.9375)*16+0.5)/16 -> -4.875 | AU14: =TRUNC((DDIM_L201-3.21875)*32+0.5)/32 -> -3.1875 | AV14: =(AT14*AU14)/144 -> 0.1079101562 | AW14: =Frame_Width-2.25 -> -2.25 | AX14: =CDIM_L201-0.5625 -> -0.5625 | AY14: =TRUNC((Frame_Width-3.9375)*16+0.5)/16 -> -3.875 | AZ14: =TRUNC((CDIM_L201-2.21875)*32+0.5)/32 -> -2.1875 | BA14: =(AY14*AZ14)/144 -> 0.05886501736 | BB14: =BWGT_L201 ->  | BC14: =TWGT_L201 ->  | BD14: =IF(COIL=1,3.875-0.6875,3.875+((COIL-1)*1.625)-0.6875) ->  | BE14: 7.4375 | BF14: 1.75 | BG14: =Frame_Width-4.5 -> -4.5 | BH14: =IF(AND(AX14>36.0625,(Frame_Height/2)<=CMR),CDIM_L201-BF14-BD14-0.125,IF(OR(AND(AX14>36.0625,(Frame_Height/2)<=CMR),(Frame_Height/2)>=CMR),Frame_Height-AX14-BE14-BF14,CDIM_L201-BF14-BD14-0.125)) -> -8.625 | BP14: Max. Short | BQ14: =IF(TG2H>41,0,41) -> 41 | BR14: =IF(TG2H>56,0,56) -> 56 | BS14: =IF(TG2H>67,0,67) -> 67 | BT14: =IF(TG2H>70,0,70) -> 70 | BU14: Annealed
A15: =IF(OR(ModelNo="0152",ModelNo="0952",ModelNo="9052",ModelNo="8052"),6,"") ->  | B15: 0152 | C15: Operating Sash Glass Height | D15: =Frame_Height/2-4.375 -> -4.375 | F15: 13 | G15: L202 | H15: 2000 Series 2 Lite Slider | I15: 0 | J15: 0 | M15: 18 | N15: 9 | O15: 84 | P15: 56 | Q15: 140 | R15: Standard | V15: Half | W15: Full | AG15: Single Strength (2.5 mm) | AH15: Double Strength (3 mm) | AI15: Triple Strength (5 mm) | BG15: =(Frame_Width/2)-4.25 -> -4.25 | BP15: Max. Long | BQ15: =IF(TG2W>62,0,62) -> 62 | BR15: =IF(TG2W>76,0,76) -> 76 | BS15: =IF(TG2W>90,0,90) -> 90 | BT15: =IF(TG2W>102,0,102) -> 102 | BU15: Annealed
A16: =IF(OR(ModelNo="0152",ModelNo="0952",ModelNo="9052",ModelNo="8052"),7,"") ->  | B16: 0152 | C16: Fixed Sash Glass Width | D16: =Frame_Width-4.625 -> -4.625 | F16: 14 | G16: L203 | H16: 2000 Series 3 Lite Slider (1/4-1/2-1/4) | I16: 0 | J16: 0 | M16: 48 | N16: 9 | O16: 108 | P16: 56 | Q16: 164 | R16: Standard (1/4-1/2-1/4) | V16: Half | W16: Full | AG16: Single Strength (2.5 mm) | AH16: Double Strength (3 mm) | AI16: Triple Strength (5 mm) | BG16: =(Frame_Width/4)-1.5 -> -1.5 | BP16: Max Sq.Ft. | BQ16: =IF(TG2A>12,0,12) -> 12 | BR16: =IF(TG2A>22,0,22) -> 22 | BS16: =IF(TG2A>32,0,32) -> 32 | BT16: =IF(TG2A>35,0,35) -> 35 | BU16: Annealed
A17: =IF(OR(ModelNo="0152",ModelNo="0952",ModelNo="9052",ModelNo="8052"),8,"") ->  | B17: 0152 | C17: Fixed Sash Glass Height | D17: =Frame_Height/2-4.375 -> -4.375 | F17: 15 | G17: L204 | H17: 2000 Series Picture Window | I17: 0 | J17: 0 | M17: 9 | N17: 9 | O17: 96 | P17: 96 | Q17: 154 | R17: Standard | AH17: Double Strength (3 mm) | AI17: Triple Strength (5 mm) | BP17: Max. Short | BQ17: 0 | BR17: =IF(TG2H>42,0,42) -> 42 | BS17: =IF(TG2H>70,0,70) -> 70 | BT17: =IF(TG2H>70,0,70) -> 70 | BU17: Tempered
A18: =IF(OR(ModelNo="0152",ModelNo="0952",ModelNo="9052",ModelNo="8052"),9,"") ->  | B18: 0152 | C18: Screen Width | D18: =Frame_Width-4 -> -4 | F18: 16 | G18: L209 | H18: 2000 Series 3 Lite Slider Equal Lite | I18: 0 | J18: 0 | M18: 38 | N18: 9 | O18: 108 | P18: 56 | Q18: 164 | R18: Standard (1/3-1/3-1/3) | V18: Half | W18: Full | AG18: Single Strength (2.5 mm) | AH18: Double Strength (3 mm) | AI18: Triple Strength (5 mm) | BG18: =(TRUNC((Frame_Width/3+0.1875)*16+0.5)/16)-2.125 -> -1.9375 | BP18: Max. Long | BQ18: 0 | BR18: =IF(TG2W>84,0,84) -> 84 | BS18: =IF(TG2W>129,0,129) -> 129 | BT18: =IF(TG2W>129,0,129) -> 129 | BU18: Tempered
A19: =IF(OR(ModelNo="0152",ModelNo="0952",ModelNo="9052",ModelNo="8052"),10,"") ->  | B19: 0152 | C19: Screen Height | D19: =(Frame_Height/2)-3.6875 -> -3.6875 | F19: 17 | G19: 1700 | H19: New Const. Single Hung | I19: 0.5 | J19: 0.5 | M19: 14.25 | N19: 25 | O19: 52 | P19: =IF(Frame_Width>48,84,96) -> 96 | Q19: 136 | R19: Standard | S19: Custom | V19: Half | Y19: Standard | Z19: HP Package | AG19: Single Strength (2.5 mm) | AH19: Double Strength (3 mm) | AI19: Triple Strength (5 mm) | AL19: Laminated | AO19: << Select Opening | AP19: =Frame_Height-AQ19 -> 0 | AQ19: =IF(TYPE=1,(Frame_Height/2),IF(TYPE=2,CMR)) -> 0 | AT19: =TRUNC((Frame_Width-3.5)*32+0.5)/32 -> -3.46875 | AU19: =TRUNC((DDIM_1700-2.15625)*32+0.5)/32 -> -2.125 | AV19: =(AT19*AU19)/144 -> 0.05118815104 | AW19: =TRUNC((Frame_Width-2.188)*32+0.5)/32 -> -2.15625 | AX19: =TRUNC(((CDIM_1700-0.78125)*32+0.5))/32-0.0625 -> -0.8125 | AY19: =AW19-1.3125 -> -3.46875 | AZ19: =AX19-1.3125 -> -2.125 | BA19: =(AY19*AZ19)/144 -> 0.05118815104 | BB19: =BWGT_1700 ->  | BE19: 3 | BF19: 4.1875 | BG19: =Frame_Width-4.625 -> -4.625 | BH19: =IF(TYPE=1,Frame_Height-CDIM_1700-BE19,IF(CMR>(Frame_Height/2),Frame_Height-CMR-BE19,IF(CMR<(Frame_Height/2),Frame_Height-AX19-BF19,0))) -> -3 | BP19: Max Sq.Ft. | BQ19: 0 | BR19: =IF(TG2A>24.5,0,24.5) -> 24.5 | BS19: =IF(TG2A>42,0,42) -> 42 | BT19: =IF(TG2A>42,0,42) -> 42 | BU19: Tempered
A20: =IF(OR(ModelNo="0152",ModelNo="0952",ModelNo="9052",ModelNo="8052"),11,"") ->  | B20: 0152 | C20: Awning Does not Meet Egress | F20: 18 | G20: 1702 | H20: New Const. Single Slider | I20: 0.5 | J20: 0.5 | M20: 23.5 | N20: 14 | O20: 72 | P20: 72 | Q20: 144 | R20: Standard | S20: Custom | V20: Half | Y20: Standard | Z20: HP Package | AG20: Single Strength (2.5 mm) | AH20: Double Strength (3 mm) | AI20: Triple Strength (5 mm) | AL20: Laminated | AO20: << Select Opening | AP20: =Frame_Width-AQ20 -> 0 | AQ20: =IF(TYPE=1,(Frame_Width/2),IF(TYPE=2,CMR)) -> 0 | BG20: =CDIM_1702-3.625 -> -3.625 | BQ20: =IF(AND(BQ14>0,BQ15>0,BQ16>0),1,0) -> 1 | BR20: =IF(AND(BR14>0,BR15>0,BR16>0),1,0) -> 1 | BS20: =IF(AND(BS14>0,BS15>0,BS16>0),1,0) -> 1 | BT20: =IF(AND(BT14>0,BT15>0,BT16>0),1,0) -> 1 | BU20: =IF(BQ20>0,"≥SS Annealed",IF(BR20>0,"≥DS Annealed",IF(BT20>0,"TS Annealed",""))) -> ≥SS Annealed
A21: =IF(OR(ModelNo="0153",ModelNo="0953",ModelNo="9053",ModelNo="8053"),1,"") ->  | B21: 0153 | C21: Operating Sash Width | D21: =Frame_Width-1.625 -> -1.625 | F21: 19 | G21: 1703 | H21: New Const. 3 Lite Slider (1/4-1/2-1/4) | I21: 0.5 | J21: 0.5 | M21: 48.5 | N21: 14 | O21: 108 | P21: =IF(Frame_Width>96,60,72) -> 72 | Q21: 168 | R21: Standard | V21: Half | Y21: Standard | Z21: HP Package | AG21: Single Strength (2.5 mm) | AH21: Double Strength (3 mm) | AI21: Triple Strength (5 mm) | AL21: Laminated | AO21: << Select Opening | BG21: =(Frame_Width/4)-3.25 -> -3.25 | BR21: =IF(AND(BR17>0,BR18>0,BR19>0),1,0) -> 1 | BS21: =IF(AND(BS17>0,BS18>0,BS19>0),1,0) -> 1 | BT21: =IF(AND(BT17>0,BT18>0,BT19>0),1,0) -> 1 | BU21: =IF(BR21>0,"≥DS Tempered",IF(BT21>0,"TS Tempered","")) -> ≥DS Tempered
A22: =IF(OR(ModelNo="0153",ModelNo="0953",ModelNo="9053",ModelNo="8053"),2,"") ->  | B22: 0153 | C22: Operating Sash Height | D22: =(Frame_Height/3)-1.375 -> -1.375 | F22: 20 | G22: 1704 | H22: New Const. Picture Window | I22: 0.5 | J22: 0.5 | M22: 11.5 | N22: 11.5 | O22: =IF(Frame_Height>54,84,96) -> 96 | P22: =IF(Frame_Width>54,84,96) -> 96 | Q22: 156 | R22: Standard | AH22: Double Strength (3 mm) | AI22: Triple Strength (5 mm) | AL22: Laminated | AO22: << Select Opening | BP22: =IF(AND(OR(BU11="≥SS Annealed",BU11="≥DS Annealed",BU12="≥DS Tempered",BU20="≥SS Annealed",BU20="≥DS Annealed",BU21="≥DS Tempered")),"TIG","") -> TIG | BQ22: =IF(AND(ANNEALED1=0,ANNEALED2=0,OR(TEMPERED1>0,TEMPERED2>0)),"Tempered is Required for TIG","") -> 
A23: =IF(OR(ModelNo="0153",ModelNo="0953",ModelNo="9053",ModelNo="8053"),3,"") ->  | B23: 0153 | C23: Fixed Sash Width | D23: =Frame_Width-1.625 -> -1.625 | F23: 21 | G23: 1709 | H23: New Const. 3 Lite Slider (1/3-1/3-1/3) | I23: 0.5 | J23: 0.5 | M23: 37 | N23: 14 | O23: 108 | P23: =IF(Frame_Width>96,60,72) -> 72 | Q23: 168 | R23: Standard | V23: Half | Y23: Standard | Z23: HP Package | AG23: Single Strength (2.5 mm) | AH23: Double Strength (3 mm) | AI23: Triple Strength (5 mm) | AL23: Laminated | AO23: << Select Opening | BG23: =(Frame_Width/3)-2.875 -> -2.875 | BP23: Model | BQ23: Width | BR23: Height | BS23: Area | BT23: Balance
A24: =IF(OR(ModelNo="0153",ModelNo="0953",ModelNo="9053",ModelNo="8053"),4,"") ->  | B24: 0153 | C24: Fixed Sash Height | D24: =(2*(Frame_Height/3)-1.375) -> -1.375 | F24: 22 | G24: 1720 | H24: New Const. Twin Single Hung | I24: 0.5 | J24: 0.5 | M24: 29 | N24: 25 | O24: 96 | P24: 84 | Q24: 170 | R24: Standard | S24: Custom | V24: Half | Y24: Standard | Z24: HP Package | AG24: Single Strength (2.5 mm) | AH24: Double Strength (3 mm) | AI24: Triple Strength (5 mm) | AL24: Laminated | AO24: << Select Opening | AP24: =Frame_Height-AQ24 -> 0 | AQ24: =IF(TYPE=1,(Frame_Height/2),IF(TYPE=2,CMR)) -> 0 | AT24: =TRUNC((Frame_Width/2-3.75)*32+0.5)/32 -> -3.71875 | AU24: =TRUNC((DDIM_1720-2.15625)*32+0.5)/32 -> -2.125 | AV24: =(AT24*AU24)/144 -> 0.05487738715 | AW24: =TRUNC((Frame_Width/2-2.4375)*32+0.5)/32 -> -2.40625 | AX24: =TRUNC(((CDIM_1720-0.84375)*32+0.5))/32 -> -0.8125 | AY24: =TRUNC((AW24-1.3125)*32+0.5)/32 -> -3.6875 | AZ24: =TRUNC((AX24-1.312)*32+0.5)/32 -> -2.09375 | BA24: =(AY24*AZ24)/144 -> 0.05361599392 | BB24: =BWGT_1700 ->  | BE24: 3 | BF24: 4.1875 | BG24: =(Frame_Width/2)-4.875 -> -4.875 | BH24: =IF(TYPE=1,Frame_Height-CDIM_1720-BE24,IF(CMR>(Frame_Height/2),Frame_Height-CMR-BE24,IF(CMR<(Frame_Height/2),Frame_Height-AX24-BF24,0))) -> -3 | BO24: =IF(ModelNo=BP24,ModelNo,0) -> 0 | BP24: 3001 | BQ24: =MAX($D$274,$D$276) -> -3.125 | BR24: =MAX($D$275,$D$277) -> -0.625 | BS24: =(BQ24*BR24)/144 -> 0.01356336806 | BT24: =IF(AND(OR(Glass=4,Glass=5),OR((ISERROR((VLOOKUP(TOP_WGT,CFB,2,FALSE)))),(ISERROR((VLOOKUP(BTM_WGT,CFB,2,FALSE)))))),1,IF(AND(Glass=3,Single_ST=0),1,0)) -> 0
A25: =IF(OR(ModelNo="0153",ModelNo="0953",ModelNo="9053",ModelNo="8053"),5,"") ->  | B25: 0153 | C25: Operating Sash Glass Width | D25: =Frame_Width-4.625 -> -4.625 | F25: 23 | G25: 1730 | H25: New Const. Triple Single Hung | I25: 0.5 | J25: 0.5 | M25: 44 | N25: 25 | O25: 108 | P25: 84 | Q25: 192 | R25: Standard | S25: Custom | V25: Half | Y25: Standard | Z25: HP Package | AG25: Single Strength (2.5 mm) | AH25: Double Strength (3 mm) | AI25: Triple Strength (5 mm) | AL25: Laminated | AO25: << Select Opening | AP25: =Frame_Height-AQ25 -> 0 | AQ25: =IF(TYPE=1,(Frame_Height/2),IF(TYPE=2,CMR)) -> 0 | AT25: =TRUNC((Frame_Width/3-3.84375)*32+0.5)/32 -> -3.8125 | AU25: =TRUNC((DDIM_1730-2.15625)*32+0.5)/32 -> -2.125 | AV25: =(AT25*AU25)/144 -> 0.05626085069 | AW25: =TRUNC((Frame_Width/3-2.53125)*32+0.5)/32 -> -2.5 | AX25: =TRUNC(((CDIM_1730-0.84375)*32+0.5))/32 -> -0.8125 | AY25: =TRUNC((AW25-1.34375)*32+0.5)/32 -> -3.8125 | AZ25: =TRUNC((AX25-1.3125)*32+0.5)/32 -> -2.09375 | BA25: =(AY25*AZ25)/144 -> 0.05543348524 | BB25: =BWGT_1700 ->  | BE25: 3 | BF25: 4.1875 | BG25: =(Frame_Width/3)-4.875 -> -4.875 | BH25: =IF(TYPE=1,Frame_Height-CDIM_1730-BE25,IF(CMR>(Frame_Height/2),Frame_Height-CMR-BE25,IF(CMR<(Frame_Height/2),Frame_Height-AX25-BF25,0))) -> -3 | BO25: 0 | BP25: 3002 | BQ25: =$D$307 -> -2.5625 | BR25: =$D$308 -> -5.4375 | BS25: =(BQ25*BR25)/144 -> 0.09676106771
A26: =IF(OR(ModelNo="0153",ModelNo="0953",ModelNo="9053",ModelNo="8053"),6,"") ->  | B26: 0153 | C26: Operating Sash Glass Height | D26: =Frame_Height/3-4.375 -> -4.375 | F26: 24 | G26: 1900 | H26: New Const. Single Hung | I26: 0.5 | J26: 0.5 | M26: 14.25 | N26: 25 | O26: 52 | P26: =IF(Frame_Width>48,84,96) -> 96 | Q26: 136 | R26: Standard | S26: Custom | V26: Half | Y26: Standard | Z26: HP Package | AG26: Single Strength (2.5 mm) | AH26: Double Strength (3 mm) | AI26: Triple Strength (5 mm) | AL26: Laminated | AO26: << Select Opening | AP26: =Frame_Height-AQ26 -> 0 | AQ26: =IF(TYPE=1,(Frame_Height/2),IF(TYPE=2,CMR)) -> 0 | AT26: =TRUNC((Frame_Width-3.5)*32+0.5)/32 -> -3.46875 | AU26: =TRUNC((DDIM_1900-2.157)*32+0.5)/32 -> -2.125 | AV26: =(AT26*AU26)/144 -> 0.05118815104 | AW26: =TRUNC((Frame_Width-2.1875)*32+0.5)/32 -> -2.15625 | AX26: =TRUNC(((CDIM_1900-0.844)*16+0.5))/16 -> -0.8125 | AY26: =TRUNC((AW26-1.3125)*32+0.5)/32 -> -3.4375 | AZ26: =TRUNC((AX26-1.3125)*32+0.5)/32 -> -2.09375 | BA26: =(AY26*AZ26)/144 -> 0.04998101128 | BB26: =BWGT_1900 ->  | BE26: 3 | BF26: 4.4375 | BG26: =Frame_Width-4.625 -> -4.625 | BH26: =IF(TYPE=1,Frame_Height-CDIM_1900-BE26,IF(CMR>(Frame_Height/2),Frame_Height-CMR-BE26,IF(CMR<(Frame_Height/2),Frame_Height-AX26-BF26,0))) -> -3 | BO26: 0 | BP26: 3003 | BQ26: =MAX($D$319,$D$321) -> -1.4375 | BR26: =MAX($D$320,$D$322) -> -5.4375 | BS26: 0.05428059896
A27: =IF(OR(ModelNo="0153",ModelNo="0953",ModelNo="9053",ModelNo="8053"),7,"") ->  | B27: 0153 | C27: Fixed Sash Glass Width | D27: =Frame_Width-4.625 -> -4.625 | F27: 25 | G27: 1901 | H27: New Const. Double Hung | I27: 0.5 | J27: 0.5 | M27: 16 | N27: 25 | O27: 52 | P27: =IF(Frame_Width>48,76,84) -> 84 | Q27: 136 | R27: Standard | S27: Custom | V27: Half | W27: Full | Y27: Standard | Z27: HP Package | AG27: Single Strength (2.5 mm) | AH27: Double Strength (3 mm) | AI27: Triple Strength (5 mm) | AL27: Laminated | AO27: << Select Opening | AP27: =Frame_Height-AQ27 -> 0 | AQ27: =IF(TYPE=1,(Frame_Height/2),IF(TYPE=2,CMR)) -> 0 | AR27: =Frame_Width-3.4375 -> -3.4375 | AS27: =DDIM_1901-0.90625 -> -0.90625 | AT27: =AR27-1.3125 -> -4.75 | AU27: =AS27-1.3125 -> -2.21875 | AV27: =(AT27*AU27)/144 -> 0.07318793403 | AW27: =Frame_Width-2.1875 -> -2.1875 | AX27: =CDIM_1901-0.90625 -> -0.90625 | AY27: =AW27-1.3125 -> -3.5 | AZ27: =AX27-1.3125 -> -2.21875 | BA27: =(AY27*AZ27)/144 -> 0.05392795139 | BB27: =BWGT_1901 ->  | BC27: =TWGT_1901 ->  | BE27: 3.5 | BF27: 3.125 | BG27: =Frame_Width-4.625 -> -4.625 | BH27: =IF(TYPE=1,Frame_Height-CDIM_1901-BE27,IF(CMR>(Frame_Height/2),Frame_Height-CMR-BE27,IF(CMR<(Frame_Height/2),Frame_Height-AX27-BF27,0))) -> -3.5 | BO27: 0 | BP27: 3004 | BQ27: =$D$329 -> -4.1875 | BR27: =$D$330 -> -4.1875 | BS27: 0.1217719184
A28: =IF(OR(ModelNo="0153",ModelNo="0953",ModelNo="9053",ModelNo="8053"),8,"") ->  | B28: 0153 | C28: Fixed Sash Glass Height | D28: =2*(Frame_Height/3)-4.375 -> -4.375 | F28: 26 | G28: 1902 | H28: New Const. Single Slider | I28: 0.5 | J28: 0.5 | M28: 23.5 | N28: 14 | O28: 84 | P28: =IF(Frame_Width>72,60,72) -> 72 | Q28: 132 | R28: Standard | V28: Half | Y28: Standard | Z28: HP Package | AG28: Single Strength (2.5 mm) | AH28: Double Strength (3 mm) | AI28: Triple Strength (5 mm) | AL28: Laminated | AO28: << Select Opening | AP28: =Frame_Width-AQ28 -> 0 | AQ28: =IF(TYPE=1,(Frame_Width/2),IF(TYPE=2,CMR)) -> 0 | BO28: 0 | BP28: 3009 | BQ28: =MAX($D$337,$D$339) -> -1.875 | BR28: =MAX($D$338,$D$340) -> -5.4375 | BS28: 0.07080078125
A29: =IF(OR(ModelNo="0153",ModelNo="0953",ModelNo="9053",ModelNo="8053"),9,"") ->  | B29: 0153 | C29: Screen Width | D29: =Frame_Width-4 -> -4 | F29: 27 | G29: 1903 | H29: New Const. 3 Lite Slider (1/4-1/2-1/4) | I29: 0.5 | J29: 0.5 | M29: 48.5 | N29: 14 | O29: 108 | P29: =IF(Frame_Width>96,60,72) -> 72 | Q29: 168 | R29: Standard | V29: Half | Y29: Standard | Z29: HP Package | AG29: Single Strength (2.5 mm) | AH29: Double Strength (3 mm) | AI29: Triple Strength (5 mm) | AL29: Laminated | AO29: << Select Opening | BO29: 0 | BP29: 03A0 | BQ29: =MAX($D$292,$D$294) -> -4.6875 | BR29: =MAX($D$293,$D$295) -> -2.59375 | BS29: 0.08443196615 | BT29: =IF(AND(OR(Glass=4,Glass=5),(ISERROR((VLOOKUP(BTM_WGT,CFB,2,FALSE))))),1,IF(AND(Glass=3,Single_ST=0),1,0)) -> 0
A30: =IF(OR(ModelNo="0153",ModelNo="0953",ModelNo="9053",ModelNo="8053"),10,"") ->  | B30: 0153 | C30: Screen Height | D30: =(Frame_Height/3)-3.6875 -> -3.6875 | F30: 28 | G30: 1904 | H30: New Const. Picture Window | I30: 0.5 | J30: 0.5 | M30: 11.5 | N30: 11.5 | O30: =IF(Frame_Width>54,84,96) -> 96 | P30: =IF(Frame_Width>54,84,96) -> 96 | Q30: 156 | R30: Standard | AH30: Double Strength (3 mm) | AI30: Triple Strength (5 mm) | AL30: Laminated | AO30: << Select Opening | BO30: 0 | BP30: 03A2 | BQ30: =MAX($D$350,$D$352) -> -2.5625 | BR30: =MAX($D$351,$D$353) -> -4.6875 | BS30: 0.08341471354
A31: =IF(OR(ModelNo="0153",ModelNo="0953",ModelNo="9053",ModelNo="8053"),11,"") ->  | B31: 0153 | C31: Awning Does not Meet Egress | F31: 29 | G31: 1909 | H31: New Const. 3 Lite Slider (1/3-1/3-1/3) | I31: 0.5 | J31: 0.5 | M31: 37 | N31: 14 | O31: 108 | P31: =IF(Frame_Width>96,60,72) -> 72 | Q31: 168 | R31: Standard | V31: Half | Y31: Standard | Z31: HP Package | AG31: Single Strength (2.5 mm) | AH31: Double Strength (3 mm) | AI31: Triple Strength (5 mm) | AL31: Laminated | AO31: << Select Opening | BO31: 0 | BP31: 03A3 | BQ31: =MAX($D$362,$D$364) -> -1.5 | BR31: =MAX($D$363,$D$365) -> -4.6875 | BS31: 0.048828125
A32: =IF(OR(ModelNo="0154",ModelNo="0954",ModelNo="9054",ModelNo="8054"),1,"") ->  | B32: 0154 | C32: Operating Sash Width | D32: =Frame_Width-1.625 -> -1.625 | F32: 30 | G32: 1914 | H32: New Const. Picture Window | I32: 0.5 | J32: 0.5 | M32: 11.5 | N32: 11.5 | O32: =IF(Frame_Width>54,84,96) -> 96 | P32: =IF(Frame_Width>54,84,96) -> 96 | Q32: 156 | R32: Standard | AH32: Double Strength (3 mm) | AI32: Triple Strength (5 mm) | AL32: Laminated | AO32: << Select Opening | BO32: 0 | BP32: 03A4 | BQ32: =$D$329 -> -4.1875 | BR32: =$D$330 -> -4.1875 | BS32: 0.1217719184
A33: =IF(OR(ModelNo="0154",ModelNo="0954",ModelNo="9054",ModelNo="8054"),2,"") ->  | B33: 0154 | C33: Operating Sash Height | D33: =(Frame_Height/2)-1.375 -> -1.375 | F33: 31 | G33: 1920 | H33: New Const. Twin Single Hung | I33: 0.5 | J33: 0.5 | M33: 29 | N33: 25 | O33: 96 | P33: 84 | Q33: 170 | R33: Standard | S33: Custom | V33: Half | Y33: Standard | Z33: HP Package | AG33: Single Strength (2.5 mm) | AH33: Double Strength (3 mm) | AI33: Triple Strength (5 mm) | AL33: Laminated | AO33: << Select Opening | AP33: =Frame_Height-AQ33 -> 0 | AQ33: =IF(TYPE=1,(Frame_Height/2),IF(TYPE=2,CMR)) -> 0 | AT33: =TRUNC((Frame_Width/2-3.75)*32+0.5)/32 -> -3.71875 | AU33: =TRUNC((DDIM_1920-2.156)*32+0.5)/32 -> -2.125 | AV33: =(AT33*AU33)/144 -> 0.05487738715 | AW33: =TRUNC((Frame_Width/2-2.4375)*32+0.5)/32 -> -2.40625 | AX33: =TRUNC(((CDIM_1920-0.8441)*16+0.5))/16 -> -0.8125 | AY33: =AW33-1.3125 -> -3.71875 | AZ33: -2.125 | BA33: =(AY33*AZ33)/144 -> 0.05487738715 | BB33: =BWGT_1900 ->  | BE33: 3 | BF33: 4.4375 | BG33: =(Frame_Width/2)-4.875 -> -4.875 | BH33: =IF(TYPE=1,Frame_Height-CDIM_1920-BE33,IF(CMR>(Frame_Height/2),Frame_Height-CMR-BE33,IF(CMR<(Frame_Height/2),Frame_Height-AX33-BF33,0))) -> -3 | BO33: 0 | BP33: 03A9 | BQ33: =MAX($D$375,$D$377) -> -1.875 | BR33: =MAX($D$376,$D$378) -> -4.6875 | BS33: 0.06103515625
A34: =IF(OR(ModelNo="0154",ModelNo="0954",ModelNo="9054",ModelNo="8054"),3,"") ->  | B34: 0154 | C34: Fixed Sash Width | D34: =Frame_Width-1.625 -> -1.625 | F34: 32 | G34: 1921 | H34: New Const. Twin Double Hung | I34: 0.5 | J34: 0.5 | M34: 36 | N34: 25 | O34: 96 | P34: 84 | Q34: 170 | R34: Standard | S34: Custom | V34: Half | W34: Full | Y34: Standard | Z34: HP Package | AG34: Single Strength (2.5 mm) | AH34: Double Strength (3 mm) | AI34: Triple Strength (5 mm) | AL34: Laminated | AO34: << Select Opening | AP34: =Frame_Height-AQ34 -> 0 | AQ34: =IF(TYPE=1,(Frame_Height/2),IF(TYPE=2,CMR)) -> 0 | AR34: =Frame_Width/2-3.6875 -> -3.6875 | AS34: =DDIM_1901-0.90625 -> -0.90625 | AT34: =AR34-1.3125 -> -5 | AU34: =AS34-1.3125 -> -2.21875 | AV34: =(AT34*AU34)/144 -> 0.07703993056 | AW34: =Frame_Width/2-2.4375 -> -2.4375 | AX34: =CDIM_1921-0.90625 -> -0.90625 | AY34: -3.75 | AZ34: -2.21875 | BA34: =(AY34*AZ34)/144 -> 0.05777994792 | BB34: =BWGT_1901 ->  | BC34: =TWGT_1901 ->  | BE34: 3.5 | BF34: 3.125 | BG34: =(Frame_Width/2)-4.875 -> -4.875 | BH34: =IF(TYPE=1,Frame_Height-CDIM_1921-BE34,IF(CMR>(Frame_Height/2),Frame_Height-CMR-BE34,IF(CMR<(Frame_Height/2),Frame_Height-AX34-BF34,0))) -> -3.5 | BO34: 0 | BP34: 0951 | BQ34: =$D$4 -> -4.625 | BR34: =$D$5 -> -4.625 | BS34: =(BQ34*BR34)/144 -> 0.1485460069
A35: =IF(OR(ModelNo="0154",ModelNo="0954",ModelNo="9054",ModelNo="8054"),4,"") ->  | B35: 0154 | C35: Fixed Sash Height | D35: =(Frame_Height/2)-1.375 -> -1.375 | F35: 33 | G35: 1930 | H35: New Const. Triple Single Hung | I35: 0.5 | J35: 0.5 | M35: 44 | N35: 25 | O35: 108 | P35: 84 | Q35: 192 | R35: Standard | S35: Custom | V35: Half | Y35: Standard | Z35: HP Package | AG35: Single Strength (2.5 mm) | AH35: Double Strength (3 mm) | AI35: Triple Strength (5 mm) | AL35: Laminated | AO35: << Select Opening | AP35: =Frame_Height-AQ35 -> 0 | AQ35: =IF(TYPE=1,(Frame_Height/2),IF(TYPE=2,CMR)) -> 0 | AT35: =TRUNC((Frame_Width/3-3.844)*32+0.5)/32 -> -3.8125 | AU35: =TRUNC((DDIM_1930-2.156)*32+0.5)/32 -> -2.125 | AV35: =(AT35*AU35)/144 -> 0.05626085069 | AW35: =TRUNC((Frame_Width/3-2.53125)*32+0.5)/32 -> -2.5 | AX35: =TRUNC(((CDIM_1930-0.8441)*16+0.5))/16 -> -0.8125 | AY35: -3.8125 | AZ35: -2.125 | BA35: =(AY35*AZ35)/144 -> 0.05626085069 | BB35: =BWGT_1900 ->  | BE35: 3 | BF35: 4.4375 | BG35: =(Frame_Width/3)-4.875 -> -4.875 | BH35: =IF(TYPE=1,Frame_Height-CDIM_1930-BE35,IF(CMR>(Frame_Height/2),Frame_Height-CMR-BE35,IF(CMR<(Frame_Height/2),Frame_Height-AX35-BF35,0))) -> -3 | BO35: 0 | BP35: 0952 | BQ35: =MAX($D$14,$D$16) -> -4.625 | BR35: =MAX($D$15,$D$17) -> -4.375 | BS35: 0.1405164931
A36: =IF(OR(ModelNo="0154",ModelNo="0954",ModelNo="9054",ModelNo="8054"),5,"") ->  | B36: 0154 | C36: Operating Sash Glass Width | D36: =Frame_Width-4.625 -> -4.625 | F36: 34 | G36: 1931 | H36: New Const. Triple Double Hung | I36: 0.5 | J36: 0.5 | M36: 54 | N36: 25 | O36: 108 | P36: 84 | Q36: 192 | R36: Standard | S36: Custom | V36: Half | W36: Full | Y36: Standard | Z36: HP Package | AG36: Single Strength (2.5 mm) | AH36: Double Strength (3 mm) | AI36: Triple Strength (5 mm) | AL36: Laminated | AO36: << Select Opening | AP36: =Frame_Height-AQ36 -> 0 | AQ36: =IF(TYPE=1,(Frame_Height/2),IF(TYPE=2,CMR)) -> 0 | AR36: =Frame_Width/3-3.75 -> -3.75 | AS36: =DDIM_1901-0.90625 -> -0.90625 | AT36: =AR36-1.3125 -> -5.0625 | AU36: =AS36-1.3125 -> -2.21875 | AV36: =(AT36*AU36)/144 -> 0.07800292969 | AW36: =Frame_Width/3-2.5 -> -2.5 | AX36: =CDIM_1931-0.90625 -> -0.90625 | AY36: -3.8125 | AZ36: -2.21875 | BA36: =(AY36*AZ36)/144 -> 0.05874294705 | BB36: =BWGT_1901 ->  | BC36: =TWGT_1901 ->  | BE36: 3.5 | BF36: 3.125 | BG36: =(Frame_Width/3)-4.875 -> -4.875 | BH36: =IF(TYPE=1,Frame_Height-CDIM_1931-BE36,IF(CMR>(Frame_Height/2),Frame_Height-CMR-BE36,IF(CMR<(Frame_Height/2),Frame_Height-AX36-BF36,0))) -> -3.5 | BO36: 0 | BP36: 0953 | BQ36: =MAX($D$25,$D$27) -> -4.625 | BR36: =MAX($D$26,$D$28) -> -4.375 | BS36: 0.1405164931
A37: =IF(OR(ModelNo="0154",ModelNo="0954",ModelNo="9054",ModelNo="8054"),6,"") ->  | B37: 0154 | C37: Operating Sash Glass Height | D37: =(Frame_Height/2)-4.375 -> -4.375 | F37: 35 | G37: 0151 | H37: New Const. Single Vent Awning | I37: 0.5 | J37: 0.5 | M37: 19 | N37: 16 | O37: 48 | P37: 48 | Q37: 96 | R37: Standard | W37: Full | AH37: Double Strength (3 mm) | AI37: Triple Strength (5 mm) | AL37: Laminated | AO37: << Select Opening | BO37: 0 | BP37: 0954 | BQ37: =MAX($D$36,$D$38) -> -4.625 | BR37: =MAX($D$37,$D$39) -> -4.375 | BS37: 0.1405164931
A38: =IF(OR(ModelNo="0154",ModelNo="0954",ModelNo="9054",ModelNo="8054"),7,"") ->  | B38: 0154 | C38: Fixed Sash Glass Width | D38: =Frame_Width-4.625 -> -4.625 | F38: 36 | G38: 0152 | H38: New Const. Awning W/ Transom Equal Lite | I38: 0.5 | J38: 0.5 | M38: 19 | N38: 32 | O38: 48 | P38: 96 | Q38: 144 | R38: Standard | V38: Half | AH38: Double Strength (3 mm) | AI38: Triple Strength (5 mm) | AL38: Laminated | AO38: << Select Opening | BO38: 0 | BP38: 0955 | BQ38: =$D$45 -> -4.625 | BR38: =$D$46 -> -4.375 | BS38: 0.1405164931
A39: =IF(OR(ModelNo="0154",ModelNo="0954",ModelNo="9054",ModelNo="8054"),8,"") ->  | B39: 0154 | C39: Fixed Sash Glass Height | D39: =(Frame_Height/2)-4.375 -> -4.375 | F39: 37 | G39: 0153 | H39: New Const. Awning W/ Transom (1/3-2/3) | I39: 0.5 | J39: 0.5 | M39: 19 | N39: 48 | O39: 48 | P39: 96 | Q39: 144 | R39: Standard | V39: Half | AH39: Double Strength (3 mm) | AI39: Triple Strength (5 mm) | AL39: Laminated | AO39: << Select Opening | BO39: 0 | BP39: 0970 | BQ39: =$D$50 -> -4.625 | BR39: =$D$51 -> -4.625 | BS39: 0.1485460069
A40: =IF(OR(ModelNo="0154",ModelNo="0954",ModelNo="9054",ModelNo="8054"),9,"") ->  | B40: 0154 | C40: Screen Width | D40: =Frame_Width-4 -> -4 | F40: 38 | G40: 0154 | H40: New Const. Single Vent Awning W/ Bottom Transom | I40: 0.5 | J40: 0.5 | M40: 19 | N40: 32 | O40: 48 | P40: 96 | Q40: 144 | R40: Standard | V40: Half | AH40: Double Strength (3 mm) | AI40: Triple Strength (5 mm) | AL40: Laminated | AO40: << Select Opening | BO40: 0 | BP40: B970 | BQ40: =$D$50 -> -4.625 | BR40: =$D$51 -> -4.625 | BS40: 0.1485460069
A41: =IF(OR(ModelNo="0154",ModelNo="0954",ModelNo="9054",ModelNo="8054"),10,"") ->  | B41: 0154 | C41: Screen Height | D41: =(Frame_Height/2)-3.6875 -> -3.6875 | F41: 39 | G41: 0155 | H41: New Const. Dual Vent Equal Lite | I41: 0.5 | J41: 0.5 | M41: 19 | N41: 32 | O41: 48 | P41: 96 | Q41: 144 | R41: Standard | V41: Half | AH41: Double Strength (3 mm) | AI41: Triple Strength (5 mm) | AL41: Laminated | AO41: << Select Opening | BO41: 0 | BP41: 0971 | BQ41: =$D$55 -> -4.625 | BR41: =$D$56 -> -4.625 | BS41: 0.1485460069
A42: =IF(OR(ModelNo="0154",ModelNo="0954",ModelNo="9054",ModelNo="8054"),11,"") ->  | B42: 0154 | C42: Awning Does not Meet Egress | F42: 40 | G42: 0170 | H42: New Const. Casement Picture Window | I42: 0.5 | J42: 0.5 | M42: 13 | N42: 11.5 | O42: 96 | P42: 96 | Q42: 154 | R42: Standard | AH42: Double Strength (3 mm) | AI42: Triple Strength (5 mm) | AL42: Laminated | AO42: << Select Opening | BO42: 0 | BP42: B971 | BQ42: =$D$55 -> -4.625 | BR42: =$D$56 -> -4.625 | BS42: 0.1485460069
A43: =IF(OR(ModelNo="0155",ModelNo="0955",ModelNo="9055",ModelNo="8055"),1,"") ->  | B43: 0155 | C43: Sash Width | D43: =Frame_Width-1.625 -> -1.625 | F43: 41 | G43: 0171 | H43: New Const. Single Vent Casement | I43: 0.5 | J43: 0.5 | M43: 16 | N43: 19 | O43: 36 | P43: 78 | Q43: 114 | R43: Standard | W43: Full | AH43: Double Strength (3 mm) | AI43: Triple Strength (5 mm) | AL43: Laminated | AO43: << Select Opening | BO43: 0 | BP43: 0972 | BQ43: =$D$67 -> -4.375 | BR43: =$D$68 -> -4.625 | BS43: 0.1405164931
A44: =IF(OR(ModelNo="0155",ModelNo="0955",ModelNo="9055",ModelNo="8055"),2,"") ->  | B44: 0155 | C44: Sash Height | D44: =(Frame_Height/2)-1.375 -> -1.375 | F44: 42 | G44: 0172 | H44: New Const. Dual Vent Casement | I44: 0.5 | J44: 0.5 | M44: 32 | N44: 19 | O44: 72 | P44: 78 | Q44: 150 | R44: Standard | V44: Half | AH44: Double Strength (3 mm) | AI44: Triple Strength (5 mm) | AL44: Laminated | AO44: << Select Opening | BO44: 0 | BP44: 0973 | BQ44: =MAX($D$81,$D$83) -> -4.125 | BR44: =MAX($D$82,$D$84) -> -4.625 | BS44: 0.1324869792
A45: =IF(OR(ModelNo="0155",ModelNo="0955",ModelNo="9055",ModelNo="8055"),3,"") ->  | B45: 0155 | C45: Sash Glass Width | D45: =(Frame_Width)-4.625 -> -4.625 | F45: 43 | G45: 0173 | H45: New Const. Dual Vent Casement (1/4-1/2-1/4) | I45: 0.5 | J45: 0.5 | M45: 64 | N45: 19 | O45: 120 | P45: 78 | Q45: 198 | R45: Standard (1/4-1/2-1/4) | V45: Half | AH45: Double Strength (3 mm) | AI45: Triple Strength (5 mm) | AL45: Laminated | AO45: << Select Opening | BO45: 0 | BP45: 0974 | BQ45: =MAX($D$115,$D$117) -> -4.25 | BR45: =MAX($D$116,$D$118) -> -4.625 | BS45: 0.1365017361
A46: =IF(OR(ModelNo="0155",ModelNo="0955",ModelNo="9055",ModelNo="8055"),4,"") ->  | B46: 0155 | C46: Sash Glass Height | D46: =(Frame_Height/2)-4.375 -> -4.375 | F46: 44 | G46: 0179 | H46: New Const. Dual Vent Casement Equal Lite | I46: 0.5 | J46: 0.5 | M46: 48 | N46: 19 | O46: 108 | P46: 78 | Q46: 186 | R46: Standard (1/3-1/3-1/3) | V46: Half | AH46: Double Strength (3 mm) | AI46: Triple Strength (5 mm) | AL46: Laminated | AO46: << Select Opening | BO46: 0 | BP46: 0975 | BQ46: =MAX($D$133,$D$135) -> -4.1875 | BR46: =MAX($D$134,$D$136) -> -4.625 | BS46: 0.1344943576
A47: =IF(OR(ModelNo="0155",ModelNo="0955",ModelNo="9055",ModelNo="8055"),5,"") ->  | B47: 0155 | C47: Screen Width | D47: =Frame_Width-4 -> -4 | F47: 45 | G47: S174 | H47: New Construction 4 Lite Casement | I47: 0.5 | J47: 0.5 | M47: 64 | N47: 19 | O47: 120 | P47: 78 | Q47: 198 | R47: Standard | V47: Half | AH47: Double Strength (3 mm) | AI47: Triple Strength (5 mm) | AL47: Laminated | AO47: << Select Opening | BO47: 0 | BP47: 0979 | BQ47: =MAX($D$98,$D$100) -> -4.25 | BR47: =MAX($D$99,$D$101) -> -4.625 | BS47: 0.1365017361
A48: =IF(OR(ModelNo="0155",ModelNo="0955",ModelNo="9055",ModelNo="8055"),6,"") ->  | B48: 0155 | C48: Screen Height | D48: =(Frame_Height/2)-3.6875 -> -3.6875 | F48: 46 | G48: S175 | H48: New Construction 5 Lite Casement | I48: 0.5 | J48: 0.5 | M48: 80 | N48: 19 | O48: 120 | P48: 78 | Q48: 198 | R48: Standard | V48: Half | AH48: Double Strength (3 mm) | AI48: Triple Strength (5 mm) | AL48: Laminated | AO48: << Select Opening | BO48: 0 | BP48: 6402 | BQ48: =$D$236 -> -5.125 | BR48: =$D$237 -> -8.625 | BS48: 0.3069661458
A49: =IF(OR(ModelNo="0155",ModelNo="0955",ModelNo="9055",ModelNo="8055"),7,"") ->  | B49: 0155 | C49: Awning Does not Meet Egress | F49: 47 | G49: 0951 | H49: Single Vent Awning | I49: 0 | J49: 0 | M49: 19 | N49: 16 | O49: 48 | P49: 48 | Q49: 96 | R49: Standard | W49: Full | AH49: Double Strength (3 mm) | AI49: Triple Strength (5 mm) | AJ49: Triple IG Single Strength | AK49: Triple IG Double Strength | AL49: Laminated | AO49: =IF(RO=2,"<< Exact Size Only","") ->  | BO49: 0 | BP49: 6403 | BQ49: =$D$249 -> -5 | BR49: =$D$250 -> -8.625 | BS49: 0.2994791667
A50: =IF(OR(ModelNo="0170",ModelNo="0970",ModelNo="0504",ModelNo="U504",ModelNo="0614",ModelNo="U614",ModelNo="9070",ModelNo="9014",ModelNo="8070",ModelNo="8014",ModelNo="B970",ModelNo="P970",ModelNo="R970",ModelNo="i970"),1,"") ->  | B50: 0170 | C50: Glass Width | D50: =Frame_Width-4.625 -> -4.625 | F50: 48 | G50: 0952 | H50: Awning W/ Transom Equal Lite | I50: 0 | J50: 0 | M50: 19 | N50: 32 | O50: 48 | P50: 96 | Q50: 144 | R50: Standard | V50: Half | AH50: Double Strength (3 mm) | AI50: Triple Strength (5 mm) | AJ50: Triple IG Single Strength | AK50: Triple IG Double Strength | AL50: Laminated | BO50: 0 | BP50: 6404 | BQ50: =$D$264 -> -4.6875 | BR50: =$D$265 -> -8.625 | BS50: 0.2807617188
A51: =IF(OR(ModelNo="0170",ModelNo="0970",ModelNo="0504",ModelNo="U504",ModelNo="0614",ModelNo="U614",ModelNo="9070",ModelNo="9014",ModelNo="8070",ModelNo="8014",ModelNo="B970",ModelNo="P970",ModelNo="R970",ModelNo="i970"),2,"") ->  | B51: 0170 | C51: Glass Height | D51: =Frame_Height-4.625 -> -4.625 | F51: 49 | G51: 0953 | H51: Awning W/ Transom (1/3-2/3) | I51: 0 | J51: 0 | M51: 19 | N51: 48 | O51: 48 | P51: 96 | Q51: 144 | R51: Standard | V51: Half | AH51: Double Strength (3 mm) | AI51: Triple Strength (5 mm) | AJ51: Triple IG Single Strength | AK51: Triple IG Double Strength | AL51: Laminated | BO51: 0 | BP51: 6405 | BQ51: =$D$236 -> -5.125 | BR51: =$D$237 -> -8.625 | BS51: 0.3069661458
A52: =IF(OR(ModelNo="0170",ModelNo="0970",ModelNo="0504",ModelNo="U504",ModelNo="0614",ModelNo="U614",ModelNo="9070",ModelNo="9014",ModelNo="8070",ModelNo="8014",ModelNo="B970",ModelNo="P970",ModelNo="R970",ModelNo="i970"),3,"") ->  | B52: 0170 | C52: Glass Area (sq.ft.) | D52: =(D50*D51)/144 -> 0.1485460069 | F52: 50 | G52: 0954 | H52: Single Vent Awning W/ Bottom Transom | I52: 0 | J52: 0 | M52: 19 | N52: 32 | O52: 48 | P52: 96 | Q52: 144 | R52: Standard | V52: Half | AH52: Double Strength (3 mm) | AI52: Triple Strength (5 mm) | AJ52: Triple IG Single Strength | AK52: Triple IG Double Strength | AL52: Laminated | BO52: 0 | BP52: 6406 | BQ52: =$D$236 -> -5.125 | BR52: =$D$237 -> -8.625 | BS52: 0.3069661458
A53: =IF(OR(ModelNo="0171",ModelNo="0971",ModelNo="9071",ModelNo="8071",ModelNo="B971",ModelNo="P971",ModelNo="R971",ModelNo="i971"),1,"") ->  | B53: 0171 | C53: Sash Width | D53: =Frame_Width-1.625 -> -1.625 | F53: 51 | G53: 0955 | H53: Dual Vent Awning Equal Lite | I53: 0 | J53: 0 | M53: 19 | N53: 32 | O53: 48 | P53: 96 | Q53: 144 | R53: Standard | V53: Half | AH53: Double Strength (3 mm) | AI53: Triple Strength (5 mm) | AJ53: Triple IG Single Strength | AK53: Triple IG Double Strength | AL53: Laminated | BO53: 0 | BP53: 6408 | BQ53: =$D$236 -> -5.125 | BR53: =$D$237 -> -8.625 | BS53: 0.3069661458
A54: =IF(OR(ModelNo="0171",ModelNo="0971",ModelNo="9071",ModelNo="8071",ModelNo="B971",ModelNo="P971",ModelNo="R971",ModelNo="i971"),2,"") ->  | B54: 0171 | C54: Sash Height | D54: =Frame_Height-1.625 -> -1.625 | F54: 52 | G54: 0961 | H54: Single Vent Casement | I54: 0 | J54: 0 | R54: Standard | W54: Full | AH54: Double Strength (3 mm) | AI54: Triple Strength (5 mm) | AJ54: Triple IG Single Strength | AK54: Triple IG Double Strength | AL54: Laminated | BO54: 0 | BP54: 6409 | BQ54: =$D$249 -> -5 | BR54: =$D$250 -> -8.625 | BS54: 0.2994791667
A55: =IF(OR(ModelNo="0171",ModelNo="0971",ModelNo="9071",ModelNo="8071",ModelNo="B971",ModelNo="P971",ModelNo="R971",ModelNo="i971"),3,"") ->  | B55: 0171 | C55: Glass Width | D55: =Frame_Width-4.625 -> -4.625 | F55: 53 | G55: 0962 | H55: Dual Vent Casement | I55: 0 | J55: 0 | R55: Standard | V55: Half | AH55: Double Strength (3 mm) | AI55: Triple Strength (5 mm) | AJ55: Triple IG Single Strength | AK55: Triple IG Double Strength | AL55: Laminated | BO55: 0 | BP55: 6412 | BQ55: =$D$264 -> -4.6875 | BR55: =$D$265 -> -8.625 | BS55: 0.2807617188
A56: =IF(OR(ModelNo="0171",ModelNo="0971",ModelNo="9071",ModelNo="8071",ModelNo="B971",ModelNo="P971",ModelNo="R971",ModelNo="i971"),4,"") ->  | B56: 0171 | C56: Glass Height | D56: =Frame_Height-4.625 -> -4.625 | F56: 54 | G56: 0963 | H56: Dual Vent 3 Lite Casement (1/4-1/2-1/4) | I56: 0 | J56: 0 | R56: Standard | V56: Half | AH56: Double Strength (3 mm) | AI56: Triple Strength (5 mm) | AJ56: Triple IG Single Strength | AK56: Triple IG Double Strength | AL56: Laminated | BO56: =IF(ModelNo=BP56,ModelNo,0) -> 0 | BP56: 6422 | BQ56: =$D$249 -> -5 | BR56: =$D$250 -> -8.625 | BS56: 0.2994791667
A57: =IF(OR(ModelNo="0171",ModelNo="0971",ModelNo="9071",ModelNo="8071",ModelNo="B971",ModelNo="P971",ModelNo="R971",ModelNo="i971"),5,"") ->  | B57: 0171 | C57: Screen Width | D57: =Frame_Width-4.0625 -> -4.0625 | F57: 55 | G57: 0964 | H57: Casement Picture Window | I57: 0 | J57: 0 | R57: Standard | AH57: Double Strength (3 mm) | AI57: Triple Strength (5 mm) | AJ57: Triple IG Single Strength | AK57: Triple IG Double Strength | AL57: Laminated | BO57: 0 | BP57: 6475 | BQ57: =$D$236 -> -5.125 | BR57: =$D$237 -> -8.625 | BS57: 0.3069661458
A58: =IF(OR(ModelNo="0171",ModelNo="0971",ModelNo="9071",ModelNo="8071",ModelNo="B971",ModelNo="P971",ModelNo="R971",ModelNo="i971"),6,"") ->  | B58: 0171 | C58: Screen Height | D58: =Frame_Height-4 -> -4 | F58: 56 | G58: 0969 | H58: Dual Vent 3 Lite Casement (Equal Lite) | I58: 0 | J58: 0 | R58: Standard | V58: Half | AH58: Double Strength (3 mm) | AI58: Triple Strength (5 mm) | AJ58: Triple IG Single Strength | AK58: Triple IG Double Strength | AL58: Laminated | AO58: =IF(RO=2,"<< Exact Size Only","") ->  | BO58: 0 | BP58: 8001 | BQ58: =MAX(#REF!,#REF!) ->  | BR58: =MAX(#REF!,#REF!) ->  | BT58: =IF(AND(OR(Glass=4,Glass=5),OR((ISERROR(TOP_TUBE)),(ISERROR(BTM_TUBE)))),1,IF(AND(Glass=3,Single_ST=0),1,0)) -> 0
A59: =IF(OR(ModelNo="0171",ModelNo="0971",ModelNo="9071",ModelNo="8071",ModelNo="B971",ModelNo="P971",ModelNo="R971",ModelNo="i971"),7,"") ->  | B59: 0171 | C59: Egress Opening Width (Standard Hinge) | D59: =Frame_Width-11.25 -> -11.25 | F59: 57 | G59: 0970 | H59: Casement Picture Window | I59: 0 | J59: 0 | M59: 13 | N59: 13 | O59: 96 | P59: 96 | Q59: 154 | R59: Standard | AH59: Double Strength (3 mm) | AI59: Triple Strength (5 mm) | AJ59: Triple IG Single Strength | AK59: Triple IG Double Strength | AL59: Laminated | BO59: 0 | BP59: 8002 | BQ59: =#REF! ->  | BR59: =#REF! -> 
A60: =IF(OR(ModelNo="0171",ModelNo="0971",ModelNo="9071",ModelNo="8071",ModelNo="B971",ModelNo="P971",ModelNo="R971",ModelNo="i971"),8,"") ->  | B60: 0171 | C60: Egress Opening Height (Standard Hinge) | D60: =Frame_Height-4.375 -> -4.375 | F60: 58 | G60: B970 | H60: Casement Bay-Bow Picture Window | I60: 0 | J60: 0 | M60: 13 | N60: 13 | O60: 96 | P60: 96 | Q60: 154 | R60: Standard | AH60: Double Strength (3 mm) | AI60: Triple Strength (5 mm) | AJ60: Triple IG Single Strength | AK60: Triple IG Double Strength | AL60: Laminated | AO60: =IF(RO=2,"<< Exact Size Only","") ->  | BO60: 0 | BP60: 8003 | BQ60: =MAX(#REF!,#REF!) ->  | BR60: =MAX(#REF!,#REF!) -> 
A61: =IF(OR(ModelNo="0171",ModelNo="0971",ModelNo="9071",ModelNo="8071",ModelNo="B971",ModelNo="P971",ModelNo="R971",ModelNo="i971"),9,"") ->  | B61: 0171 | C61: Egress Opening Area w/Standard Hinge (sq.ft.) | D61: =(D59*D60)/144 -> 0.341796875 | F61: 59 | G61: 0971 | H61: Single Vent Casement | I61: 0 | J61: 0 | M61: 16 | N61: 19 | O61: 36 | P61: 78 | Q61: 114 | R61: Standard | W61: Full | AH61: Double Strength (3 mm) | AI61: Triple Strength (5 mm) | AJ61: Triple IG Single Strength | AK61: Triple IG Double Strength | AL61: Laminated | BO61: 0 | BP61: 8009 | BQ61: =MAX(#REF!,#REF!) ->  | BR61: =MAX(#REF!,#REF!) -> 
A62: =IF(OR(ModelNo="0171",ModelNo="0971",ModelNo="9071",ModelNo="8071",ModelNo="B971",ModelNo="P971",ModelNo="R971",ModelNo="i971"),10,"") ->  | B62: 0171 | C62: Egress Opening Width (Egress Hinge) | D62: =IF(D53<22.375,"N/A",Frame_Width-6.8125) -> N/A | F62: 60 | G62: B971 | H62: Casement Bay-Bow Single Vent | I62: 0 | J62: 0 | M62: 16 | N62: 19 | O62: 36 | P62: 78 | Q62: 114 | R62: Standard | W62: Full | AH62: Double Strength (3 mm) | AI62: Triple Strength (5 mm) | AJ62: Triple IG Single Strength | AK62: Triple IG Double Strength | AL62: Laminated | BO62: 0 | BP62: 8014 | BQ62: =$D$50 -> -4.625 | BR62: =$D$51 -> -4.625 | BS62: 0.1485460069
A63: =IF(OR(ModelNo="0171",ModelNo="0971",ModelNo="9071",ModelNo="8071",ModelNo="B971",ModelNo="P971",ModelNo="R971",ModelNo="i971"),11,"") ->  | B63: 0171 | C63: Egress Opening Height (Egress Hinge) | D63: =IF(D53<22.375,"N/A",Frame_Height-4.375) -> N/A | F63: 61 | G63: 0972 | H63: Dual Vent Casement | I63: 0 | J63: 0 | M63: 32 | N63: 19 | O63: 72 | P63: 78 | Q63: 150 | R63: Standard | V63: Half | AH63: Double Strength (3 mm) | AI63: Triple Strength (5 mm) | AJ63: Triple IG Single Strength | AK63: Triple IG Double Strength | AL63: Laminated | BO63: 0 | BP63: 8051 | BQ63: =$D$4 -> -4.625 | BR63: =$D$5 -> -4.625 | BS63: 0.1485460069
A64: =IF(OR(ModelNo="0171",ModelNo="0971",ModelNo="9071",ModelNo="8071",ModelNo="B971",ModelNo="P971",ModelNo="R971",ModelNo="i971"),12,"") ->  | B64: 0171 | C64: Egress Opening Area w/Egress Hinge (sq.ft.) | D64: =IF(D53<22.375,"N/A",(D62*D63)/144) -> N/A | F64: 62 | G64: 0973 | H64: Dual Vent 3 Lite Casement (1/4-1/2-1/4) | I64: 0 | J64: 0 | M64: 64 | N64: 19 | O64: 120 | P64: 78 | Q64: 198 | R64: Standard (1/4-1/2-1/4) | V64: Half | AH64: Double Strength (3 mm) | AI64: Triple Strength (5 mm) | AJ64: Triple IG Single Strength | AK64: Triple IG Double Strength | AL64: Laminated | BO64: 0 | BP64: 8052 | BQ64: =MAX($D$14,$D$16) -> -4.625 | BR64: =MAX($D$15,$D$17) -> -4.375 | BS64: 0.1405164931
A65: =IF(OR(ModelNo="0172",ModelNo="0972",ModelNo="9072",ModelNo="8072"),1,"") ->  | B65: 0172 | C65: Sash Width | D65: =(Frame_Width/2)-1.375 -> -1.375 | F65: 63 | G65: 0974 | H65: 4 Lite Casement | I65: 0 | J65: 0 | M65: 64 | N65: 19 | O65: 120 | P65: 78 | Q65: 198 | R65: Standard | V65: Half | AH65: Double Strength (3 mm) | AI65: Triple Strength (5 mm) | AJ65: Triple IG Single Strength | AK65: Triple IG Double Strength | AL65: Laminated | BO65: 0 | BP65: 8053 | BQ65: =MAX($D$25,$D$27) -> -4.625 | BR65: =MAX($D$26,$D$28) -> -4.375 | BS65: 0.1405164931
A66: =IF(OR(ModelNo="0172",ModelNo="0972",ModelNo="9072",ModelNo="8072"),2,"") ->  | B66: 0172 | C66: Sash Height | D66: =Frame_Height-1.625 -> -1.625 | F66: 64 | G66: 0975 | H66: 5 Lite Casement | I66: 0 | J66: 0 | M66: 80 | N66: 19 | O66: 120 | P66: 78 | Q66: 198 | R66: Standard | V66: Half | AH66: Double Strength (3 mm) | AI66: Triple Strength (5 mm) | AJ66: Triple IG Single Strength | AK66: Triple IG Double Strength | AL66: Laminated | BO66: 0 | BP66: 8054 | BQ66: =MAX($D$36,$D$38) -> -4.625 | BR66: =MAX($D$37,$D$39) -> -4.375 | BS66: =(BQ66*BR66)/144 -> 0.1405164931
A67: =IF(OR(ModelNo="0172",ModelNo="0972",ModelNo="9072",ModelNo="8072"),3,"") ->  | B67: 0172 | C67: Glass Width | D67: =(Frame_Width/2)-4.375 -> -4.375 | F67: 65 | G67: 0979 | H67: Dual Vent 3 Lite Casement (Equal Lite) | I67: 0 | J67: 0 | M67: 48 | N67: 19 | O67: 108 | P67: 78 | Q67: 186 | R67: Standard (1/3-1/3-1/3) | V67: Half | AH67: Double Strength (3 mm) | AI67: Triple Strength (5 mm) | AJ67: Triple IG Single Strength | AK67: Triple IG Double Strength | AL67: Laminated | BO67: 0 | BP67: 8055 | BQ67: =$D$45 -> -4.625 | BR67: =$D$46 -> -4.375 | BS67: 0.1405164931
A68: =IF(OR(ModelNo="0172",ModelNo="0972",ModelNo="9072",ModelNo="8072"),4,"") ->  | B68: 0172 | C68: Glass Height | D68: =Frame_Height-4.625 -> -4.625 | F68: 66 | G68: 1105 | H68: New Const. 4 Foot Patio Door | I68: 0.625 | J68: 0.5 | K68: 60 | L68: 80 | M68: 59.375 | N68: 79.5 | O68: 59.375 | P68: 79.5 | Q68: 140 | R68: Standard | V68: Half | AH68: Double Strength (3 mm) | AI68: Triple Strength (5 mm) | AJ68: Triple IG Single Strength | AK68: Triple IG Double Strength | AL68: Laminated | AO68: =IF(RO=1,"<< Rough Opening Only","") -> << Rough Opening Only | BO68: 0 | BP68: 8070 | BQ68: =$D$50 -> -4.625 | BR68: =$D$51 -> -4.625 | BS68: 0.1485460069
A69: =IF(OR(ModelNo="0172",ModelNo="0972",ModelNo="9072",ModelNo="8072"),5,"") ->  | B69: 0172 | C69: Screen Width | D69: =(Frame_Width/2)-3.8125 -> -3.8125 | F69: 67 | G69: 1106 | H69: New Const. Six Foot Patio Door | I69: 0.625 | J69: 0.5 | K69: 72 | L69: 80 | M69: 71.375 | N69: 79.5 | O69: 71.375 | P69: 95.5 | Q69: 168 | R69: Standard | V69: Half | AH69: Double Strength (3 mm) | AI69: Triple Strength (5 mm) | AJ69: Triple IG Single Strength | AK69: Triple IG Double Strength | AL69: Laminated | AO69: << Rough Opening Only | BO69: 0 | BP69: 8071 | BQ69: =$D$55 -> -4.625 | BR69: =$D$56 -> -4.625 | BS69: 0.1485460069
A70: =IF(OR(ModelNo="0172",ModelNo="0972",ModelNo="9072",ModelNo="8072"),6,"") ->  | B70: 0172 | C70: Screen Height | D70: =Frame_Height-4 -> -4 | F70: 68 | G70: 1108 | H70: New Const. Eight Foot Patio Door | I70: 0.625 | J70: 0.5 | K70: 96 | L70: 80 | M70: 95.375 | N70: 79.5 | O70: 95.375 | P70: 79.5 | Q70: 176 | R70: Standard | V70: Half | AH70: Double Strength (3 mm) | AI70: Triple Strength (5 mm) | AJ70: Triple IG Single Strength | AK70: Triple IG Double Strength | AL70: Laminated | AO70: << Rough Opening Only | BO70: 0 | BP70: 8072 | BQ70: =$D$67 -> -4.375 | BR70: =$D$68 -> -4.625 | BS70: 0.1405164931
A71: =IF(OR(ModelNo="0172",ModelNo="0972",ModelNo="9072",ModelNo="8072"),7,"") ->  | B71: 0172 | C71: Egress Opening Width (Standard Hinge) | D71: =(Frame_Width/2)-11 -> -11 | F71: 69 | G71: 1109 | H71: New Const. Nine Foot Patio Door | I71: 0.625 | J71: 0.5 | K71: 108 | L71: 80 | M71: 107.375 | N71: 79.5 | O71: 107.375 | P71: 95.5 | Q71: 204 | R71: Standard | V71: Half | AH71: Double Strength (3 mm) | AI71: Triple Strength (5 mm) | AJ71: Triple IG Single Strength | AK71: Triple IG Double Strength | AL71: Laminated | AO71: << Rough Opening Only | BO71: 0 | BP71: 8073 | BQ71: =MAX($D$81,$D$83) -> -4.125 | BR71: =MAX($D$82,$D$84) -> -4.625 | BS71: 0.1324869792
A72: =IF(OR(ModelNo="0172",ModelNo="0972",ModelNo="9072",ModelNo="8072"),8,"") ->  | B72: 0172 | C72: Egress Opening Height (Standard Hinge) | D72: =Frame_Height-4.375 -> -4.375 | F72: 70 | G72: 1176 | H72: New Const. 6.5 Foot Patio Door | I72: 0.625 | J72: 0.5 | K72: 76 | L72: 80 | M72: 75.375 | N72: 79.5 | O72: 75.375 | P72: 79.5 | Q72: 156 | R72: Standard | V72: Half | AH72: Double Strength (3 mm) | AI72: Triple Strength (5 mm) | AJ72: Triple IG Single Strength | AK72: Triple IG Double Strength | AL72: Laminated | AO72: << Rough Opening Only | BO72: 0 | BP72: 8074 | BQ72: =MAX($D$115,$D$117) -> -4.25 | BR72: =MAX($D$116,$D$118) -> -4.625 | BS72: 0.1365017361
A73: =IF(OR(ModelNo="0172",ModelNo="0972",ModelNo="9072",ModelNo="8072"),9,"") ->  | B73: 0172 | C73: Egress Opening Area w/Standard Hinge (sq.ft.) | D73: =(D71*D72)/144 -> 0.3342013889 | F73: 71 | G73: 11C5 | H73: New Const. C. Class 4 Foot Patio Door | I73: 0.5 | J73: 0.5 | K73: 60 | L73: 80 | M73: 59.5 | N73: 79.5 | O73: 59.5 | P73: 79.5 | Q73: 140 | R73: Standard | V73: Half | AH73: Double Strength (3 mm) | AI73: Triple Strength (5 mm) | AJ73: Triple IG Single Strength | AK73: Triple IG Double Strength | AL73: Laminated | AO73: << Rough Opening Only | BO73: 0 | BP73: 8075 | BQ73: =MAX($D$133,$D$135) -> -4.1875 | BR73: =MAX($D$134,$D$136) -> -4.625 | BS73: 0.1344943576
A74: =IF(OR(ModelNo="0172",ModelNo="0972",ModelNo="9072",ModelNo="8072"),10,"") ->  | B74: 0172 | C74: Egress Opening Width (Egress Hinge) | D74: =IF(D65<22.375,"N/A",(Frame_Width/2)-6.5625) -> N/A | F74: 72 | G74: 11C6 | H74: New Const. C. Class Six Foot Patio Door | I74: 0.5 | J74: 0.5 | K74: 72 | L74: 80 | M74: 71.5 | N74: 79.5 | O74: 71.5 | P74: 79.5 | Q74: 152 | R74: Standard | V74: Half | AH74: Double Strength (3 mm) | AI74: Triple Strength (5 mm) | AJ74: Triple IG Single Strength | AK74: Triple IG Double Strength | AL74: Laminated | AO74: << Rough Opening Only | BO74: 0 | BP74: 8079 | BQ74: =MAX($D$98,$D$100) -> -4.25 | BR74: =MAX($D$99,$D$101) -> -4.625 | BS74: 0.1365017361
A75: =IF(OR(ModelNo="0172",ModelNo="0972",ModelNo="9072",ModelNo="8072"),11,"") ->  | B75: 0172 | C75: Egress Opening Height (Egress Hinge) | D75: =IF(D65<22.375,"N/A",Frame_Height-4.375) -> N/A | F75: 73 | G75: 11C8 | H75: New Const. C. Class Eight Foot Patio Door | I75: 0.5 | J75: 0.5 | K75: 96 | L75: 80 | M75: 95.5 | N75: 79.5 | O75: 95.5 | P75: 79.5 | Q75: 176 | R75: Standard | V75: Half | AH75: Double Strength (3 mm) | AI75: Triple Strength (5 mm) | AJ75: Triple IG Single Strength | AK75: Triple IG Double Strength | AL75: Laminated | AO75: << Rough Opening Only | BO75: 0 | BP75: 8402 | BQ75: =$D$236 -> -5.125 | BR75: =$D$237 -> -8.625 | BS75: 0.3069661458
A76: =IF(OR(ModelNo="0172",ModelNo="0972",ModelNo="9072",ModelNo="8072"),12,"") ->  | B76: 0172 | C76: Egress Opening Area w/Egress Hinge (sq.ft.) | D76: =IF(D65<22.375,"N/A",(D74*D75)/144) -> N/A | F76: 74 | G76: 11C9 | H76: New Const. C. Class Nine Foot Patio Door | I76: 0.5 | J76: 0.5 | K76: 108 | L76: 80 | M76: 107.5 | N76: 79.5 | O76: 107.5 | P76: 79.5 | Q76: 188 | R76: Standard | V76: Half | AH76: Double Strength (3 mm) | AI76: Triple Strength (5 mm) | AJ76: Triple IG Single Strength | AK76: Triple IG Double Strength | AL76: Laminated | AO76: << Rough Opening Only | BO76: 0 | BP76: 8403 | BQ76: =$D$249 -> -5 | BR76: =$D$250 -> -8.625 | BS76: 0.2994791667
A77: =IF(OR(ModelNo="0173",ModelNo="0973",ModelNo="9073",ModelNo="8073"),1,"") ->  | B77: 0173 | C77: Operating Sash Width | D77: =(Frame_Width/4)-1.375 -> -1.375 | F77: 75 | G77: 5102 | H77: 5100 Series Custom 2 Lite Patio Door | I77: 0 | J77: 0 | M77: 48 | N77: 72 | O77: 96 | P77: 96 | Q77: 192 | V77: Half | AH77: Double Strength (3 mm) | AI77: Triple Strength (5 mm) | AJ77: Triple IG Single Strength | AK77: Triple IG Double Strength | AL77: Laminated | AO77: =IF(RO=2,"<< Exact Size Only","") ->  | BO77: 0 | BP77: 8404 | BQ77: =$D$264 -> -4.6875 | BR77: =$D$265 -> -8.625 | BS77: 0.2807617188
A78: =IF(OR(ModelNo="0173",ModelNo="0973",ModelNo="9073",ModelNo="8073"),2,"") ->  | B78: 0173 | C78: Operating Sash Height | D78: =Frame_Height-1.625 -> -1.625 | F78: 76 | G78: 5103 | H78: 5100 Series Custom 3 Lite Patio Door | I78: 0 | J78: 0 | M78: 84 | N78: 72 | O78: 108 | P78: 96 | Q78: 204 | V78: Half | AH78: Double Strength (3 mm) | AI78: Triple Strength (5 mm) | AJ78: Triple IG Single Strength | AK78: Triple IG Double Strength | AL78: Laminated | AO78: =IF(RO=2,"<< Exact Size Only","") ->  | BO78: 0 | BP78: 8405 | BQ78: =$D$236 -> -5.125 | BR78: =$D$237 -> -8.625 | BS78: 0.3069661458
A79: =IF(OR(ModelNo="0173",ModelNo="0973",ModelNo="9073",ModelNo="8073"),3,"") ->  | B79: 0173 | C79: Fixed Sash Width | D79: =(Frame_Width/2)-1.125 -> -1.125 | F79: 77 | G79: 5105 | H79: 5100 Series Five Foot 2 Lite Patio Door | I79: 1.375 | J79: 0.5 | K79: 60 | L79: 80 | M79: 60 | N79: 80 | O79: 60 | P79: 80 | Q79: 140 | R79: Standard | V79: Half | AH79: Double Strength (3 mm) | AI79: Triple Strength (5 mm) | AJ79: Triple IG Single Strength | AK79: Triple IG Double Strength | AL79: Laminated | AO79: =IF(RO=1,"<< Rough Opening Only","") -> << Rough Opening Only | BO79: 0 | BP79: 8406 | BQ79: =$D$236 -> -5.125 | BR79: =$D$237 -> -8.625 | BS79: 0.3069661458
A80: =IF(OR(ModelNo="0173",ModelNo="0973",ModelNo="9073",ModelNo="8073"),4,"") ->  | B80: 0173 | C80: Fixed Sash Height | D80: =Frame_Height-1.625 -> -1.625 | F80: 78 | G80: 5106 | H80: 5100 Series Six Foot 2 Lite Patio Door | I80: 1.375 | J80: 0.5 | K80: 72 | L80: 80 | M80: 72 | N80: 80 | O80: 72 | P80: 80 | Q80: 152 | R80: Standard | V80: Half | AH80: Double Strength (3 mm) | AI80: Triple Strength (5 mm) | AJ80: Triple IG Single Strength | AK80: Triple IG Double Strength | AL80: Laminated | AO80: << Rough Opening Only | BO80: 0 | BP80: 8408 | BQ80: =$D$236 -> -5.125 | BR80: =$D$237 -> -8.625 | BS80: 0.3069661458
A81: =IF(OR(ModelNo="0173",ModelNo="0973",ModelNo="9073",ModelNo="8073"),5,"") ->  | B81: 0173 | C81: Operating Sash Glass Width | D81: =(Frame_Width/4)-4.375 -> -4.375 | F81: 79 | G81: 5108 | H81: 5100 Series Eight Foot 2 Lite Patio Door | I81: 1.75 | J81: 0.5 | K81: 96 | L81: 80 | M81: 96 | N81: 80 | O81: 96 | P81: 80 | Q81: 176 | R81: Standard | V81: Half | AH81: Double Strength (3 mm) | AI81: Triple Strength (5 mm) | AJ81: Triple IG Single Strength | AK81: Triple IG Double Strength | AL81: Laminated | AO81: << Rough Opening Only | BO81: 0 | BP81: 8409 | BQ81: =$D$249 -> -5 | BR81: =$D$250 -> -8.625 | BS81: 0.2994791667
A82: =IF(OR(ModelNo="0173",ModelNo="0973",ModelNo="9073",ModelNo="8073"),6,"") ->  | B82: 0173 | C82: Operating Sash Glass Height | D82: =Frame_Height-4.625 -> -4.625 | F82: 80 | G82: 5109 | H82: 5100 Series Nine Foot 3 Lite Patio Door | I82: 2.5 | J82: 0.5 | K82: 108 | L82: 80 | M82: 108 | N82: 80 | O82: 108 | P82: 80 | Q82: 188 | R82: Standard | V82: Half | AH82: Double Strength (3 mm) | AI82: Triple Strength (5 mm) | AJ82: Triple IG Single Strength | AK82: Triple IG Double Strength | AL82: Laminated | AO82: << Rough Opening Only | BO82: 0 | BP82: 8412 | BQ82: =$D$264 -> -4.6875 | BR82: =$D$265 -> -8.625 | BS82: 0.2807617188
A83: =IF(OR(ModelNo="0173",ModelNo="0973",ModelNo="9073",ModelNo="8073"),7,"") ->  | B83: 0173 | C83: Fixed Sash Glass Width | D83: =(Frame_Width/2)-4.125 -> -4.125 | F83: 81 | G83: 5175 | H83: 5100 Series Wisconsin 2 Lite Patio Door | I83: 0.5 | J83: 0.5 | K83: 75 | L83: 80 | M83: 75 | N83: 80 | O83: 75 | P83: 80 | Q83: 155 | R83: Standard | V83: Half | AH83: Double Strength (3 mm) | AI83: Triple Strength (5 mm) | AJ83: Triple IG Single Strength | AK83: Triple IG Double Strength | AL83: Laminated | AO83: << Rough Opening Only | BO83: 0 | BP83: 8422 | BQ83: =$D$249 -> -5 | BR83: =$D$250 -> -8.625 | BS83: 0.2994791667
A84: =IF(OR(ModelNo="0173",ModelNo="0973",ModelNo="9073",ModelNo="8073"),8,"") ->  | B84: 0173 | C84: Fixed Sash Glass Height | D84: =Frame_Height-4.625 -> -4.625 | F84: 82 | G84: 6402 | H84: 6400 Series Custom 2 Lite Patio Door | I84: 0 | J84: 0 | M84: 48 | N84: 72 | O84: 96 | P84: 96 | Q84: 192 | R84: 3" Sash | S84: 5" Sash | T84: French | V84: Half | AH84: Double Strength (3 mm) | AI84: Triple Strength (5 mm) | AJ84: Triple IG Single Strength | AK84: Triple IG Double Strength | AL84: Laminated | AO84: =IF(RO=2,"<< Exact Size Only","") ->  | BO84: 0 | BP84: 8475 | BQ84: =$D$236 -> -5.125 | BR84: =$D$237 -> -8.625 | BS84: 0.3069661458
A85: =IF(OR(ModelNo="0173",ModelNo="0973",ModelNo="9073",ModelNo="8073"),9,"") ->  | B85: 0173 | C85: Screen Width | D85: =(Frame_Width/4)-3.8125 -> -3.8125 | F85: 83 | G85: 6403 | H85: 6400 Series Custom 3 Lite Patio Door | I85: 0 | J85: 0 | M85: 84 | N85: 72 | O85: 144 | P85: 96 | Q85: 240 | R85: 3" Sash | S85: 5" Sash | T85: French | V85: Half | AH85: Double Strength (3 mm) | AI85: Triple Strength (5 mm) | AJ85: Triple IG Single Strength | AK85: Triple IG Double Strength | AL85: Laminated | AO85: =IF(RO=2,"<< Exact Size Only","") ->  | BO85: 0 | BP85: R970 | BQ85: =$D$50 -> -4.625 | BR85: =$D$51 -> -4.625 | BS85: 0.1485460069
A86: =IF(OR(ModelNo="0173",ModelNo="0973",ModelNo="9073",ModelNo="8073"),10,"") ->  | B86: 0173 | C86: Screen Height | D86: =Frame_Height-4 -> -4 | F86: 84 | G86: 6404 | H86: 6400 Series Custom 4 Lite Patio Door | I86: 0 | J86: 0 | M86: 96 | N86: 72 | O86: 144 | P86: 96 | Q86: 240 | R86: 3" Sash | S86: 5" Sash | T86: French | V86: Half | AH86: Double Strength (3 mm) | AI86: Triple Strength (5 mm) | AJ86: Triple IG Single Strength | AK86: Triple IG Double Strength | AL86: Laminated | AO86: =IF(RO=2,"<< Exact Size Only","") ->  | BO86: 0 | BP86: R971 | BQ86: =$D$55 -> -4.625 | BR86: =$D$56 -> -4.625 | BS86: 0.1485460069
A87: =IF(OR(ModelNo="0173",ModelNo="0973",ModelNo="9073",ModelNo="8073"),11,"") ->  | B87: 0173 | C87: Egress Opening Width (Standard Hinge) | D87: =(Frame_Width/4)-11 -> -11 | F87: 85 | G87: 6405 | H87: 6400 Series Five Foot 2 Lite Patio Door | I87: 1.375 | J87: 0.5 | K87: 60 | L87: 80 | M87: 58.625 | N87: 79.5 | O87: 58.625 | P87: 95.5 | Q87: 156 | R87: 3" Sash | S87: 5" Sash | T87: French | V87: Half | AH87: Double Strength (3 mm) | AI87: Triple Strength (5 mm) | AJ87: Triple IG Single Strength | AK87: Triple IG Double Strength | AL87: Laminated | AO87: =IF(RO=1,"<< Rough Opening Only","") -> << Rough Opening Only | BO87: =IF(ModelNo=BP86,ModelNo,0) -> 0 | BP87: =ModelNo -> Select Model | BQ87: =IF(ISERROR(VLOOKUP(ModelNo,$BP$24:$BT$86,2,FALSE)),0,VLOOKUP(ModelNo,$BP$24:$BT$86,2,FALSE)) -> 0 | BR87: =IF(ISERROR(VLOOKUP(ModelNo,$BP$24:$BT$86,3,FALSE)),0,VLOOKUP(ModelNo,$BP$24:$BT$86,3,FALSE)) -> 0 | BS87: =IF(ISERROR(VLOOKUP(ModelNo,$BP$24:$BT$86,4,FALSE)),0,VLOOKUP(ModelNo,$BP$24:$BT$86,4,FALSE)) -> 0 | BT87: =IF(ISERROR(VLOOKUP(ModelNo,$BP$24:$BT$86,5,FALSE)),0,VLOOKUP(ModelNo,$BP$24:$BT$86,5,FALSE)) -> 0
A88: =IF(OR(ModelNo="0173",ModelNo="0973",ModelNo="9073",ModelNo="8073"),12,"") ->  | B88: 0173 | C88: Egress Opening Height (Standard Hinge) | D88: =Frame_Height-4.375 -> -4.375 | F88: 86 | G88: 6406 | H88: 6400 Series Six Foot 2 Lite Patio Door | I88: 1.375 | J88: 0.5 | K88: 72 | L88: 80 | M88: 70.625 | N88: 79.5 | O88: 70.625 | P88: 95.5 | Q88: 168 | R88: 3" Sash | S88: 5" Sash | T88: French | V88: Half | AH88: Double Strength (3 mm) | AI88: Triple Strength (5 mm) | AJ88: Triple IG Single Strength | AK88: Triple IG Double Strength | AL88: Laminated | AO88: << Rough Opening Only
A89: =IF(OR(ModelNo="0173",ModelNo="0973",ModelNo="9073",ModelNo="8073"),13,"") ->  | B89: 0173 | C89: Egress Opening Area w/Standard Hinge (sq.ft.) | D89: =(D87*D88)/144 -> 0.3342013889 | F89: 87 | G89: 6408 | H89: 6400 Series Eight Foot 2 Lite Patio Door | I89: 1.75 | J89: 0.5 | K89: 96 | L89: 80 | M89: 94.25 | N89: 79.5 | O89: 94.25 | P89: 95.5 | Q89: 190 | R89: 3" Sash | S89: 5" Sash | T89: French | V89: Half | AH89: Double Strength (3 mm) | AI89: Triple Strength (5 mm) | AJ89: Triple IG Single Strength | AK89: Triple IG Double Strength | AL89: Laminated | AO89: << Rough Opening Only
A90: =IF(OR(ModelNo="0173",ModelNo="0973",ModelNo="9073",ModelNo="8073"),14,"") ->  | B90: 0173 | C90: Egress Opening Width (Egress Hinge) | D90: =IF(D77<22.375,"N/A",(Frame_Width/4)-6.5625) -> N/A | F90: 88 | G90: 6409 | H90: 6400 Series Nine Foot 3 Lite Patio Door | I90: 2.5 | J90: 0.5 | K90: 108 | L90: 80 | M90: 105.5 | N90: 79.5 | O90: 105.5 | P90: 95.5 | Q90: 204 | R90: 3" Sash | S90: 5" Sash | T90: French | V90: Half | AH90: Double Strength (3 mm) | AI90: Triple Strength (5 mm) | AJ90: Triple IG Single Strength | AK90: Triple IG Double Strength | AL90: Laminated | AO90: << Rough Opening Only
A91: =IF(OR(ModelNo="0173",ModelNo="0973",ModelNo="9073",ModelNo="8073"),15,"") ->  | B91: 0173 | C91: Egress Opening Height (Egress Hinge) | D91: =IF(D77<22.375,"N/A",Frame_Height-4.375) -> N/A | F91: 89 | G91: 6412 | H91: 6400 Series Twelve Foot 4 Lite Patio Door | I91: 4.5 | J91: 0.5 | K91: 144 | L91: 80 | M91: 139.5 | N91: 79.5 | O91: 139.5 | P91: 95.5 | Q91: 240 | R91: 3" Sash | S91: 5" Sash | T91: French | V91: Half | AH91: Double Strength (3 mm) | AI91: Triple Strength (5 mm) | AJ91: Triple IG Single Strength | AK91: Triple IG Double Strength | AL91: Laminated | AO91: << Rough Opening Only
A92: =IF(OR(ModelNo="0173",ModelNo="0973",ModelNo="9073",ModelNo="8073"),16,"") ->  | B92: 0173 | C92: Egress Opening Area w/Egress Hinge (sq.ft.) | D92: =IF(D77<22.375,"N/A",(D90*D91)/144) -> N/A | F92: 90 | G92: 6422 | H92: 6400 Series Twelve Foot 3 Lite Patio Door | I92: 3.125 | J92: 0.5 | K92: 144 | L92: 80 | M92: 140.875 | N92: 79.5 | O92: 140.875 | P92: 95.5 | Q92: 240 | R92: 3" Sash | S92: 5" Sash | T92: French | V92: Half | AH92: Double Strength (3 mm) | AI92: Triple Strength (5 mm) | AJ92: Triple IG Single Strength | AK92: Triple IG Double Strength | AL92: Laminated | AO92: << Rough Opening Only
A93: =IF(OR(ModelNo="0173",ModelNo="0973",ModelNo="9073",ModelNo="8073"),17,"") ->  | B93: 0173 | C93: Mull Location From Edge of Frame | D93: =Frame_Width/4 -> 0 | F93: 91 | G93: 6475 | H93: 6400 Series Wisconsin 2 Lite Patio Door | I93: 0.5 | J93: 0.5 | K93: 75 | L93: 80 | M93: 74.5 | N93: 79.5 | O93: 74.5 | P93: 79.5 | Q93: 155 | R93: 3" Sash | S93: 5" Sash | T93: French | V93: Half | AH93: Double Strength (3 mm) | AI93: Triple Strength (5 mm) | AJ93: Triple IG Single Strength | AK93: Triple IG Double Strength | AL93: Laminated | AO93: << Rough Opening Only
A94: =IF(OR(ModelNo="0179",ModelNo="0979",ModelNo="9079",ModelNo="8079"),1,"") ->  | B94: 0179 | C94: Operating Sash Width | D94: =TRUNC(((Frame_Width/3)-1.291)*16+0.5)/16 -> -1.25 | F94: 121 | G94: S140 | H94: Arched Top Single Hung (Round-Top) | I94: 0 | J94: 0 | M94: =MINR*2 -> 0 | N94: 43 | O94: 52 | P94: 96 | Q94: 148 | R94: Standard | S94: Custom | V94: Half | Y94: Select Extrusion | Z94: Mezzo | AA94: Mezzo/N.F | AB94: New Construction | AC94: 0700 Series | AD94: Fusion | AE94: 1700 | AF94: 1900 | AH94: Double Strength (3 mm) | AI94: Triple Strength (5 mm) | AJ94: Triple IG Single Strength | AK94: Triple IG Double Strength | AL94: Laminated | AO94: =IF(RO=2,"<< Exact Size Only","") ->  | AP94: =CDIM_S140 -> 0 | AQ94: =DDIM_S140 -> 6 | AW94: =BSW_S140 -> 0 | AX94: =BSH_S140 -> 0 | AY94: =BGW_S140 -> 0 | AZ94: =BGH_S140 -> 0 | BA94: =(BGW_S140*BGH_S140)/144 -> 0 | BB94: =SW_S140 -> 0 | BD94: =IF(COIL=1,3.875-0.6875,3.875+((COIL-1)*1.625)-0.6875) ->  | BF94: =IF(OR(EXTSELECT=2,EXTSELECT=3),1.875,IF(EXTSELECT=4,1.537,IF(EXTSELECT=5,1.75,1.818))) -> 1.818 | BG94: =IF(OR(EXTSELECT=2,EXTSELECT=3),Frame_Width-5.875,IF(EXTSELECT=4,Frame_Width-2.75,Frame_Width-4.625)) -> -4.625 | BH94: =IF(AX94>(LEG-CDIM_S140),LEG-AX94-BF94-0.125,CDIM_S140-BD94-BF94+0.16875) -> 
A95: =IF(OR(ModelNo="0179",ModelNo="0979",ModelNo="9079",ModelNo="8079"),2,"") ->  | B95: 0179 | C95: Operating Sash Height | D95: =Frame_Height-1.625 -> -1.625 | F95: 122 | G95: S144 | H95: Arched Top Single Hung (Eyebrow) | I95: 0 | J95: 0 | M95: 16 | N95: 43 | O95: 52 | P95: 96 | Q95: 148 | R95: Standard | S95: Custom | V95: Half | Y95: Select Extrusion | Z95: Mezzo | AA95: Mezzo/N.F | AB95: New Construction | AC95: 0700 Series | AD95: Fusion | AE95: 1700 | AF95: 1900 | AH95: Double Strength (3 mm) | AI95: Triple Strength (5 mm) | AJ95: Triple IG Single Strength | AK95: Triple IG Double Strength | AL95: Laminated | AP95: =CDIM_S140 -> 0 | AQ95: =DDIM_S140 -> 6 | AW95: =BSW_S140 -> 0 | AX95: =BSH_S140 -> 0 | AY95: =BGW_S140 -> 0 | AZ95: =BGH_S140 -> 0 | BA95: =(BGW_S140*BGH_S140)/144 -> 0 | BB95: =SW_S140 -> 0 | BD95: =IF(COIL=1,3.875-0.6875,3.875+((COIL-1)*1.625)-0.6875) ->  | BF95: =IF(OR(EXTSELECT=2,EXTSELECT=3),1.875,IF(EXTSELECT=4,1.537,IF(EXTSELECT=5,1.75,1.818))) -> 1.818 | BG95: =IF(OR(EXTSELECT=2,EXTSELECT=3),Frame_Width-5.875,IF(EXTSELECT=4,Frame_Width-2.75,Frame_Width-4.625)) -> -4.625 | BH95: =IF(AX95>(LEG-CDIM_S140),LEG-AX95-BF95-0.125,CDIM_S140-BD95-BF95+0.16875) -> 
A96: =IF(OR(ModelNo="0179",ModelNo="0979",ModelNo="9079",ModelNo="8079"),3,"") ->  | B96: 0179 | C96: Fixed Sash Width | D96: =TRUNC(((Frame_Width/3)-1.291)*16+0.5)/16 -> -1.25 | F96: 123 | G96: S146 | H96: Arched Top Single Hung (1/2 Eyebrow) | I96: 0 | J96: 0 | M96: 16 | N96: 43 | O96: 52 | P96: 96 | Q96: 148 | R96: Standard | S96: Custom | V96: Half | Y96: Select Extrusion | Z96: Mezzo | AA96: Mezzo/N.F | AB96: New Construction | AC96: 0700 Series | AD96: Fusion | AE96: 1700 | AF96: 1900 | AH96: Double Strength (3 mm) | AI96: Triple Strength (5 mm) | AJ96: Triple IG Single Strength | AK96: Triple IG Double Strength | AL96: Laminated | AP96: =CDIM_S140 -> 0 | AQ96: =DDIM_S140 -> 6 | AW96: =BSW_S140 -> 0 | AX96: =BSH_S140 -> 0 | AY96: =BGW_S140 -> 0 | AZ96: =BGH_S140 -> 0 | BA96: =(BGW_S140*BGH_S140)/144 -> 0 | BB96: =SW_S140 -> 0 | BD96: =IF(COIL=1,3.875-0.6875,3.875+((COIL-1)*1.625)-0.6875) ->  | BF96: =IF(OR(EXTSELECT=2,EXTSELECT=3),1.875,IF(EXTSELECT=4,1.537,IF(EXTSELECT=5,1.75,1.818))) -> 1.818 | BG96: =IF(OR(EXTSELECT=2,EXTSELECT=3),Frame_Width-5.875,IF(EXTSELECT=4,Frame_Width-2.75,Frame_Width-4.625)) -> -4.625 | BH96: =IF(AX96>(LEG-CDIM_S140),LEG-AX96-BF96-0.125,CDIM_S140-BD96-BF96+0.16875) -> 
A97: =IF(OR(ModelNo="0179",ModelNo="0979",ModelNo="9079",ModelNo="8079"),4,"") ->  | B97: 0179 | C97: Fixed Sash Height | D97: =Frame_Height-1.625 -> -1.625 | G97: =ModelNo -> Select Model | H97: =VLOOKUP(Model_Select,Data,2,FALSE) -> 0 | I97: =VLOOKUP(Model_Select,Data,3,FALSE) -> 0 | J97: =VLOOKUP(Model_Select,Data,4,FALSE) -> 0 | K97: =VLOOKUP(Model_Select,Data,5,FALSE) -> 0 | L97: =VLOOKUP(Model_Select,Data,6,FALSE) -> 0 | M97: =VLOOKUP(Model_Select,Data,7,FALSE) -> 0 | N97: =VLOOKUP(Model_Select,Data,8,FALSE) -> 0 | O97: =VLOOKUP(Model_Select,Data,9,FALSE) -> 0 | P97: =VLOOKUP(Model_Select,Data,10,FALSE) -> 0 | Q97: =VLOOKUP(Model_Select,Data,11,FALSE) -> 0 | R97: =VLOOKUP(Model_Select,Data,12,FALSE) -> 0 | S97: =VLOOKUP(Model_Select,Data,13,FALSE) -> 0 | T97: =VLOOKUP(Model_Select,Data,14,FALSE) -> 0 | U97: =VLOOKUP(Model_Select,Data,15,FALSE) -> 0 | V97: =VLOOKUP(Model_Select,Data,16,FALSE) -> 0 | W97: =VLOOKUP(Model_Select,Data,17,FALSE) -> 0 | X97: =VLOOKUP(Model_Select,Data,18,FALSE) -> 0 | Y97: =VLOOKUP(Model_Select,Data,19,FALSE) -> 0 | Z97: =VLOOKUP(Model_Select,Data,20,FALSE) -> 0 | AA97: =VLOOKUP(Model_Select,Data,21,FALSE) -> 0 | AB97: =VLOOKUP(Model_Select,Data,22,FALSE) -> 0 | AC97: =VLOOKUP(Model_Select,Data,23,FALSE) -> 0 | AD97: =VLOOKUP(Model_Select,Data,24,FALSE) -> 0 | AE97: =VLOOKUP(Model_Select,Data,25,FALSE) -> 0 | AF97: =VLOOKUP(Model_Select,Data,26,FALSE) -> 0 | AG97: =VLOOKUP(Model_Select,Data,27,FALSE) -> 0 | AH97: =VLOOKUP(Model_Select,Data,28,FALSE) -> 0 | AI97: =VLOOKUP(Model_Select,Data,29,FALSE) -> 0 | AJ97: =VLOOKUP(Model_Select,Data,30,FALSE) -> 0 | AK97: =VLOOKUP(Model_Select,Data,31,FALSE) -> 0 | AL97: =VLOOKUP(Model_Select,Data,32,FALSE) -> 0 | AM97: =VLOOKUP(Model_Select,Data,33,FALSE) -> 0 | AN97: =VLOOKUP(Model_Select,Data,34,FALSE) -> 0 | AO97: =VLOOKUP(Model_Select,Data,35,FALSE) -> 0 | AP97: =VLOOKUP(Model_Select,Data,36,FALSE) -> 0 | AQ97: =VLOOKUP(Model_Select,Data,37,FALSE) -> 0 | AR97: =VLOOKUP(Model_Select,Data,38,FALSE) -> 0 | AS97: =VLOOKUP(Model_Select,Data,39,FALSE) -> 0 | AT97: =VLOOKUP(Model_Select,Data,40,FALSE) -> 0 | AU97: =VLOOKUP(Model_Select,Data,41,FALSE) -> 0 | AV97: =VLOOKUP(Model_Select,Data,42,FALSE) -> 0 | AW97: =VLOOKUP(Model_Select,Data,43,FALSE) -> 0 | AX97: =VLOOKUP(Model_Select,Data,44,FALSE) -> 0 | AY97: =VLOOKUP(Model_Select,Data,45,FALSE) -> 0 | AZ97: =VLOOKUP(Model_Select,Data,46,FALSE) -> 0 | BA97: =VLOOKUP(Model_Select,Data,47,FALSE) -> 0 | BB97: =VLOOKUP(Model_Select,Data,48,FALSE) -> 0 | BC97: =VLOOKUP(Model_Select,Data,49,FALSE) -> 0 | BD97: =VLOOKUP(Model_Select,Data,50,FALSE) -> 0 | BE97: =VLOOKUP(Model_Select,Data,51,FALSE) -> 0 | BF97: =VLOOKUP(Model_Select,Data,52,FALSE) -> 0 | BG97: =VLOOKUP(Model_Select,Data,53,FALSE) -> 0 | BH97: =VLOOKUP(Model_Select,Data,54,FALSE) -> 0
A98: =IF(OR(ModelNo="0179",ModelNo="0979",ModelNo="9079",ModelNo="8079"),5,"") ->  | B98: 0179 | C98: Operating Sash Glass Width | D98: =TRUNC(((Frame_Width/3)-4.291)*16+0.5)/16 -> -4.25 | G98: =IF(ISERROR(VLOOKUP(Model_Select,$F$188:$G$245,2,FALSE)),"",VLOOKUP(Model_Select,$F$188:$G$245,2,FALSE)) ->  | L98: =IF(OR(ModelNo="6405",ModelNo="6406",ModelNo="6408",ModelNo="6409",ModelNo="6412",ModelNo="6422",ModelNo="8405",ModelNo="8406",ModelNo="8408",ModelNo="8409",ModelNo="8412",ModelNo="8422",ModelNo="1106",ModelNo="1109"),1,0) -> 0 | AG98: =IF(AG97>0,1,0) -> 0 | AH98: =IF(AH97>0,1,0) -> 0 | AI98: 0 | AJ98: 0 | AK98: 0 | AL98: 0 | AM98: 0 | AN98: 0
A99: =IF(OR(ModelNo="0179",ModelNo="0979",ModelNo="9079",ModelNo="8079"),6,"") ->  | B99: 0179 | C99: Operating Sash Glass Height | D99: =Frame_Height-4.625 -> -4.625 | G99: =IF(ISERROR(VLOOKUP(Model_Select,$F$43:$G$73,2,FALSE)),"",VLOOKUP(Model_Select,$F$43:$G$73,2,FALSE)) ->  | L99: =IF(HCONTROL=1,96,"") ->  | AG99: =AG98 -> 0 | AH99: =SUM(AG98:AH98) -> 0 | AI99: =SUM(AG98:AI98) -> 0 | AJ99: =SUM(AG98:AJ98) -> 0 | AK99: =SUM(AG98:AK98) -> 0 | AL99: =SUM(AG98:AL98) -> 0 | AM99: =SUM(AG98:AM98) -> 0 | AN99: =SUM(AG98:AN98) -> 0
A100: =IF(OR(ModelNo="0179",ModelNo="0979",ModelNo="9079",ModelNo="8079"),7,"") ->  | B100: 0179 | C100: Fixed Sash Glass Width | D100: =TRUNC(((Frame_Width/3)-4.291)*16+0.5)/16 -> -4.25 | G100: =IF(OR(Model_Select="S140",Model_Select="S144",Model_Select="S146"),1,0) -> 0 | AG100: =AG97 -> 0 | AH100: 0 | AI100: 0 | AJ100: 0 | AK100: 0 | AL100: 0 | AM100: 0 | AN100: 0
A101: =IF(OR(ModelNo="0179",ModelNo="0979",ModelNo="9079",ModelNo="8079"),8,"") ->  | B101: 0179 | C101: Fixed Sash Glass Height | D101: =Frame_Height-4.625 -> -4.625 | AG101: =IF(ISERROR(HLOOKUP(1,AG99:AN100,2,FALSE)),"",HLOOKUP(1,AG99:AN100,2,FALSE)) ->  | AH101: =IF(ISERROR(HLOOKUP(2,AG99:AN100,2,FALSE)),"",HLOOKUP(2,AG99:AN100,2,FALSE)) ->  | AI101: =IF(ISERROR(HLOOKUP(3,AG99:AN100,2,FALSE)),"",HLOOKUP(3,AG99:AN100,2,FALSE)) ->  | AJ101: =IF(ISERROR(HLOOKUP(4,AG99:AN100,2,FALSE)),"",HLOOKUP(4,AG99:AN100,2,FALSE)) ->  | AK101: =IF(ISERROR(HLOOKUP(5,AG99:AN100,2,FALSE)),"",HLOOKUP(5,AG99:AN100,2,FALSE)) ->  | AL101: =IF(ISERROR(HLOOKUP(6,AG99:AN100,2,FALSE)),"",HLOOKUP(6,AG99:AN100,2,FALSE)) ->  | AM101: =IF(ISERROR(HLOOKUP(7,AG99:AN100,2,FALSE)),"",HLOOKUP(7,AG99:AN100,2,FALSE)) ->  | AN101: =IF(ISERROR(HLOOKUP(8,AG99:AN100,2,FALSE)),"",HLOOKUP(8,AG99:AN100,2,FALSE)) -> 
A102: =IF(OR(ModelNo="0179",ModelNo="0979",ModelNo="9079",ModelNo="8079"),9,"") ->  | B102: 0179 | C102: Screen Width | D102: =TRUNC(((Frame_Width/3)-3.666)*32+0.5)/32 -> -3.625 | AG102: Single Strength (2.5 mm) | AH102: S | AI102: 2.314
A103: =IF(OR(ModelNo="0179",ModelNo="0979",ModelNo="9079",ModelNo="8079"),10,"") ->  | B103: 0179 | C103: Screen Height | D103: =Frame_Height-4 -> -4 | AG103: Double Strength (3 mm) | AH103: D | AI103: 3.2
A104: =IF(OR(ModelNo="0179",ModelNo="0979",ModelNo="9079",ModelNo="8079"),11,"") ->  | B104: 0179 | C104: Egress Opening Width (Standard Hinge) | D104: =TRUNC(((Frame_Width/3)-10.916)*16+0.5)/16 -> -10.875 | AG104: Triple Strength (5 mm) | AH104: T | AI104: 4.816
A105: =IF(OR(ModelNo="0179",ModelNo="0979",ModelNo="9079",ModelNo="8079"),12,"") ->  | B105: 0179 | C105: Egress Opening Height (Standard Hinge) | D105: =Frame_Height-4.375 -> -4.375 | AG105: Triple IG Single Strength | AH105: STG | AI105: 3.471
A106: =IF(OR(ModelNo="0179",ModelNo="0979",ModelNo="9079",ModelNo="8079"),13,"") ->  | B106: 0179 | C106: Egress Opening Area w/Standard Hinge (sq.ft.) | D106: =(D104*D105)/144 -> 0.3304036458 | AG106: Triple IG Double Strength | AH106: DTG | AI106: 4.8
A107: =IF(OR(ModelNo="0179",ModelNo="0979",ModelNo="9079",ModelNo="8079"),14,"") ->  | B107: 0179 | C107: Egress Opening Width (Egress Hinge) | D107: =IF(D94<22.375,"N/A",TRUNC(((Frame_Width/3)-6.4785)*16+0.5)/16) -> N/A | AG107: Laminated | AH107: L | AI107: 5.366
A108: =IF(OR(ModelNo="0179",ModelNo="0979",ModelNo="9079",ModelNo="8079"),15,"") ->  | B108: 0179 | C108: Egress Opening Height (Egress Hinge) | D108: =IF(D94<22.375,"N/A",Frame_Height-4.375) -> N/A | AG108: HP package | AH108: H | AI108: 4.816
A109: =IF(OR(ModelNo="0179",ModelNo="0979",ModelNo="9079",ModelNo="8079"),16,"") ->  | B109: 0179 | C109: Egress Opening Area w/Egress Hinge (sq.ft.) | D109: =IF(D94<22.375,"N/A",(D107*D108)/144) -> N/A | AG109: Impact Laminated | AH109: IL | AI109: 5.366
A110: =IF(OR(ModelNo="0179",ModelNo="0979",ModelNo="9079",ModelNo="8079"),17,"") ->  | B110: 0179 | C110: Mull Location From Edge of Frame | D110: =(TRUNC((Frame_Width/3)*16+0.5)/16)+0.125 -> 0.125
A111: =IF(OR(ModelNo="S174",ModelNo="0974",ModelNo="9074",ModelNo="8074"),1,"") ->  | B111: S174 | C111: Operating Sash Width | D111: =(Frame_Width/4)-1.25 -> -1.25
A112: =IF(OR(ModelNo="S174",ModelNo="0974",ModelNo="9074",ModelNo="8074"),2,"") ->  | B112: S174 | C112: Operating Sash Height | D112: =Frame_Height-1.625 -> -1.625
A113: =IF(OR(ModelNo="S174",ModelNo="0974",ModelNo="9074",ModelNo="8074"),3,"") ->  | B113: S174 | C113: Fixed Sash Width | D113: =(Frame_Width/4)-1.25 -> -1.25
A114: =IF(OR(ModelNo="S174",ModelNo="0974",ModelNo="9074",ModelNo="8074"),4,"") ->  | B114: S174 | C114: Fixed Sash Height | D114: =Frame_Height-1.625 -> -1.625
A115: =IF(OR(ModelNo="S174",ModelNo="0974",ModelNo="9074",ModelNo="8074"),5,"") ->  | B115: S174 | C115: Operating Sash Glass Width | D115: =(Frame_Width/4)-4.25 -> -4.25
A116: =IF(OR(ModelNo="S174",ModelNo="0974",ModelNo="9074",ModelNo="8074"),6,"") ->  | B116: S174 | C116: Operating Sash Glass Height | D116: =Frame_Height-4.625 -> -4.625
A117: =IF(OR(ModelNo="S174",ModelNo="0974",ModelNo="9074",ModelNo="8074"),7,"") ->  | B117: S174 | C117: Fixed Sash Glass Width | D117: =(Frame_Width/4)-4.25 -> -4.25
A118: =IF(OR(ModelNo="S174",ModelNo="0974",ModelNo="9074",ModelNo="8074"),8,"") ->  | B118: S174 | C118: Fixed Sash Glass Height | D118: =Frame_Height-4.625 -> -4.625
A119: =IF(OR(ModelNo="S174",ModelNo="0974",ModelNo="9074",ModelNo="8074"),9,"") ->  | B119: S174 | C119: Screen Width | D119: =(Frame_Width/4)-3.625 -> -3.625
A120: =IF(OR(ModelNo="S174",ModelNo="0974",ModelNo="9074",ModelNo="8074"),10,"") ->  | B120: S174 | C120: Screen Height | D120: =Frame_Height-4 -> -4
A121: =IF(OR(ModelNo="S174",ModelNo="0974",ModelNo="9074",ModelNo="8074"),11,"") ->  | B121: S174 | C121: Egress Opening Width (Standard Hinge) | D121: =(Frame_Width/4)-10.875 -> -10.875
A122: =IF(OR(ModelNo="S174",ModelNo="0974",ModelNo="9074",ModelNo="8074"),12,"") ->  | B122: S174 | C122: Egress Opening Height (Standard Hinge) | D122: =Frame_Height-4.375 -> -4.375
A123: =IF(OR(ModelNo="S174",ModelNo="0974",ModelNo="9074",ModelNo="8074"),13,"") ->  | B123: S174 | C123: Egress Opening Area w/Standard Hinge (sq.ft.) | D123: =(D121*D122)/144 -> 0.3304036458
A124: =IF(OR(ModelNo="S174",ModelNo="0974",ModelNo="9074",ModelNo="8074"),14,"") ->  | B124: S174 | C124: Egress Opening Width (Egress Hinge) | D124: =IF(D111<22.375,"N/A",(Frame_Width/4)-6.4375) -> N/A
A125: =IF(OR(ModelNo="S174",ModelNo="0974",ModelNo="9074",ModelNo="8074"),15,"") ->  | B125: S174 | C125: Egress Opening Height (Egress Hinge) | D125: =IF(D111<22.375,"N/A",Frame_Height-4.375) -> N/A
A126: =IF(OR(ModelNo="S174",ModelNo="0974",ModelNo="9074",ModelNo="8074"),16,"") ->  | B126: S174 | C126: Egress Opening Area w/Egress Hinge (sq.ft.) | D126: =IF(D111<22.375,"N/A",(D124*D125)/144) -> N/A
A127: =IF(OR(ModelNo="S174",ModelNo="0974",ModelNo="9074",ModelNo="8074"),17,"") ->  | B127: S174 | C127: Mull Location From Edge of Frame | D127: =(Frame_Width/4)+0.125 -> 0.125
A128: =IF(OR(ModelNo="S174",ModelNo="0974",ModelNo="9074",ModelNo="8074"),18,"") ->  | B128: S174 | C128: Distance Between Mulls | D128: =(Frame_Width/4)-0.125 -> -0.125
A129: =IF(OR(ModelNo="S175",ModelNo="0975",ModelNo="9075",ModelNo="8075"),1,"") ->  | B129: S175 | C129: Operating Sash Width | D129: =TRUNC(((Frame_Width/5)-1.225)*16+0.5)/16 -> -1.1875
A130: =IF(OR(ModelNo="S175",ModelNo="0975",ModelNo="9075",ModelNo="8075"),2,"") ->  | B130: S175 | C130: Operating Sash Height | D130: =Frame_Height-1.625 -> -1.625
A131: =IF(OR(ModelNo="S175",ModelNo="0975",ModelNo="9075",ModelNo="8075"),3,"") ->  | B131: S175 | C131: Fixed Sash Width | D131: =TRUNC(((Frame_Width/5)-1.225)*16+0.5)/16 -> -1.1875
A132: =IF(OR(ModelNo="S175",ModelNo="0975",ModelNo="9075",ModelNo="8075"),4,"") ->  | B132: S175 | C132: Fixed Sash Height | D132: =Frame_Height-1.625 -> -1.625
A133: =IF(OR(ModelNo="S175",ModelNo="0975",ModelNo="9075",ModelNo="8075"),5,"") ->  | B133: S175 | C133: Operating Sash Glass Width | D133: =TRUNC(((Frame_Width/5)-4.225)*16+0.5)/16 -> -4.1875
A134: =IF(OR(ModelNo="S175",ModelNo="0975",ModelNo="9075",ModelNo="8075"),6,"") ->  | B134: S175 | C134: Operating Sash Glass Height | D134: =Frame_Height-4.625 -> -4.625
A135: =IF(OR(ModelNo="S175",ModelNo="0975",ModelNo="9075",ModelNo="8075"),7,"") ->  | B135: S175 | C135: Fixed Sash Glass Width | D135: =TRUNC(((Frame_Width/5)-4.225)*16+0.5)/16 -> -4.1875
A136: =IF(OR(ModelNo="S175",ModelNo="0975",ModelNo="9075",ModelNo="8075"),8,"") ->  | B136: S175 | C136: Fixed Sash Glass Height | D136: =Frame_Height-4.625 -> -4.625
A137: =IF(OR(ModelNo="S175",ModelNo="0975",ModelNo="9075",ModelNo="8075"),9,"") ->  | B137: S175 | C137: Screen Width | D137: =TRUNC(((Frame_Width/5)-3.7625)*16+0.5)/16 -> -3.6875
A138: =IF(OR(ModelNo="S175",ModelNo="0975",ModelNo="9075",ModelNo="8075"),10,"") ->  | B138: S175 | C138: Screen Height | D138: =Frame_Height-4 -> -4
A139: =IF(OR(ModelNo="S175",ModelNo="0975",ModelNo="9075",ModelNo="8075"),11,"") ->  | B139: S175 | C139: Egress Opening Width (Standard Hinge) | D139: =TRUNC(((Frame_Width/5)-10.875)*16+0.5)/16 -> -10.8125
A140: =IF(OR(ModelNo="S175",ModelNo="0975",ModelNo="9075",ModelNo="8075"),12,"") ->  | B140: S175 | C140: Egress Opening Height (Standard Hinge) | D140: =Frame_Height-4.375 -> -4.375
A141: =IF(OR(ModelNo="S175",ModelNo="0975",ModelNo="9075",ModelNo="8075"),13,"") ->  | B141: S175 | C141: Egress Opening Area w/Standard Hinge (sq.ft.) | D141: =(D139*D140)/144 -> 0.3285047743
A142: =IF(OR(ModelNo="S175",ModelNo="0975",ModelNo="9075",ModelNo="8075"),14,"") ->  | B142: S175 | C142: Egress Opening Width (Egress Hinge) | D142: =IF(D129<22.375,"N/A",TRUNC(((Frame_Width/5)-6.4375)*16+0.5)/16) -> N/A
A143: =IF(OR(ModelNo="S175",ModelNo="0975",ModelNo="9075",ModelNo="8075"),15,"") ->  | B143: S175 | C143: Egress Opening Height (Egress Hinge) | D143: =IF(D129<22.375,"N/A",Frame_Height-4.375) -> N/A
A144: =IF(OR(ModelNo="S175",ModelNo="0975",ModelNo="9075",ModelNo="8075"),16,"") ->  | B144: S175 | C144: Egress Opening Area w/Egress Hinge (sq.ft.) | D144: =IF(D129<22.375,"N/A",(D142*D143)/144) -> N/A
A145: =IF(OR(ModelNo="S175",ModelNo="0975",ModelNo="9075",ModelNo="8075"),17,"") ->  | B145: S175 | C145: Mull Location From Edge of Frame | D145: =(TRUNC((Frame_Width/5)*16+0.5)/16)+0.125 -> 0.125
A146: =IF(OR(ModelNo="S175",ModelNo="0975",ModelNo="9075",ModelNo="8075"),18,"") ->  | B146: S175 | C146: Distance Between Mulls | D146: =(TRUNC((Frame_Width/5)*16+0.5)/16)-0.125 -> -0.125
A147: =IF(OR(ModelNo="1105",ModelNo="1106",ModelNo="1108",ModelNo="1176"),1,"") ->  | B147: 1100 | C147: Sash Width | D147: =(Frame_Width/2)+1.0625 -> 1.0625
A148: =IF(OR(ModelNo="1105",ModelNo="1106",ModelNo="1108",ModelNo="1176"),2,"") ->  | B148: 1100 | C148: Sash Height | D148: =Frame_Height-2.1875 -> -2.1875
A149: =IF(OR(ModelNo="1105",ModelNo="1106",ModelNo="1108",ModelNo="1176"),3,"") ->  | B149: 1100 | C149: Roller Track Length | D149: =Frame_Width-1.25 -> -1.25
A150: =IF(OR(ModelNo="1105",ModelNo="1106",ModelNo="1108",ModelNo="1176"),4,"") ->  | B150: 1100 | C150: Glass Width | D150: =(Frame_Width/2)-2.8125 -> -2.8125
A151: =IF(OR(ModelNo="1105",ModelNo="1106",ModelNo="1108",ModelNo="1176"),5,"") ->  | B151: 1100 | C151: Glass Height | D151: =Frame_Height-6.125 -> -6.125
A152: =IF(OR(ModelNo="1105",ModelNo="1106",ModelNo="1108",ModelNo="1176"),6,"") ->  | B152: 1100 | C152: Screen Width | D152: =(Frame_Width/2)+0.0625 -> 0.0625
A153: =IF(OR(ModelNo="1105",ModelNo="1106",ModelNo="1108",ModelNo="1176"),7,"") ->  | B153: 1100 | C153: Screen Height | D153: =Frame_Height-1.625 -> -1.625
A154: =IF(OR(ModelNo="1105",ModelNo="1106",ModelNo="1108",ModelNo="1176"),8,"") ->  | B154: 1100 | C154: Egress Opening Width | D154: =(Frame_Width/2)-5.59375 -> -5.59375
A155: =IF(OR(ModelNo="1105",ModelNo="1106",ModelNo="1108",ModelNo="1176"),9,"") ->  | B155: 1100 | C155: Egress Opening Height | D155: =Frame_Height-3.125 -> -3.125
A156: =IF(OR(ModelNo="1105",ModelNo="1106",ModelNo="1108",ModelNo="1176"),10,"") ->  | B156: 1100 | C156: Egress Opening Area (sq.ft.) | D156: =(D154*D155)/144 -> 0.1213921441
A157: =IF(ModelNo=B157,1,"") ->  | B157: 1109 | C157: Sash Width | D157: =TRUNC(((Frame_Width/3)+1.5625)*16+0.5)/16 -> 1.5625
A158: =IF(ModelNo=B158,2,"") ->  | B158: 1109 | C158: Sash Height | D158: =Frame_Height-2.1875 -> -2.1875
A159: =IF(ModelNo=B159,3,"") ->  | B159: 1109 | C159: Roller Track Length | D159: =TRUNC(((((Frame_Width+0.625)/3)*2)-0.75)*16+0.5)/16 -> -0.25
A160: =IF(ModelNo=B160,4,"") ->  | B160: 1109 | C160: Glass Width | D160: =TRUNC(((Frame_Width/3)-2.3125)*16+0.5)/16 -> -2.25
A161: =IF(ModelNo=B161,5,"") ->  | B161: 1109 | C161: Glass Height | D161: =Frame_Height-6.125 -> -6.125
A162: =IF(ModelNo=B162,6,"") ->  | B162: 1109 | C162: Screen Width | D162: =TRUNC(((Frame_Width/3)-0.0625)*16+0.5)/16 -> 0
A163: =IF(ModelNo=B163,7,"") ->  | B163: 1109 | C163: Screen Height | D163: =Frame_Height-1.625 -> -1.625
A164: =IF(ModelNo=B164,8,"") ->  | B164: 1109 | C164: Egress Opening Width | D164: =(Frame_Width/3)-5.25 -> -5.25
A165: =IF(ModelNo=B165,9,"") ->  | B165: 1109 | C165: Egress Opening Height | D165: =Frame_Height-3.125 -> -3.125
A166: =IF(ModelNo=B166,10,"") ->  | B166: 1109 | C166: Egress Opening Area (sq.ft.) | D166: =(D164*D165)/144 -> 0.1139322917
A167: =IF(ModelNo=B167,11,"") ->  | B167: 1109 | C167: Center of Meeting Rail (Lock side) | D167: =(TRUNC((Frame_Width/3)*16+0.5)/16)+0.375 -> 0.375
A168: =IF(ModelNo=B168,12,"") ->  | B168: 1109 | C168: Center of Meeting Rail (Mullion side) | D168: =(TRUNC((Frame_Width/3)*16+0.5)/16)-0.5 -> -0.5
A169: =IF(OR(ModelNo="11C5",ModelNo="11C6",ModelNo="11C8"),1,"") ->  | B169: 11C/i | C169: Sash Width | D169: =(Frame_Width/2)+0.6875 -> 0.6875
A170: =IF(OR(ModelNo="11C5",ModelNo="11C6",ModelNo="11C8"),2,"") ->  | B170: 11C/i | C170: Sash Height | D170: =Frame_Height-3.0625 -> -3.0625
A171: =IF(OR(ModelNo="11C5",ModelNo="11C6",ModelNo="11C8"),3,"") ->  | B171: 11C/i | C171: Roller Track Length | D171: =Frame_Width-2.125 -> -2.125
A172: =IF(OR(ModelNo="11C5",ModelNo="11C6",ModelNo="11C8"),4,"") ->  | B172: 11C/i | C172: Glass Width | D172: =(Frame_Width/2)-3.1875 -> -3.1875
A173: =IF(OR(ModelNo="11C5",ModelNo="11C6",ModelNo="11C8"),5,"") ->  | B173: 11C/i | C173: Glass Height | D173: =Frame_Height-6.9375 -> -6.9375
A174: =IF(OR(ModelNo="11C5",ModelNo="11C6",ModelNo="11C8"),6,"") ->  | B174: 11C/i | C174: Screen Width | D174: =Frame_Width/2 -> 0
A175: =IF(OR(ModelNo="11C5",ModelNo="11C6",ModelNo="11C8"),7,"") ->  | B175: 11C/i | C175: Screen Height | D175: =Frame_Height-2.125 -> -2.125
A176: =IF(OR(ModelNo="11C5",ModelNo="11C6",ModelNo="11C8"),8,"") ->  | B176: 11C/i | C176: Egress Opening Width | D176: =(Frame_Width/2)-6 -> -6
A177: =IF(OR(ModelNo="11C5",ModelNo="11C6",ModelNo="11C8"),9,"") ->  | B177: 11C/i | C177: Egress Opening Height | D177: =Frame_Height-4 -> -4
A178: =IF(OR(ModelNo="11C5",ModelNo="11C6",ModelNo="11C8"),10,"") ->  | B178: 11C/i | C178: Egress Opening Area (sq.ft.) | D178: =(D176*D177)/144 -> 0.1666666667
A179: =IF(ModelNo=B179,1,"") ->  | B179: 11C9 | C179: Sash Width | D179: =TRUNC(((Frame_Width/3)+1.25)*16+0.5)/16 -> 1.25
A180: =IF(ModelNo=B180,2,"") ->  | B180: 11C9 | C180: Sash Height | D180: =Frame_Height-3 -> -3
A181: =IF(ModelNo=B181,3,"") ->  | B181: 11C9 | C181: Roller Track Length | D181: =TRUNC(((((Frame_Width+0.625)/3)*2)-0.75)*16+0.5)/16 -> -0.25
A182: =IF(ModelNo=B182,4,"") ->  | B182: 11C9 | C182: Glass Width | D182: =TRUNC(((Frame_Width/3)-2.625)*16+0.5)/16 -> -2.5625
A183: =IF(ModelNo=B183,5,"") ->  | B183: 11C9 | C183: Glass Height | D183: =Frame_Height-6.9375 -> -6.9375
A184: =IF(ModelNo=B184,6,"") ->  | B184: 11C9 | C184: Screen Width | D184: =TRUNC(((Frame_Width/3)-0.1875)*16+0.5)/16 -> -0.125
A185: =IF(ModelNo=B185,7,"") ->  | B185: 11C9 | C185: Screen Height | D185: =Frame_Height-2.125 -> -2.125
A186: =IF(ModelNo=B186,8,"") ->  | B186: 11C9 | C186: Egress Opening Width | D186: =(Frame_Width/3)-5.75 -> -5.75
A187: =IF(ModelNo=B187,9,"") ->  | B187: 11C9 | C187: Egress Opening Height | D187: =Frame_Height-4 -> -4
A188: =IF(ModelNo=B188,10,"") ->  | B188: 11C9 | C188: Egress Opening Area (sq.ft.) | D188: =(D186*D187)/144 -> 0.1597222222
A189: =IF(ModelNo=B189,11,"") ->  | B189: 11C9 | C189: Center of Meeting Rail (Lock side) | D189: =(TRUNC((Frame_Width/3)*16+0.5)/16)+0.375 -> 0.375
A190: =IF(ModelNo=B190,12,"") ->  | B190: 11C9 | C190: Center of Meeting Rail (Mullion side) | D190: =(TRUNC((Frame_Width/3)*16+0.5)/16)-0.5 -> -0.5
A191: =IF(OR(ModelNo="5102",ModelNo="5105",ModelNo="5106",ModelNo="5108",,ModelNo="5175"),1,"") ->  | B191: 5102 | C191: Sash Width | D191: =(Frame_Width/2)+1.0625 -> 1.0625
A192: =IF(OR(ModelNo="5102",ModelNo="5105",ModelNo="5106",ModelNo="5108",,ModelNo="5175"),2,"") ->  | B192: 5102 | C192: Sash Height | D192: =Frame_Height-2.1875 -> -2.1875
A193: =IF(OR(ModelNo="5102",ModelNo="5105",ModelNo="5106",ModelNo="5108",,ModelNo="5175"),3,"") ->  | B193: 5102 | C193: Roller Track Length | D193: =Frame_Width-1.25 -> -1.25
A194: =IF(OR(ModelNo="5102",ModelNo="5105",ModelNo="5106",ModelNo="5108",,ModelNo="5175"),4,"") ->  | B194: 5102 | C194: Glass Width | D194: =(Frame_Width/2)-2.8125 -> -2.8125
A195: =IF(OR(ModelNo="5102",ModelNo="5105",ModelNo="5106",ModelNo="5108",,ModelNo="5175"),5,"") ->  | B195: 5102 | C195: Glass Height | D195: =Frame_Height-6.125 -> -6.125
A196: =IF(OR(ModelNo="5102",ModelNo="5105",ModelNo="5106",ModelNo="5108",,ModelNo="5175"),6,"") ->  | B196: 5102 | C196: Screen Width | D196: =(Frame_Width/2)+0.0625 -> 0.0625
A197: =IF(OR(ModelNo="5102",ModelNo="5105",ModelNo="5106",ModelNo="5108",,ModelNo="5175"),7,"") ->  | B197: 5102 | C197: Screen Height | D197: =Frame_Height-1.625 -> -1.625
A198: =IF(OR(ModelNo="5102",ModelNo="5105",ModelNo="5106",ModelNo="5108",,ModelNo="5175"),8,"") ->  | B198: 5102 | C198: Egress Opening Width | D198: =(Frame_Width/2)-5.59375 -> -5.59375
A199: =IF(OR(ModelNo="5102",ModelNo="5105",ModelNo="5106",ModelNo="5108",,ModelNo="5175"),9,"") ->  | B199: 5102 | C199: Egress Opening Height | D199: =Frame_Height-3.125 -> -3.125
A200: =IF(OR(ModelNo="5102",ModelNo="5105",ModelNo="5106",ModelNo="5108",,ModelNo="5175"),10,"") ->  | B200: 5102 | C200: Egress Opening Area (sq.ft.) | D200: =(D198*D199)/144 -> 0.1213921441
... 430 more rows
